Workbook

Sheet About
B3: Environmental, Social and Governance (ESG) Performance Trend Data
B5: Date Updated: | C5: 2022-09-26
B7: Freeport-McMoRan Inc. (FCX) is committed to communicating on our ESG performance regularly and transparently. We have been reporting on our sustainability performance since 2001. The data provided herein reflect our historical performance for the past five years on key ESG topics. These data are intended to be a companion to the 2021 Annual Report on Sustainability and 2021 Climate Report. Unless noted otherwise, environmental data cover all of FCX’s material operating sites including the following locations: Atlantic Copper, Bagdad, Cerro Verde, Chino (including Cobre), Climax, El Abra, El Paso, Fort Madison, Henderson, Kokkola, Miami, Morenci, PT Freeport Indonesia, Rotterdam, Safford (including Lone Star), Sierrita, Stowmarket and Tyrone. Workforce (except for health and safety data, which excludes divested and closed assets), communities and governance information covers operating and non-operating sites, exploration activities, projects and divested or closed assets until the year of divestiture or closure. As a result of methodology changes, corrections, or ongoing improvements to our data collection processes and quality, prior year data may be adjusted in future years. Non-financial data contained in this report have not been prepared in conformity with GAAP in the U.S. and, with the exception of our GHG Scope 1, 2 and 3 emissions data, which have been third-party verified in accordance with ISO 14064 (Specifications 1 and 3) to a reasonable level of assurance, data have not been audited. Data herein have been assured in accordance with the International Standard on Assurance ISEA3000 (revised). Historical results are not necessarily indicative of future performance. All financial figures are quoted in U.S. dollars, unless otherwise noted. Due to rounding, some figures and percentages may not add up to the total figure or 100%. Data presented cover our performance for the years ending on December 31st, which corresponds to our fiscal year. Additional information about FCX is available on our website at fcx.com. For details on our financial performance and governance structure, please refer to our Annual Report on Form 10-K for the year ended December 31, 2021, filed with the SEC, which is available on our website at fcx.com.

Sheet Index
A1: INDEX
A2: =HYPERLINK("#'"&J2&"'!A1",J2) -> About | I2: 1 | J2: =INDEX(SheetNames,I2) -> About
A3: =HYPERLINK("#'"&J3&"'!A1",J3) -> References | I3: 3 | J3: =INDEX(SheetNames,I3) -> References
A4: PEOPLE
A5: =HYPERLINK("#'"&J5&"'!A1",J5) -> Health & Safety | I5: =I3+1 -> 4 | J5: =INDEX(SheetNames,I5) -> Health & Safety
A6: Workforce | I6: =I5+1 -> 5 | J6: =INDEX(SheetNames,I6) -> Workforce
A7: Communities | I7: =I6+1 -> 6 | J7: =INDEX(SheetNames,I7) -> Communities
A8: Key Economic Contributions | I8: 7 | J8: =INDEX(SheetNames,I8) -> Key Economic Contributions
A9: Cash Payments to Governments | I9: 8 | J9: =INDEX(SheetNames,I9) -> Cash Payments to Governments
A10: Economic Value Contributed | I10: 9 | J10: =INDEX(SheetNames,I10) -> Economic Value Contributed
A11: GOVERNANCE
A12: Human Rights | I12: =I10+1 -> 10 | J12: Human Rights
A13: Business Ethics | I13: 11 | J13: Business Ethics
A14: Procurement Spend Distribution | I14: 12 | J14: Procurement Spend Distribution
A15: Procurement - by site | I15: 13 | J15: Procurement - by site
A16: ENVIRONMENT
A17: =HYPERLINK("#'"&J17&"'!A1",J17) -> GHG Emissions | I17: =I15+1 -> 14 | J17: =INDEX(SheetNames,I17) -> GHG Emissions
A18: =HYPERLINK("#'"&J18&"'!A1",J18) -> GHG Emissions - 2030 Targets | I18: =I17+1 -> 15 | J18: GHG Emissions - 2030 Targets
A19: Dual Reporting | I19: 16 | J19: Dual Reporting
A20: Scope 3 Inventory Development | I20: 17 | J20: Scope 3 Inventory Development
A21: Air Emissions | I21: 18 | J21: Air Emissions
A22: Energy Consumption - by site | I22: 19 | J22: Energy Consumption - by site
A23: 2021 Energy Consumption - Type | I23: 20 | J23: 2021 Energy Consumption - Type
A24: 2021 Indirect Energy - Source | I24: 21 | J24: 2021 Indirect Energy - Source
A25: 2021 Direct Energy - Source | I25: 22 | J25: 2021 Direct Energy - Source
A26: Water | I26: 23 | J26: Water
A27: Mining.Mineral Processing Waste | I27: 24 | J27: Mining.Mineral Processing Waste
A28: Non-Mining Waste.Recycled | I28: 25 | J28: Non-Mining Waste.Recycled
A29: Land | I29: 26 | J29: Land
A30: Tailings Impoundments | I30: 27 | J30: Tailings Impoundments
A31: Environmental Compliance | I31: 28 | J31: Environmental Compliance
A32: SASB | I32: 29 | J32: SASB
A33: GRI Index; SDGs | I33: 30 | J33: GRI Index; SDGs

Sheet References
A1: REFERENCES
A4: Below is a list of documents and webpages mentioned in this databook.
A5: DOCUMENT NAME | B5: LINK TO DOCUMENT
A6: Annual Report on Sustainability | B6: Freeport-McMoRan Inc. 2021 Annual Report on Sustainability
A7: Form 10-K | B7: Freeport-McMoRan Inc. 2021 Form 10-K
A8: Proxy Statement | B8: Freeport-McMoRan Inc. 2022 Proxy Statement
A9: Climate Report | B9: Freeport-McMoRan 2021 Climate Report
A10: Water Report | B10: Freeport-McMoRan 2019 Water Report
A11: Social Performance Policy | B11: Freeport-McMoRan Inc. Social Performance Policy
A12: Corporate Governance Guidelines | B12: Freeport-McMoRan Inc. Corporate Governance Guidelines
A13: Environmental Policy | B13: Freeport-McMoRan Inc. Environmental Policy
A14: Human Rights Policy | B14: Freeport-McMoRan Inc. Human Rights Policy
A15: Principles of Business Conduct | B15: Freeport-McMoRan Inc. Principles of Business Conduct
A16: Responsible Sourcing of Minerals Policy | B16: Freeport-McMoRan Inc. Responsible Sourcing of Minerals Policy
A17: Tailings Management Policy | B17: Freeport-McMoRan Inc. Tailings Management Policy
A18: Business Partner Code of Conduct | B18: Freeport-McMoRan Inc. Business Partner Code of Conduct
A19: UK Modern Slavery Act Statement | B19: 2021 UK Modern Slavery Act Statement
A20: Voluntary Principles Report | B20: Voluntary Principles on Security and Human Rights: 2021 Annual Report to the Plenary
A21: OECD Step 5 Due Diligence Report | B21: OECD Step 5 Due Diligence Report
A22: Tailings Management and Stewardship | B22: Tailings Management and Stewardship Summary
A23: Site-Specific Tailings Management and Information | B23: Site-Specific Tailings Management and Information
A24: Sustainability Reports and Documents | B24: Sustainability Reports and Documents
A25: Human Rights: Due Diligence | B25: Due Diligence
A26: Human Rights: Embedding Respect | B26: Embedding Respect
A27: Human Rights: Security | B27: Security & Human Rights
A28: Communities & Indigenous Peoples: Grievance Mechanism | B28: Grievance Mechanism
A29: Communities & Indigenous Peoples: Assessing & Managing Impacts | B29: Assessing & Managing Impacts
A30: Communities & Indigenous Peoples: Public Health | B30: Public Health
A31: Communities & Indigenous Peoples: Land Use and Customary Rights at PT-FI | B31: Land Use and Customary Rights at PT-FI
A32: Communities & Indigenous Peoples: Freeport in my Community | B32: Freeport in my Community
A33: Communities & Indigenous Peoples: Economic Impact | B33: Economic Impact
A34: Environment: Tailings — Americas operations | B34: Tailings - Americas operations
A35: Environment: Tailings — Indonesia operations | B35: Tailings - Indonesia operations
A36: Environment: PT-FI External Audits | B36: PT-FI External Audits
A37: Audits, Assessments, Assurance | B37: Audits, Assessments, Assurance
A38: Suppliers: Global Supply Chain | B38: Global Suppy Chain
A39: Suppliers: Commodity Management | B39: Commodity Management

Sheet Health & Safety
A1: FCX - ESG PERFORMANCE TREND DATA
A2: SOCIAL
B3: 2017 | C3: 2018 | D3: 2019 | E3: 2020 | F3: 2021
A4: Health & Safety Performance1
A5: Total Number of Recordable Events | B5: 428 | C5: 461 | D5: 525 | E5: 417 | F5: 455
A6: % High Risk2 | B6: 0.228 | C6: 0.107 | D6: 0.107 | E6: 0.067 | F6: 0.07
A8: Number of Workplace Fatalities
A9: Full-time Employees | B9: 2 | C9: 1 | D9: 1 | E9: 1 | F9: 0
A10: Contract Employees | B10: 3 | C10: 0 | D10: 2 | E10: 4 | F10: 2
A11: Total Workplace Fatalities | B11: 5 | C11: 1 | D11: 3 | E11: 5 | F11: 2
A13: Total Recordable Incident Rate (TRIR)3
A14: Full-time Employees | B14: 0.8 | C14: 0.7 | D14: 0.81 | E14: 0.76 | F14: 0.75
A15: Contract Employees | B15: 0.65 | C15: 0.72 | D15: 0.63 | E15: 0.57 | F15: 0.62
A16: Total Workforce | B16: 0.74 | C16: 0.71 | D16: 0.74 | E16: 0.69 | F16: 0.7
A18: Fatality Rate4
A19: Full-time Employees | B19: 0.006 | C19: 0.002 | D19: 0.002 | E19: 0.003 | F19: 0
A20: Contract Employees | B20: 0.013 | C20: 0 | D20: 0.007 | E20: 0.018 | F20: 0.007
A21: Total Workforce | B21: 0.009 | C21: 0.002 | D21: 0.004 | E21: 0.008 | F21: 0.003
A23: Near Miss Frequency Rate (NMFR)5
A24: Full-time Employees | B24: 2.69 | C24: 2.44 | D24: 2.51 | E24: 1.79 | F24: 1.61
A25: Contract Employees | B25: 1.44 | C25: 2.1 | D25: 1.81 | E25: 1.28 | F25: 1.21
A26: Total Workforce | B26: 2.88 | C26: 2.46 | D26: 2.18 | E26: 1.66 | F26: 1.82
A28: Lost Time Injury Frequency Rate (LTIR)6
A29: Full-time Employees | B29: 0.44 | C29: 0.34 | D29: 0.36 | E29: 0.33 | F29: 0.29
A30: Contract Employees | B30: 0.27 | C30: 0.33 | D30: 0.28 | E30: 0.24 | F30: 0.32
A31: Total Workforce | B31: 0.37 | C31: 0.34 | D31: 0.33 | E31: 0.3 | F31: 0.3
A34: 1. All health and safety performance data include employees and contractors, unless otherwise noted. All data performance rates are calculated per 200,000 hours worked, except where indicated.
A35: 2. Our risk matrix defines "high risk" events as incidents that have the potential to result in permanent disabilities or fatalities.
A36: 3. TRIR = [(Fatalities + Lost-time Incidents + Restricted-duty Incidents + Medical Treatment) x 200,000] / Total Hours Worked. TRIR is equivalent to MSHA All-Incidence Rate (AIR). TRIR presented here may differ from reported TRIR in FCX's Form 10-K filings because data have been adjusted to exclude disposed assets for comparison purposes. Following the filing of FCX’s 2021 Form 10-K, FCX learned of a mischaracterized incident which resulted in an adjustment to FCX’s 2021 company-wide TRIR from 0.69 to 0.70.
A37: 4. Fatality Rate = (Number of Fatalities x 200,000) / Total Hours Worked.
A38: 5. NMFR = (Number of Near Miss Events x 200,000) / Total Hours Worked.
A39: 6. LTIR = (Number of Lost Time Injuries x 200,000) / Total Hours Worked.

Sheet Workforce
A1: FCX - ESG PERFORMANCE TREND DATA
A2: SOCIAL
B3: 2017 | C3: 2018 | D3: 2019 | E3: 2020 | F3: 2021
A4: Workforce
A5: Number of Employees | B5: 25200 | C5: 26800 | D5: 27500 | E5: 24500 | F5: 24700
A6: Number of Contractors1 | B6: 27500 | C6: 38300 | D6: 40200 | E6: 33300 | F6: 42000
A8: Employees Covered Under Collective Labor Agreements (CLA)2
A9: Indonesia | B9: 0.5573887072 | C9: 0.5226888388 | D9: 0.5104772992 | E9: 0.5099145821 | F9: 0.4891215442
A10: Europe/Other | B10: 0.7278664731 | C10: 0.718487395 | D10: 0.661341853 | E10: 0.6703483432 | F10: 0.6211812627
A11: South America | B11: 0.6575294934 | C11: 0.6529814272 | D11: 0.649529103 | E11: 0.6557231588 | F11: 0.6590191189
A12: North America | B12: 0 | C12: 0 | D12: 0 | E12: 0 | F12: 0
A13: Global Employees Under CLA | B13: 0.346277674 | C13: 0.325684485 | D13: 0.3123354782 | E13: 0.3188966754 | F13: 0.3063216296
A15: Employee Demographics3
A16: Employees by Age Group
A17: <30 Years | B17: 0.12 | C17: 0.14 | D17: 0.14 | E17: 0.12 | F17: 0.1199125258
A18: 30-50 Years | B18: 0.67 | C18: 0.65 | D18: 0.64 | E18: 0.66 | F18: 0.653910015
A19: >50 Years | B19: 0.21 | C19: 0.21 | D19: 0.22 | E19: 0.22 | F19: 0.2261774592
A21: Employees by Nationality
A22: Local Country National | B22: 0.99 | C22: 0.99 | D22: 0.99 | E22: 0.99 | F22: 0.9915765602
A23: Expatriates/Third-Country Nationals | B23: 0.01 | C23: 0.01 | D23: 0.01 | E23: 0.01 | F23: 0.008423439841
A25: North America Consolidated Demographic Info4
A26: White | B26: 0.5643546332 | C26: 0.5483870968 | D26: 0.5440357619 | E26: 0.533285612 | F26: 0.5232668566
A27: Hispanic/Latino | B27: 0.3725650828 | C27: 0.3789706969 | D27: 0.3827150812 | E27: 0.3950429492 | F27: 0.3997237331
A28: American Indian/Alaskan Native | B28: 0.03103950482 | C28: 0.03472051219 | D28: 0.03474237315 | E28: 0.03802791696 | F28: 0.04023137356
A29: Asian | B29: 0.01429091571 | C29: 0.01559550193 | D29: 0.0152929182 | E29: 0.01395848246 | F29: 0.01381334715
A30: Black or African American | B30: 0.01501911524 | C30: 0.01666256259 | D30: 0.01560661909 | E30: 0.01360057266 | F30: 0.01441768108
A31: Native Hawaiian or Other Pacific Islander | B31: 0.00109229929 | C31: 0.00180579496 | D31: 0.002352756647 | E31: 0.002505368647 | F31: 0.002331002331
A32: Two or more races | B32: 0 | C32: 0 | D32: 0.003215434084 | E32: 0.003400143164 | F32: 0.00518000518
A33: Undisclosed | B33: 0.001638448935 | C33: 0.003857834688 | D33: 0.00203905576 | E33: 0.0001789549034 | F33: 0.001036001036
A35: PT-FI Demographic Info
A36: Indonesian Representation | B36: - | C36: - | D36: 0.98 | E36: 0.98 | F36: 0.9762800589
A37: Indigenous Papuan Representation | B37: - | C37: - | D37: 0.4 | E37: 0.4 | F37: 0.4125633895
A39: Women Employed by Location
A40: North America | B40: 0.17 | C40: 0.18 | D40: 0.19 | E40: 0.1827129563 | F40: 0.1919191919
A41: Chile | B41: 0.09 | C41: 0.1 | D41: 0.12 | E41: 0.1092077088 | F41: 0.1407284768
A42: Peru | B42: 0.06 | C42: 0.07 | D42: 0.07 | E42: 0.05913635397 | F42: 0.05970459746
A43: Indonesia | B43: 0.06 | C43: 0.07 | D43: 0.07 | E43: 0.07062233069 | F43: 0.07377719614
A44: Europe/Other | B44: 0.17 | C44: 0.17 | D44: 0.17 | E44: 0.1843670348 | F44: 0.1731160896
A45: Total Women in Workforce | B45: 0.12 | C45: 0.13 | D45: 0.13 | E45: 0.1263852673 | F45: 0.1336816102
A47: Women in Leadership Positions5
A48: Board of Directors | B48: 0.25 | C48: 0.2857142857 | D48: 0.3333333333 | E48: 0.3333333333 | F48: 0.3636363636
A49: Executive Management | B49: 0.1111111111 | C49: 0.1481481481 | D49: 0.1379310345 | E49: 0.1935483871 | F49: 0.2121212121
A50: Management | B50: 0.1115122343 | C50: 0.1244920576 | D50: 0.1245841035 | E50: 0.1247920133 | F50: 0.1230643847
A51: Non-Management | B51: 0.1178550904 | C51: 0.1278857333 | D51: 0.1324236253 | E51: 0.1263310526 | F51: 0.1354138521
A52: Total Women in Workforce | B52: 0.1171350213 | C52: 0.126988266 | D52: 0.1315443112 | E52: 0.1263852673 | F52: 0.1336816102
A54: % of New Hires - women | B54: 0.22 | C54: 0.21 | D54: 0.21 | E54: 0.2246998285 | F54: 0.2170506912
A56: Talent Attraction and Retention3
A57: Employee Turnover by Age Group
A58: <30 Years | B58: 0.23 | C58: 0.13 | D58: 0.16 | E58: 0.22 | F58: 0.1920114634
A59: 30-50 Years | B59: 0.28 | C59: 0.05 | D59: 0.06 | E59: 0.09 | F59: 0.06892669502
A60: >50 Years | B60: 0.31 | C60: 0.08 | D60: 0.11 | E60: 0.26 | F60: 0.1164345404
A62: Employee Turnover by Gender
A63: Men | B63: 0.29 | C63: 0.06 | D63: 0.08 | E63: 0.14 | F63: 0.09150016611
A64: Women | B64: 0.19 | C64: 0.09 | D64: 0.12 | E64: 0.22 | F64: 0.108938096
A66: Employee Turnover by Region
A67: North America6 | B67: 0.16 | C67: 0.1 | D67: 0.11 | E67: 0.2 | F67: 0.1385937844
A68: South America | B68: 0.03 | C68: 0.05 | D68: 0.06 | E68: 0.15 | F68: 0.03237726553
A69: Indonesia | B69: 0.55 | C69: 0.03 | D69: 0.04 | E69: 0.05 | F69: 0.07356539585
A70: Europe/Other | B70: 0.06 | C70: 0.05 | D70: 0.25 | E70: 0.1 | F70: 0.05344934742
A71: Total Employee Turnover | B71: 0.28 | C71: 0.07 | D71: 0.09 | E71: 0.15 | F71: 0.09373254154
A73: Voluntary Turnover Rate | B73: - | C73: - | D73: - | E73: 0.09 | F73: 0.05975708167
A76: 1. Amounts have been adjusted to reflect corrections to headcounts in Europe.
A77: 2. Data include only employees covered under CLA; previously reported Indonesia data included employees who paid union dues regardless of union membership. In North America, our hourly employees continue to elect to work directly with company management rather than through union representation using our Guiding Principles contract, which adds value to the workforce and the company.
A78: 3. Data include employees only and do not include contractors.
A79: 4. Reported consolidated North America diversity metrics relate to employees only and are in line with the categories set forth by United States Equal Employment Opportunity Commission.
A80: 5. Amounts have been adjusted to follow globally applicable definitions for management levels and proxy statement methodology.
A81: 6. Higher turnover in 2020 is related to Voluntary Separation Packages offered to North America employees.

Sheet Communities
A1: FCX - ESG PERFORMANCE TREND DATA
A2: SOCIAL
B3: 2017 | C3: 2018 | D3: 2019 | E3: 2020 | F3: 2021
A4: Communities
A5: Community Investments ($ millions) | B5: 153 | C5: 155 | D5: 100 | E5: 108 | F5: 164
A6: Community Trust Funds | B6: 0.3 | C6: 0.4 | D6: 0.29 | E6: 0.35 | F6: 0.47
A7: Safety, Health & Environment | B7: 0.19 | C7: 0.15 | D7: 0.21 | E7: 0.17 | F7: 0.16
A8: Education & Training | B8: 0.14 | C8: 0.12 | D8: 0.18 | E8: 0.12 | F8: 0.07
A9: Economic Development & Infrastructure | B9: 0.19 | C9: 0.15 | D9: 0.17 | E9: 0.15 | F9: 0.13
A10: Other1 | B10: 0.15 | C10: 0.15 | D10: 0.14 | E10: 0.17 | F10: 0.14
A11: Administration | B11: 0.03 | C11: 0.03 | D11: 0.01 | E11: 0.04 | F11: 0.03
A13: Community Grievances
A14: Community Grievances by Geography
A15: Chile | B15: 33 | C15: 37 | D15: 29 | E15: 17 | F15: 10
A16: Europe | B16: 0 | C16: 5 | D16: 5 | E16: 1 | F16: 4
A17: Indonesia | B17: 64 | C17: 76 | D17: 60 | E17: 53 | F17: 60
A18: Peru | B18: 17 | C18: 15 | D18: 9 | E18: 10 | F18: 4
A19: United States2 | B19: 50 | C19: 106 | D19: 87 | E19: 59 | F19: 94
A20: Total Community Grievances | B20: =+B19+B18+B17+B16+B15 -> 164 | C20: =+C19+C18+C17+C16+C15 -> 239 | D20: =+D19+D18+D17+D16+D15 -> 190 | E20: =+E19+E18+E17+E16+E15 -> 140 | F20: 172
A22: Community Grievances by Type (%)
A23: Community Benefits | B23: 0.4085365854 | C23: 0.3389121339 | D23: 0.2473684211 | E23: 0.2714285714 | F23: 0.331
A24: Employment | B24: 0.01 | C24: 0.01673640167 | D24: 0.03 | E24: 0.04285714286 | F24: 0.025
A25: Environment | B25: 0.05 | C25: 0.280334728 | D25: 0.2526315789 | E25: 0.21 | F25: 0.27
A26: Health & Safety | B26: 0.1 | C26: 0.1171548117 | D26: 0.12 | E26: 0.15 | F26: 0.145
A27: Cultural Heritage | B27: 0.1219512195 | C27: 0.03347280335 | D27: 0.07894736842 | E27: 0.04285714286 | F27: 0.01
A28: Land Rights | B28: 0.1402439024 | C28: 0.05020920502 | D28: 0.06315789474 | E28: 0.1 | F28: 0.035
A29: Physical Damage | B29: 0.04268292683 | C29: 0.03347280335 | D29: 0.09 | E29: 0.06 | F29: 0.134
A30: Other3 | B30: 0.1219512195 | C30: 0.129707113 | D30: 0.1157894737 | E30: 0.1214285714 | F30: 0.05
A33: 1. Includes arts, culture, mitigation, stakeholder engagement and employee programs such as Matching Gifts and United Way.
A34: 2. Additionally, in 2018, we received 630 grievances related to a dust incident at our Sierrita operations in Arizona. These were captured as a single grievance in our system as they resulted from a single root cause. However, all complaints were addressed with stakeholders.
A35: 3. Other includes security, town site or housing and other grievances not listed above.

Sheet Key Economic Contributions
A1: FCX - ESG PERFORMANCE TREND DATA
A2: SOCIAL
A4: 2021 Summary of Key Economic Contributions by Operating Region
A5: ($ millions) | B5: North America1 | C5: South America | D5: Indonesia | E5: Europe | F5: Total
A6: Payments to Suppliers | B6: 3543 | C6: 1493 | D6: 1756 | E6: 3049 | F6: 9841
A7: Employee Wages and Benefits | B7: 1455 | C7: 536 | D7: 366 | E7: 92 | F7: 2449
A8: Payments to Providers of Capital:
A9: Dividends and Distributions | B9: 331 | C9: 325 | D9: 234 | E9: 24 | F9: 914
A10: Interest | B10: 472 | C10: 218 | D10: 15 | E10: 7 | F10: 712
A11: Payments to Governments2 | B11: 34 | C11: 170 | D11: 1168 | E11: 1 | F11: 1373
A12: Community Investments | B12: 45 | C12: 9 | D12: 109 | E12: 1 | F12: 164
A13: Direct Economic Contributions | B13: 5880 | C13: 2751 | D13: 3648 | E13: 3174 | F13: 15453
A15: Capital Expenditures3 | B15: 396 | C15: 162 | D15: 1518 | E15: 39 | F15: 2115
A17: 1. Includes parent company results.
A18: 2. Excludes employee payroll taxes, dividends, property taxes and certain other taxes, which are included in payments to suppliers and dividends.
A19: 3. Includes costs for capital projects, which includes additional payments to suppliers, employee wages and benefits, payments to providers of capital and payments to governments, not included in the table above.
A20: Note: These amounts were derived primarily from FCX’s publicly reported segment data, including amounts for oil and gas operations. For disclosure of FCX’s segment data in accordance with generally accepted accounting principles (GAAP), see FCX’s 2021 Form 10-K pages 166 – 171.

Sheet Cash Payments to Governments
A1: FCX - ESG PERFORMANCE TREND DATA
A2: SOCIAL
A4: 2021 Cash Payments to Governments1
A5: ($ millions) | B5: U.S. | C5: Chile | D5: Peru | E5: Indonesia | F5: Europe2 | G5: Total
A6: Corporate Income Taxes, Net of Refunds | B6: -17 | C6: 9 | D6: 86 | E6: 747 | F6: 1 | G6: 826
A7: Withholding Taxes on Foreign Dividends | B7: 0 | C7: 1 | D7: 6.737667 | E7: 102 | F7: 0 | G7: 110
A8: Employee Payroll Taxes3 | B8: 512 | C8: 13 | D8: 84 | E8: 82 | F8: 35 | G8: 726
A9: Dividends | B9: 0 | C9: 0 | D9: 0 | E9: 234 | F9: 0 | G9: 234
A10: Royalties and Net Severance Taxes | B10: 48 | C10: 2 | D10: 65 | E10: 319 | F10: 0 | G10: 434
A11: Property Taxes | B11: 73.48 | C11: 0 | D11: 0 | E11: 74 | F11: 2 | G11: 149.48
A12: Other Taxes & Fees4 | B12: =40+3 -> 43 | C12: 11 | D12: 67.47157 | E12: 453 | F12: -17 | G12: 557
A13: Total | B13: =SUM(B6:B12) -> 659.48 | C13: 36 | D13: 309.209237 | E13: 2011 | F13: 21 | G13: 3036.48
A15: 1. This schedule reflects a voluntary effort by FCX to capture its cash payments to governments (net of refunds). Amounts presented do not reflect payments on assessment under dispute. Amounts presented reflect credits from prior years, as applicable.
A17: 2. Represents cash payments to governments by FCX's other business groups that are located outside of the countries where FCX conducts its primary operations.
A18: 3. Includes payroll taxes collected on behalf of employees and paid to governments.
A19: 4. Includes customs and export duties, as well as withholding tax on foreign services.
A23: 2021 Reconciliation of Cash Payments to Governments
A24: ($ millions) | B24: North America | C24: South America | D24: Indonesia | E24: Europe | F24: Total
A25: Cash Payments to Governments | B25: 659 | C25: 345 | D25: 2011 | E25: 21 | F25: 3036
A26: Less:
A27: Employee Payroll Taxes | B27: 512 | C27: 97 | D27: 82 | E27: 35 | F27: 726
A28: Property Taxes | B28: 73 | C28: 0 | D28: 74 | E28: 2 | F28: 149
A29: Dividends | B29: 0 | C29: 0 | D29: 234 | E29: 0 | F29: 234
A30: Other Taxes and Fees | B30: 40 | C30: 78 | D30: 453 | E30: -17 | F30: 554
A31: Total Payments to Governments1 | B31: 34 | C31: 170 | D31: 1168 | E31: 1 | F31: 1373
A33: 1. Employee payroll taxes, dividends, property taxes and certain other taxes are included in payments to suppliers, and dividends and distributions in the summary of key economic contributions by operating region table as that data is derived primarily from FCX’s publicly reported segment data. Therefore, these taxes are excluded from cash payments to governments for purposes of reporting direct economic contributions on the Key Economic Contributions tab of this data booklet.

Sheet Economic Value Contributed
A1: FCX - ESG PERFORMANCE TREND DATA
A2: SOCIAL
B3: 2017 | C3: 2018 | D3: 2019 | E3: 2020 | F3: 2021
A4: Economic Value Contributed ($ millions)
A5: Direct Economic Contributions1 | B5: 12158 | C5: 14663 | D5: 13556 | E5: 11374 | F5: 15453
A6: Cash Payments to Governments1,2 | B6: 1346 | C6: 2409 | D6: 1412 | E6: 1038 | F6: 3036
A7: Community Investments | B7: 153 | C7: 155 | D7: 100 | E7: 108 | F7: 164
A9: 1. For further information, please see our 2021 Annual Report on Sustainability and FCX’s 2021 Form 10-K Filing.
A10: 2. Amounts presented do not reflect payments on assessment under dispute. Amounts presented reflect credits from prior years as applicable.

Sheet Human Rights
A1: FCX - ESG PERFORMANCE TREND DATA
A2: GOVERNANCE
B3: 2017 | C3: 2018 | D3: 2019 | E3: 2020 | F3: 2021
A4: Human Rights
A5: Gross Human Rights Violations1 | B5: 0 | C5: 0 | D5: 0 | E5: 0 | F5: 0
A7: 1. There is no uniform definition of gross human rights violations under international law; however, the United Nations Office of the High Commissioner report, “The Corporate Responsibility to Respect Human Rights - An Interpretive Guide,” provides guidance on identifying such types of violations.

Sheet Business Ethics
A1: FCX - ESG PERFORMANCE TREND DATA
A2: GOVERNANCE
B3: 2017 | C3: 2018 | D3: 2019 | E3: 2020 | F3: 2021
A4: Business Ethics
A5: Principles of Business Conduct Training1 Completion Rate - FCX Global | B5: 1 | C5: 1 | D5: 1 | E5: 0.58 | F5: 1
A6: Principles of Business Conduct Training1 Completion Rate - Management Level | B6: 1 | C6: 1 | D6: 1 | E6: 0.82 | F6: 1
A7: Anti-Corruption Training1 Completion Rate | B7: 0.98 | C7: 1 | D7: 1 | E7: 0.82 | F7: 1
A8: FCX Compliance Line Reports | B8: 235 | C8: 257 | D8: 285 | E8: 270 | F8: 205
A10: 1. Because of operational challenges as a result of the COVID-19 pandemic, our 2020 business ethics and anti-corruption training was voluntary for employees.

Sheet Procurement Spend Distribution
A1: FCX - ESG PERFORMANCE TREND DATA
A2: GOVERNANCE
B3: 2017 | C3: 2018 | D3: 2019 | E3: 2020 | F3: 2021
A4: Procurement Spend Distribution1 ($ millions)
A5: Local | B5: =2549+55.2 -> 2604.2 | C5: =3201+59.9 -> 3260.9 | D5: =3552+61.3 -> 3613.3 | E5: =2923.49400424091+56.5 -> 2979.994004 | F5: 3350
A6: National | B6: =4150+183.9 -> 4333.9 | C6: =5115+196.5 -> 5311.5 | D6: =5437+206.2 -> 5643.2 | E6: =4590.2961765462+213.3 -> 4803.596177 | F6: 5489
A7: Outside Home Country | B7: =715.8+1375.2 -> 2091 | C7: =1288+1723.4 -> 3011.4 | D7: =1566+1289.6 -> 2855.6 | E7: =1197.61466614596+1372.3 -> 2569.914666 | F7: 2969
A8: Total Procurement Spend Distribution | B8: =B5+B6+B7 -> 9029.1 | C8: =C5+C6+C7 -> 11583.8 | D8: =D5+D6+D7 -> 12112.1 | E8: =E5+E6+E7 -> 10353.50485 | F8: 11808
A9: % Local | B9: =B5/B8 -> 0.2884229879 | C9: =C5/C8 -> 0.2815052055 | D9: =D5/D8 -> 0.2983215132 | E9: =E5/E8 -> 0.2878246592 | F9: 0.2837059621
A10: % National | B10: =B6/B8 -> 0.4799924688 | C10: =C6/C8 -> 0.4585282895 | D10: =D6/D8 -> 0.465914251 | E10: =E6/E8 -> 0.4639584612 | F10: 0.464854336
A11: % Outside Home Country | B11: =B7/B8 -> 0.2315845433 | C11: =C7/C8 -> 0.2599665049 | D11: =D7/D8 -> 0.2357642358 | E11: =E7/E8 -> 0.2482168796 | F11: 0.2514397019
A13: Number of Local Suppliers | B13: =3794+258 -> 4052 | C13: =3727+257 -> 3984 | D13: =3649+253 -> 3902 | E13: =3379+252 -> 3631 | F13: 3145
A15: 1. Amounts have been adjusted to include spend in Europe and to correct an error identified in the 2017 outside home country spend.

Sheet Procurement - by site
A1: FCX - ESG PERFORMANCE TREND DATA
A2: GOVERNANCE
B3: Spend on Goods | E3: Spend on Services1 | H3: Total Procurement Spend
A4: 2021 Procurement Spend Distribution by Site ($ millions) | B4: Local | C4: % of Total | D4: Total | E4: Local | F4: % of Total | G4: Total
A5: FMC Mining
A6: Bagdad | B6: 132.7972381 | C6: 0.6454398024 | D6: 205.7468994 | E6: 126.4766379 | F6: =E6/G6 -> 0.8215079533 | G6: 153.956681 | H6: 359.7035803
A7: Cerro Verde | B7: 188.7771972 | C7: 0.1964294251 | D7: 961.0433727 | E7: 192.84799 | F7: 0.275080757 | G7: 701.0595437 | H7: 1662.102916
A8: Chino / Cobre | B8: 49.91937414 | C8: 0.5870903184 | D8: 85.02844039 | E8: 34.78457833 | F8: 0.7334327865 | G8: 47.42708394 | H8: 132.4555243
A9: Climax | B9: 22.73413939 | C9: 0.6600608164 | D9: 34.442492 | E9: 22.91245986 | F9: 0.8228095719 | G9: 27.84661317 | H9: 62.28910517
A10: El Abra | B10: 41.22941225 | C10: 0.2260123073 | D10: 182.4210935 | E10: 40.80408721 | F10: 0.2098441021 | G10: 194.4495309 | H10: 376.8706243
A11: Henderson | B11: 16.30468314 | C11: 0.5571644659 | D11: 29.2636809 | E11: 22.2074784 | F11: 0.6143773799 | G11: 36.14631516 | H11: 65.40999606
A12: Morenci | B12: 496.843486 | C12: 0.6389382174 | D12: 777.608026 | E12: 251.4696153 | F12: 0.3511218157 | G12: 716.1890947 | H12: 1493.797121
A13: Safford / Lone Star | B13: 166.9241383 | C13: 0.6350161451 | D13: 262.8659754 | E13: 49.46338524 | F13: 0.7510101577 | G13: 65.86247168 | H13: 328.728447
A14: Sierrita | B14: 154.6893121 | C14: 0.5713638491 | D14: 270.7369609 | E14: 132.3546644 | F14: 0.7978057422 | G14: 165.8983602 | H14: 436.6353211
A15: Tyrone | B15: 39.16761766 | C15: 0.6793901907 | D15: 57.65113803 | E15: 9.51374893 | F15: 0.5574339113 | G15: 17.06704371 | H15: 74.71818174
A16: Total FMC Mining | B16: =SUM(B6:B15) -> 1309.386598 | C16: =B16/D16 -> 0.4567402359 | D16: =SUM(D6:D15) -> 2866.808079 | E16: =SUM(E6:E15) -> 882.8346455 | F16: 0.4152751816 | G16: =SUM(G6:G15) -> 2125.902738 | H16: =SUM(H6:H15) -> 4992.710817
A18: Downstream Processing
A19: Atlantic Copper Smelter & Refinery | B19: 10.75115109 | C19: 0.00493281 | D19: 2179.51859 | E19: 45.37470125 | F19: =E19/G19 -> 0.2149846954 | G19: 211.0601463 | H19: 2390.578736
A20: Fort Madison Moly Special Products | B20: 10.75817046 | C20: 0.5919688313 | D20: 18.17354207 | E20: 14.2128506 | F20: 0.5829476143 | G20: 24.38100826 | H20: 42.55455033
A21: Miami Smelter & Rod | B21: 47.75577626 | C21: 0.5862362758 | D21: 81.46165331 | E21: 131.9453016 | F21: 0.5752386191 | G21: 229.3749014 | H21: 310.8365547
A22: Rotterdam | B22: 0.5248643482 | C22: 0.07191261004 | D22: 7.298641336 | E22: 3.756532589 | F22: 0.2097942105 | G22: 17.90579722 | H22: 25.20443855
A23: Stowmarket | B23: 0.0155880096 | C23: 0.00143016875 | D23: 10.8994198 | E23: 0.02484573062 | F23: 0.005790014082 | G23: 4.291134749 | H23: 15.19055455
A24: El Paso Refinery & Rod | B24: 109.9215432 | C24: 0.4941294782 | D24: 222.4549396 | E24: 45.04324295 | F24: 0.4650515218 | G24: 96.85645748 | H24: 319.3113971
A25: Total Downstream Processing | B25: =SUM(B19:B24) -> 179.7270934 | C25: =B25/D25 -> 0.07132574386 | D25: =SUM(D19:D24) -> 2519.806786 | E25: =SUM(E19:E24) -> 240.3574747 | F25: 0.4116630465 | G25: =SUM(G19:G24) -> 583.8694454 | H25: =SUM(H19:H24) -> 3103.676231
A27: Total PT-FI (Grasberg) | B27: 137.3812253 | C27: 0.09834799325 | D27: 1396.888952 | E27: 277.2261338 | F27: =E27/G27 -> 0.2172129086 | G27: 1276.287563 | H27: 2673.176515
A29: 1. Amounts include items such as utilities and unapplied credits.
A30: Note: Amounts shown do not include corporate, support and administrative spending. For our North American and Chilean operations, local suppliers are identified as those located in the state / region where we have operations. For our European and Peruvian operations, local suppliers are identified as those located in the city in which we operate. For PT-FI, local suppliers are identified as those in the cities / towns surrounding the operations. National suppliers are those located in the same country as the operation. Outside home country suppliers are located in countries other than the operation.

Sheet GHG Emissions
A1: FCX - ESG PERFORMANCE TREND DATA
A2: ENVIRONMENT
B3: 2017 | C3: 2018 | D3: 2019 | E3: 2020 | F3: 2021
A4: GHG Emissions
A5: Scope 1 (CO2e metric tons)
A6: FMC Mining
A7: Bagdad | B7: 131304.7121 | C7: 148112.3342 | D7: 160559.3594 | E7: 162715.2772 | F7: 163182.06
A8: Cerro Verde | B8: 492084.7737 | C8: 578103.4269 | D8: 638972.1618 | E8: 564127.3389 | F8: 644126
A9: Chino / Cobre | B9: 159014.2262 | C9: 167046.8931 | D9: 148576.0101 | E9: 53110.82537 | F9: 100331.16
A10: Climax | B10: 37165.34932 | C10: 41949.70969 | D10: 51414.35551 | E10: 34558.29011 | F10: 29590.91
A11: El Abra | B11: 90178.43025 | C11: 133702.954 | D11: 141452.3374 | E11: 80540 | F11: 61937.41
A12: Henderson | B12: 17670.49774 | C12: 18860.25719 | D12: 19965.71811 | E12: 17232 | F12: 17817.27
A13: Morenci | B13: 533444.178 | C13: 615255.7409 | D13: 677159.4976 | E13: 627797.1249 | F13: 620636.35
A14: Safford / Lone Star | B14: 145393.8504 | C14: 177236.3775 | D14: 217855.4219 | E14: 225196.5415 | F14: 185084.48
A15: Sierrita | B15: 123530.2584 | C15: 133626.8382 | D15: 151817.507 | E15: 119190.2418 | F15: 154977.95
A16: Tyrone | B16: 33621.02262 | C16: 35825.67247 | D16: 37226.99398 | E16: 41910.10735 | F16: 40622.22
A17: Total FMC Mining | B17: =SUM(B7:B16) -> 1763407.299 | C17: =SUM(C7:C16) -> 2049720.204 | D17: =SUM(D7:D16) -> 2244999.363 | E17: 1926377.747 | F17: =SUM(F7:F16) -> 2018305.81
A19: Downstream Processing
A20: Atlantic Copper Smelter & Refinery1 | B20: 55128.72437 | C20: 57766.72129 | D20: 59298.63058 | E20: 60149.48077 | F20: 53427
A21: Bayway Rod & Wire | B21: 922.4221656 | C21: 1115.762969 | D21: 916.129875 | E21: - | F21: -
A22: Fort Madison Moly Special Products | B22: 17344.10987 | C22: 14110.68227 | D22: 16708.94167 | E22: 17106.68831 | F22: 16609.82
A23: Kokkola Cobalt Refinery | B23: 5286.953319 | C23: 4692.605704 | D23: 4277.105365 | E23: 3184.157191 | F23: -
A24: Miami Smelter & Rod | B24: 83695.48001 | C24: 99751.90118 | D24: 93839.6963 | E24: 98602.18932 | F24: 93234.04
A25: Norwich Rod | B25: 18511.27748 | C25: 18463.44557 | D25: 17735.43863 | E25: - | F25: -
A26: Rotterdam | B26: 7194.212076 | C26: 6925.207712 | D26: 8404.189378 | E26: 8238.179735 | F26: 9365.48
A27: Stowmarket | B27: 136.0963503 | C27: 113.4024769 | D27: 119.2918284 | E27: 88.28203716 | F27: 106.68
A28: El Paso Refinery & Rod | B28: 56170.07766 | C28: 60472.64524 | D28: 71105.39761 | E28: 85612.88579 | F28: 100042.88
A29: Total Downstream Processing | B29: =SUM(B20:B28) -> 244389.3533 | C29: =SUM(C20:C28) -> 263412.3744 | D29: =SUM(D20:D28) -> 272404.8212 | E29: =SUM(E20:E28) -> 272981.8632 | F29: =SUM(F20:F28) -> 272785.9
A31: PT-FI (Grasberg) | B31: 2257149.193 | C31: 2651587.29 | D31: 2212265.31 | E31: 2034938.728 | F31: 2284467.26
A33: Scope 1 Total - FCX Global | B33: =B17+B29+B31 -> 4264945.845 | C33: =C17+C29+C31 -> 4964719.868 | D33: =D17+D29+D31 -> 4729669.494 | E33: =E17+E29+E31 -> 4234298.338 | F33: =F17+F29+F31 -> 4575558.97
A35: Scope 22 (CO2e metric tons)
A36: FMC Mining
A37: Bagdad | B37: 238380.2321 | C37: 254016 | D37: 231111.44 | E37: 239608 | F37: 160232.52
A38: Cerro Verde | B38: 605993.032 | C38: 264777.6115 | D38: 275538.5815 | E38: 231339 | F38: 315557.1241
A39: Chino / Cobre | B39: 364726 | C39: 228615.0398 | D39: 226323.0659 | E39: 100720 | F39: 130793.3
A40: Climax | B40: 107602.501 | C40: 98908.59132 | D40: 96278.13657 | E40: 66230.51838 | F40: 62348.03
A41: El Abra | B41: 406976.77 | C41: 259702.8662 | D41: 238719.936 | E41: 224033.16 | F41: 222730.26
A42: Henderson | B42: 115481.8788 | C42: 105672.1102 | D42: 110116.4975 | E42: 103584.4054 | F42: 87557.29
A43: Morenci | B43: 1023518.089 | C43: 985532.5327 | D43: 970178.0638 | E43: 949081 | F43: 763266.92
A44: Safford / Lone Star | B44: 99909.56928 | C44: 88718.25356 | D44: 98252.26528 | E44: 138629 | F44: 156798.18
A45: Sierrita | B45: 233126.7738 | C45: 389041.3056 | D45: 352222.0978 | E45: 408617 | F45: 356594.12
A46: Tyrone | B46: 154103.4795 | C46: 100009.2347 | D46: 106392.0225 | E46: 80071.02589 | F46: 91193.68
A47: Total FMC Mining | B47: =SUM(B37:B46) -> 3349818.325 | C47: =SUM(C37:C46) -> 2774993.546 | D47: =SUM(D37:D46) -> 2705132.107 | E47: =SUM(E37:E46) -> 2541913.11 | F47: =SUM(F37:F46) -> 2347071.424
A49: Downstream Processing
A50: Atlantic Copper Smelter & Refinery1,3 | B50: 81987 | C50: 119098 | D50: 86745 | E50: 65954 | F50: 59243.94
A51: Bayway Rod & Wire | B51: 767.8392273 | C51: 764.3567551 | D51: 772.9644773 | E51: - | F51: -
A52: Fort Madison Moly Special Products | B52: 19837.13797 | C52: 21088.33227 | D52: 22136.27382 | E52: 15698 | F52: 8606.06
A53: Kokkola Cobalt Refinery | B53: 22350.18625 | C53: 21840.28245 | D53: 22513.05 | E53: 6674.78 | F53: -
A54: Miami Smelter & Rod | B54: 175124.083 | C54: 235059.0543 | D54: 204127.7568 | E54: 207312 | F54: 183425.44
A55: Norwich Rod | B55: 5379.810578 | C55: 5448.726572 | D55: 4906.919591 | E55: - | F55: -
A56: Rotterdam3 | B56: 0 | C56: 0 | D56: 0 | E56: 0 | F56: 0
A57: Stowmarket | B57: 740.5616628 | C57: 507.5473407 | D57: 447.2506 | E57: 286.29592 | F57: 315.1
A58: El Paso Refinery & Rod | B58: 35111.66746 | C58: 18843.30151 | D58: 13077.918 | E58: 18292.66286 | F58: 15492.62
A59: Total Downstream Processing | B59: =SUM(B50:B58) -> 341298.2861 | C59: =SUM(C50:C58) -> 422649.6012 | D59: =SUM(D50:D58) -> 354727.1333 | E59: =SUM(E50:E58) -> 314217.7388 | F59: =SUM(F50:F58) -> 267083.16
A61: PT-FI (Grasberg)4 | B61: 0 | C61: 0 | D61: 0 | E61: 0 | F61: 0
A63: Scope 2 Total - FCX Global | B63: =B47+B59+B61 -> 3691116.611 | C63: =C47+C59+C61 -> 3197643.147 | D63: =D47+D59+D61 -> 3059859.24 | E63: =E47+E59+E61 -> 2856130.848 | F63: =F47+F59+F61 -> 2614154.584
A65: Scope 1 + 22 (CO2e metric tons)
A66: FMC Mining | B66: =+B47+B17 -> 5113225.624 | C66: =+C47+C17 -> 4824713.75 | D66: =+D47+D17 -> 4950131.47 | E66: =+E47+E17 -> 4468290.857 | F66: =F17+F47 -> 4365377.234
A67: Downstream Processing | B67: =B29+B59 -> 585687.6394 | C67: =C29+C59 -> 686061.9756 | D67: =D29+D59 -> 627131.9545 | E67: =E29+E59 -> 587199.6019 | F67: =F29+F59 -> 539869.06
A68: PT-FI (Grasberg) | B68: =B31+B61 -> 2257149.193 | C68: =C31+C61 -> 2651587.29 | D68: =D31+D61 -> 2212265.31 | E68: =E31+E61 -> 2034938.728 | F68: =F31+F61 -> 2284467.26
A69: Scope 1 + 2 Total - FCX Global | B69: =+B66+B67+B68 -> 7956062.456 | C69: =+C66+C67+C68 -> 8162363.015 | D69: =+D66+D67+D68 -> 7789528.734 | E69: =+E66+E67+E68 -> 7090429.187 | F69: =+F66+F67+F68 -> 7189713.554
A71: Scope 35 (CO2e metric tons)
A72: Scope 3 Total - FCX Global | B72: 706214 | C72: 750332 | D72: 692336 | E72: 1729251 | F72: 5179522
A74: 1. Adjusted 2018, 2019 and 2020 emissions data at Atlantic Copper reflect improvements in our reporting and calculation process to a market-based method and to align with EU ETS reporting expectations. These changes have been validated by GHD Limited, FCX’s third-party GHG emissions inventory verifier.
A75: 2. 2017 Scope 2 emissions were calculated using a location-based method; since 2018, Scope 2 emissions have been calculated using a market-based method, where available. The market-based calculation of Scope 2 emissions utilizes emission factors that are available at the time of inventory close. Emission factors are determined by each market according to their reporting schedule. Therefore, certain emission factors used in market-based calculations may be up to one year in arrears due to lag time. As required by the GHG Protocol, FCX’s location-based 2021 Scope 2 emissions are reported on the "Dual Reporting” tab.
A76: 3. At our Rotterdam processing facility, we purchase renewable energy certificates (RECs) for all electricity. Since 2020, at our Atlantic Copper Smelter & Refinery, we have purchased RECs for a portion of our electricity.
A77: 4. PT-FI generates its own electricity. As a result, there are no Scope 2 emissions associated with PT-FI operations.
A78: 5. Our 2021 Scope 3 figure differs from the number reported in our 2021 Annual Report on Sustainability due to our updated Scope 3 emissions estimates, as described in the Scope 3 section of our 2021 Climate Report.
A79: Note: GHG emissions data have been prepared in accordance with the GHG Protocol. FCX reports GHG emissions on a 100% operational basis. FCX's GHG emissions verification statement is available at fcx.com/sustainability. In September 2021, FCX completed the sale of its remaining cobalt business based in Kokkola, Finland, and in 2020, FCX closed and decommissioned its Bayway Rod & Wire and Norwich Rod facilities.

Sheet GHG Emissions - 2030 Targets
A1: FCX - ESG PERFORMANCE TREND DATA
A2: ENVIRONMENT
B3: Baseline Year 2018 | C3: 2019 | D3: 2020 | E3: 2021 | F3: Target Year 2030
A4: 2030 GHG Emissions Reduction Target Performance
A5: Intensity Reduction Targets¹
A6: Americas Copper2 - 15% intensity reduction | B6: 3.72 | C6: 3.7 | D6: 3.81 | E6: 3.59 | F6: 3.17
A7: PT-FI (Grasberg)3 - 30% intensity reduction | B7: 4.76 | C7: 7.73 | D7: 5.4 | E7: 3.71 | F7: 3.34
A8: Absolute Reduction Targets4
A9: Atlantic Copper Smelter & Refinery - 50% absolute reduction | B9: 176865 | C9: 146044 | D9: 126103 | E9: 112671 | F9: 88432
A10: Primary Molybdenum Sites5 - 35% absolute reduction | B10: 308136 | C10: 325591 | D10: 263023 | E10: 232317 | F10: 200288
A12: 1. Intensity reduction targets (CO2e metric tons / metric ton copper) include total (Scope 1 and 2) emissions and do not include by-products in the denominator. Baseline and target are calculated and therefore may differ due to rounding.
A13: 2. Americas Copper (for target) includes Bagdad, Cerro Verde, Chino (including Cobre), El Abra, Morenci, Safford (including Lone Star), Sierrita and Tyrone mines as well as the Miami Smelter and El Paso Refinery. This target includes all payable copper, including payable copper in concentrate and cathode, but excludes rod and wire.
A14: 3. Our PT-FI intensity reduction target is based on payable copper produced in concentrate. PT-FI concentrate is currently smelted and refined by PT Smelting (PTS) and third-party smelters / refineries whose emissions are currently accounted for as our Scope 3 emissions therefore not included in this target. Upon completion of the PTS expansion after which PT-FI expects to have majority ownership and the construction of the greenfield smelter at Gresik, GHG emissions for smelting and refining are expected to shift from Scope 3 to Scopes 1 and / or 2, and we will adjust our target and baseline in line with the GHG Protocol at such time.
A15: 4. Absolute targets include total (Scope 1 and 2) emissions.
A16: 5. Primary Molybdenum Sites include Climax and Henderson mines located in Colorado, U.S., and downstream molybdenum processing facilities at Fort Madison, Rotterdam and Stowmarket.

Sheet Dual Reporting
A1: FCX - ESG PERFORMANCE TREND DATA
A2: ENVIRONMENT
B3: Location-Based1 | C3: Market-Based2
A4: 2021 GHG Emissions - Scope 2 Dual Reporting
A5: Scope 2 (CO2e metric tons)
A6: FMC Mining
A7: Bagdad | B7: 172043.5453 | C7: 160232.52
A8: Cerro Verde | B8: 697289.7425 | C8: 315557.1241
A9: Chino / Cobre | B9: 169514.0745 | C9: 130793.3
A10: Climax | B10: 72590.97192 | C10: 62348.03
A11: El Abra | B11: 222730.256 | C11: 222730.26
A12: Henderson | B12: 101941.7783 | C12: 87557.29
A13: Morenci | B13: 728400.3666 | C13: 763266.92
A14: Safford / Lone Star | B14: 149577.3072 | C14: 156798.18
A15: Sierrita | B15: 202335.4 | C15: 356594.12
A16: Tyrone | B16: 118976.2741 | C16: 91193.68
A17: Total FMC Mining | B17: =SUM(B7:B16) -> 2635399.716 | C17: =SUM(C7:C16) -> 2347071.424
A19: Downstream Processing
A20: Atlantic Copper Smelter & Refinery | B20: 42317.1 | C20: 59243.94
A21: Fort Madison Moly Special Products | B21: 8606.06 | C21: 8606.06
A22: Kokkola Cobalt Refinery | B22: - | C22: -
A23: Miami Smelter & Rod | B23: 154639.8549 | C23: 183425.44
A24: Rotterdam | B24: 4812.9075 | C24: 0
A25: Stowmarket | B25: 315.1 | C25: 315.1
A26: El Paso Refinery & Rod | B26: 25974.43189 | C26: 15492.62
A27: Total Downstream Processing | B27: =SUM(B20:B26) -> 236665.4543 | C27: =SUM(C20:C26) -> 267083.16
A29: Total PT-FI (Grasberg)3 | B29: 0 | C29: 0
A31: Scope 2 Total - FCX Global | B31: =B17+B27+B29 -> 2872065.171 | C31: =C17+C27+C29 -> 2614154.584
A33: 1. Location-based emission factors are sourced from publicly available regulatory or similar reports from regions where FCX operates.
A34: 2. Market-based emission factors were not applicable or available for certain markets were we operate, and therefore, location-based emission factors have been used in accordance with GHG Protocol - Scope 2 Guidance. The market-based calculation of Scope 2 emissions utilizes emission factors that are available at the time of inventory close. Emission factors are determined by each market according to their reporting schedule. Therefore, certain emission factors used in market-based calculations may be up to one year in arrears due to lag time.
A35: 3. PT-FI generates its own electricity. As a result, there are no Scope 2 emissions associated with PT-FI operations.
A36: Note: GHG emissions data have been prepared in accordance with the GHG Protocol. FCX reports GHG emissions on a 100% operational basis. FCX's GHG emissions verification statement is available at fcx.com/sustainability. In September 2021, FCX completed the sale of its remaining cobalt business based in Kokkola, Finland, and therefore its data have not been included in this table.

Sheet Scope 3 Inventory Development
A1: FCX - ESG PERFORMANCE TREND DATA
A2: ENVIRONMENT
B3: PHASE 1 OF INVENTORY REVIEW | D3: PHASE 2 OF INVENTORY REVIEW
B4: Estimated FY 2020 Emissions | D4: Estimated FY 2021 Emissions
A5: Scope 3 Emissions Inventory Development (CO2e metric tons) | B5: As of 2020 Annual Report on Sustainability | C5: As of 2020 Climate Report | D5: As of 2021 Annual Report on Sustainability | E5: As of 2021 Climate Report
A6: Upstream
A7: Category 1: Purchased goods and services | B7: 323012 | C7: 323012 | D7: 368718 | E7: 2849703
A8: Category 2: Capital goods | B8: To be calculated | C8: To be calculated | D8: To be calculated | E8: Included above
A9: Category 3: Fuel and energy-related activities | B9: To be calculated | C9: 225358 | D9: 299313 | E9: 551616
A10: Category 4: Upstream transportation and distribution | B10: To be calculated | C10: To be calculated | D10: To be calculated | E10: 426360
A11: Category 5: Waste generated in operations | B11: Minor impact | C11: Minor Impact | D11: Minor Impact | E11: 8665
A12: Category 6: Business travel | B12: 1684 | C12: 1684 | D12: 1315 | E12: 1315
A13: Category 7: Employee commuting | B13: Minor Impact | C13: Minor Impact | D13: Minor Impact | E13: 14485
A14: Category 8: Upstream leased assets | B14: Not applicable | C14: Not applicable | D14: Not applicable | E14: Not applicable
A16: Downstream
A17: Category 9: Downstream transportation and distribution | B17: To be calculated | C17: 336159 | D17: 442010 | E17: 442010
A18: Category 10: Processing of sold products | B18: 275848 | C18: 843038 | D18: 885367 | E18: 885367
A19: Category 11: Use of sold products | B19: Minor Impact | C19: Minor Impact | D19: Minor Impact | E19: Minor Impact
A20: Category 12: End-of-life treatment of sold products | B20: Minor Impact | C20: Minor Impact | D20: Minor Impact | E20: Minor Impact
A21: Category 13: Downstream leased assets | B21: Not applicable | C21: Not applicable | D21: Not applicable | E21: Not applicable
A22: Category 14: Franchises | B22: Not applicable | C22: Not applicable | D22: Not applicable | E22: Not applicable
A23: Category 15: Investments | B23: Not applicable | C23: Not applicable | D23: Not applicable | E23: Not applicable
A24: Total Scope 3 Emissions | B24: 600544 | C24: 1729251 | D24: 1996723 | E24: 5179522
A25: Note: GHG emissions data have been prepared in accordance with the GHG Protocol, and we have expanded our Scope 3 emissions calculations to include additional categories. A majority of Category 1 emissions data were calculated using environmentally extended input-output (EEIO) analysis, using purchasing data and the U.S. Environmental Protection Agency's emission factors. Emissions estimates for Category 1 and Category 3 have been updated to include emissions associated with lime, chemicals, reagents, tires, explosives, and all remaining mining supplies and emissions associated with extraction, refining and transportation of raw fuels sourced to FCX sites and third parties used in the generation of electricity (natural gas, gasoline, coal, and other fuels) prior to combustion, respectively. FCX reports GHG emissions on a 100% operational basis. FCX's GHG emissions verification statement is available on FCX's website at fcx.com/sustainability.
A27: PHASE 2: SCOPE 3 CALCULATION METHODOLOGY
A28: Scope 3 estimates by nature are imprecise; they are generated by other companies in often complex supply chains. To estimate these emissions (with exception of Categories 9 & 10), Freeport uses a hybrid financial spend-based method for goods, services, and other Scope 3 activities. This method uses best available emission factors – process-based Life Cycle Assessment (LCA) factors for inputs where the relationship between spend and materials are easily understood (e.g., copper concentrate or sulfuric acid) and environmentally extended input-output (EEIO) emission factors for financial spend that is more difficult to model. This method was employed for the following Scope 3 categories:
A29: 1. Category 1: Purchased goods and services (including Category 2: Capital Goods);
A30: 2. Category 3: Fuel- and energy-related activities;
A31: 3. Category 4: Upstream transportation;
A32: 4. Category 5: Waste generated in operations; and
A33: 5. Category 7: Employee commuting
A35: As described by the GHG Protocol Corporate Value Chain (Scope 3) Standard Guidance, “EEIO models are derived by allocating national GHG emissions to groups of finished products based on economic flows between industry sectors.” Spend data for specific categories are mapped to corresponding industry sectors and then multiplied by cradle-to-gate emission factors for the sector to provide estimated carbon emissions. As a result of this approach, while these emission factors are indicative in nature, the results could significantly over (or in some cases under) estimate emissions. However, they provide a first estimate which can be complemented over time with process-based LCA emission factors or actual data provided by suppliers. For copper purchases (e.g. cathode, concentrate, and scrap), rather than EEIO factors, we assigned an LCA based emission factor from third party databases. This enables us a higher quality dataset for what makes up approximately 20% or more of Category 1 emissions. Most of this sub-set is incurred by Atlantic Copper, which, as noted previously, purchases around 70% of its copper concentrates externally.

Sheet Air Emissions
A1: FCX - ESG PERFORMANCE TREND DATA
A2: ENVIRONMENT
B3: 2017 | C3: 2018 | D3: 2019 | E3: 2020 | F3: 2021
A4: Air Emissions (thousand metric tons)
A5: CO, carbon monoxide | B5: 102.8 | C5: 109.7 | D5: 117.6 | E5: 98.184 | F5: 96.14705
A6: NOX (excluding N2O), oxides of nitrogen | B6: 39.09583 | C6: 41.5272 | D6: 47.88399 | E6: 39.88446 | F6: 47.45811
A7: SOX, oxides of sulfur | B7: 11.11043 | C7: 12.24521 | D7: 7.16914 | E7: 7.27452 | F7: 6.98785
A8: PM10, particulate matter | B8: 15.3484 | C8: 17.25662 | D8: 14.19757 | E8: 13.08317 | F8: 13.02452
A9: Hg, mercury | B9: 0.00021 | C9: 6e-05 | D9: 0.0001 | E9: 6e-05 | F9: 0.00014
A10: Pb, lead | B10: 0.02506 | C10: 0.02779 | D10: 0.02006 | E10: 0.01962 | F10: 0.01155
A11: VOCs, non-methane volatile organic compounds | B11: 8.8 | C11: 9.4 | D11: 10.13219 | E11: 8.32688 | F11: 8.49096
A12: Ozone Depleting Substances, CFC-11 equivalent | B12: 0.00012 | C12: 8e-05 | D12: 2e-05 | E12: 2e-05 | F12: 2e-05

Sheet Energy Consumption - by site
A1: FCX - ESG PERFORMANCE TREND DATA
A2: ENVIRONMENT
B3: 2017 | C3: 2018 | D3: 2019 | E3: 2020 | F3: 2021
A4: Energy Consumption by Site
A5: Direct Energy (terajoules)
A6: FMC Mining
A7: Bagdad | B7: 1667 | C7: 1873 | D7: 2031 | E7: 2077 | F7: 2024.4
A8: Cerro Verde | B8: 6123 | C8: 7193 | D8: 7946 | E8: 7093 | F8: 7980.66
A9: Chino / Cobre | B9: 1918 | C9: 2131 | D9: 1803 | E9: 706 | F9: 1473.7
A10: Climax | B10: 530 | C10: 584 | D10: 694 | E10: 497 | F10: 424.49
A11: El Abra1 | B11: 1132 | C11: 1676 | D11: 1767 | E11: 1031 | F11: 756.89
A12: Henderson | B12: 305 | C12: 319 | D12: 324 | E12: 325 | F12: 332.88
A13: Morenci | B13: 6834 | C13: 7938 | D13: 8749 | E13: 8088 | F13: 7975.25
A14: Safford / Lone Star | B14: 629 | C14: 1262 | D14: 1667 | E14: 2008 | F14: 2244.03
A15: Sierrita | B15: 1586 | C15: 1699 | D15: 1924 | E15: 1513 | F15: 1954.88
A16: Tyrone | B16: 414 | C16: 443 | D16: 456 | E16: 515 | F16: 501.65
A17: Total FMC Mining | B17: 21138 | C17: 25117 | D17: 27361 | E17: 23853 | F17: =SUM(F7:F16) -> 25668.83
A19: Downstream Processing
A20: Atlantic Copper Smelter & Refinery | B20: 881 | C20: 846 | D20: 874 | E20: 895 | F20: 800.19
A21: Bayway Rod & Wire | B21: 18 | C21: 22 | D21: 18 | E21: - | F21: -
A22: Fort Madison Moly Special Products | B22: 332 | C22: 276 | D22: 325 | E22: 339 | F22: 327.47
A23: Kokkola Cobalt Refinery | B23: 88 | C23: 78 | D23: 71 | E23: 53 | F23: 0
A24: Miami Smelter & Rod | B24: 1586 | C24: 1921 | D24: 1795 | E24: 1910 | F24: 1790.38
A25: Norwich Rod | B25: 367 | C25: 366 | D25: 351 | E25: - | F25: -
A26: Rotterdam | B26: 143 | C26: 137 | D26: 164 | E26: 163 | F26: 184.73
A27: Stowmarket | B27: 1 | C27: 2 | D27: 2 | E27: 1 | F27: 1.56
A28: El Paso Refinery & Rod | B28: 1112 | C28: 1197 | D28: 1408 | E28: 1694 | F28: 1981.39
A29: Total Downstream Processing | B29: 4529 | C29: 4844 | D29: 5009 | E29: 5056 | F29: =SUM(F20:F28) -> 5085.72
A31: Total PT-FI (Grasberg) | B31: 27132 | C31: 31357 | D31: 26066 | E31: 24217 | F31: 26422.23
A33: Direct Energy Total - FCX Global | B33: 52799 | C33: 61318 | D33: 58436 | E33: 53127 | F33: =+F31+F29+F17 -> 57176.78
A35: Indirect Energy (terajoules)
A36: FMC Mining
A37: Bagdad | B37: 2017 | C37: 2072 | D37: 2080 | E37: 2088 | F37: 1852.77
A38: Cerro Verde | B38: 12179 | C38: 12731 | D38: 12868 | E38: 11005 | F38: 12457.78
A39: Chino / Cobre | B39: 1827 | C39: 1724 | D39: 1641 | E39: 886 | F39: 1067.86
A40: Climax | B40: 577 | C40: 644 | D40: 674 | E40: 464 | F40: 472.53
A41: El Abra | B41: 1895 | C41: 2233 | D41: 2119 | E41: 1988 | F41: 2052.29
A42: Henderson | B42: 619 | C42: 689 | D42: 771 | E42: 726 | F42: 663.59
A43: Morenci | B43: 8662 | C43: 8608 | D43: 8521 | E43: 8251 | F43: 7844.26
A44: Safford / Lone Star | B44: 846 | C44: 775 | D44: 863 | E44: 1203 | F44: 1610.82
A45: Sierrita | B45: 1973 | C45: 2067 | D45: 1996 | E45: 2315 | F45: 2178.98
A46: Tyrone | B46: 772 | C46: 755 | D46: 771 | E46: 715 | F46: 749.5
A47: Total FMC Mining | B47: 31369 | C47: 32297 | D47: 32305 | E47: 29642 | F47: =SUM(F37:F46) -> 30950.38
A49: Downstream Processing
A50: Atlantic Copper Smelter & Refinery | B50: 1181 | C50: 1046 | D50: 1007 | E50: 1032 | F50: 1015.61
A51: Bayway Rod & Wire | B51: 11 | C51: 12 | D51: 12 | E51: - | F51: -
A52: Fort Madison Moly Special Products | B52: 157 | C52: 155 | D52: 163 | E52: 145 | F52: 110.79
A53: Kokkola Cobalt Refinery | B53: 328 | C53: 321 | D53: 331 | E53: 98 | F53: -
A54: Miami Smelter & Rod | B54: 1482 | C54: 1917 | D54: 1729 | E54: 1889 | F54: 1665.34
A55: Norwich Rod | B55: 85 | C55: 85 | D55: 76 | E55: - | F55: -
A56: Rotterdam | B56: 60 | C56: 64 | D56: 61 | E56: 46 | F56: 47.07
A57: Stowmarket | B57: 6 | C57: 6 | D57: 6 | E57: 4 | F57: 5.34
A58: El Paso Refinery & Rod | B58: 264 | C58: 278 | D58: 191 | E58: 269 | F58: 240.4
A59: Total Downstream Processing | B59: 3574 | C59: 3884 | D59: 3577 | E59: 3483 | F59: =SUM(F50:F58) -> 3084.55
A61: Total PT-FI (Grasberg)2 | B61: 0 | C61: 0 | D61: 0 | E61: 0 | F61: 0
A63: Indirect Energy Total - FCX Global | B63: 34943 | C63: 36182 | D63: 35881 | E63: 33125 | F63: =F61+F59+F47 -> 34034.93
A65: Total Energy (terajoules)
A66: FMC Mining | B66: 52507 | C66: 57414 | D66: 59666 | E66: 53495 | F66: =F17+F47 -> 56619.21
A67: Downstream Processing | B67: 8103 | C67: 8729 | D67: 8586 | E67: 8540 | F67: =+F29+F59 -> 8170.27
A68: PT-FI (Grasberg) | B68: 27132 | C68: 31357 | D68: 26066 | E68: 24217 | F68: =F31+F61 -> 26422.23
A69: Total - FCX Global | B69: 87741 | C69: 97500 | D69: 94317 | E69: 86252 | F69: =F66+F67+F68 -> 91211.71
A71: 1. El Abra has a regenerative downhill conveyor system that is 20km in length that generates approximately 31 TJ of electricity for use on site as it transports material for processing. This was included in Direct Energy in 2017-2020 but has not been included in 2021 to align with the GRI definition of total energy consumption.
A72: 2. PT-FI generates its own electricity; as a result, there are no indirect energy entries in this table.
A73: Note: In September 2021, FCX completed the sale of its remaining cobalt business based in Kokkola, Finland, and in 2020, FCX closed and decommissioned its Bayway Rod & Wire and Norwich Rod facilities.

Sheet 2021 Energy Consumption - Type
A1: FCX - ESG PERFORMANCE TREND DATA
A2: 2021 ENERGY CONSUMPTION BY TYPE | B2: Direct Energy | E2: Indirect Energy | H2: Total Energy | K2: % Renewable
A3: (terajoules, except percentages) | B3: Renewable | C3: Nonrenewable | D3: Total | E3: Renewable | F3: Nonrenewable | G3: Total | H3: Renewable | I3: Nonrenewable | J3: Total
A4: FMC Mining
A5: Bagdad | B5: 0 | C5: 2024.4 | D5: =B5+C5 -> 2024.4 | E5: 389.08 | F5: 1463.68 | G5: =E5+F5 -> 1852.76 | H5: 389.08 | I5: 3488.08 | J5: =H5+I5 -> 3877.16 | K5: =H5/J5 -> 0.1003518039
A6: Cerro Verde | B6: 397.515 | C6: 7583.145 | D6: =B6+C6 -> 7980.66 | E6: 9469.16 | F6: 2988.62 | G6: =E6+F6 -> 12457.78 | H6: 9866.675 | I6: 10571.765 | J6: =H6+I6 -> 20438.44 | K6: =H6/J6 -> 0.4827508851
A7: Chino / Cobre | B7: 0 | C7: 1473.7 | D7: 1473.7 | E7: 53.39 | F7: 1014.47 | G7: 1067.86 | H7: 53.39 | I7: 2488.17 | J7: 2541.56 | K7: 0.02100678324
A8: Climax | B8: 0 | C8: 424.49 | D8: 424.49 | E8: 170.11 | F8: 302.42 | G8: 472.53 | H8: 170.11 | I8: 726.91 | J8: 897.02 | K8: 0.189639027
A9: El Abra | B9: 0 | C9: 756.88 | D9: 756.88 | E9: 876.33 | F9: 1175.96 | G9: 2052.29 | H9: 876.33 | I9: 1932.84 | J9: 2809.17 | K9: 0.3119533528
A10: Henderson | B10: 10.82 | C10: 322.06 | D10: 332.88 | E10: 238.89 | F10: 424.7 | G10: 663.59 | H10: 249.71 | I10: 746.76 | J10: 996.47 | K10: 0.2505945989
A11: Morenci | B11: 345.1915 | C11: 7630.0585 | D11: 7975.25 | E11: 705.98 | F11: 7138.28 | G11: 7844.26 | H11: 1051.1715 | I11: 14768.3385 | J11: 15819.51 | K11: 0.06644779137
A12: Safford / Lone Star | B12: 0 | C12: 2244.03 | D12: 2244.03 | E12: 144.97 | F12: 1465.85 | G12: 1610.82 | H12: 144.97 | I12: 3709.88 | J12: 3854.85 | K12: 0.03760717019
A13: Sierrita | B13: 0 | C13: 1954.88 | D13: 1954.88 | E13: 121.37 | F13: 2057.61 | G13: 2178.98 | H13: 121.37 | I13: 4012.49 | J13: 4133.86 | K13: 0.02935996865
A14: Tyrone | B14: 0 | C14: 501.65 | D14: 501.65 | E14: 35.98 | F14: 713.52 | G14: 749.5 | H14: 35.98 | I14: 1215.17 | J14: 1251.15 | K14: 0.02875754306
A15: Total FMC Mining | B15: =SUM(B5:B14) -> 753.5265 | C15: =SUM(C5:C14) -> 24915.2935 | D15: =SUM(D5:D14) -> 25668.82 | E15: =SUM(E5:E14) -> 12205.26 | F15: 18745.11 | G15: 30950.37 | H15: 12958.7865 | I15: 43660.4035 | J15: 56619.19 | K15: 0.2288762255
A17: Downstream Processing
A18: Atlantic Copper Smelter & Refinery | B18: 0 | C18: 800.19 | D18: =B18+C18 -> 800.19 | E18: 209.22 | F18: 806.39 | G18: =E18+F18 -> 1015.61 | H18: 209.22 | I18: 1606.58 | J18: =H18+I18 -> 1815.8 | K18: =H18/J18 -> 0.1152219407
A19: Fort Madison Moly Special Products | B19: 0 | C19: 327.47 | D19: 327.47 | E19: 65.7 | F19: 45.09 | G19: 110.79 | H19: 65.7 | I19: 372.56 | J19: 438.26 | K19: 0.1499110117
A20: Kokkola Cobalt Refinery | B20: - | C20: - | D20: - | E20: - | F20: - | G20: - | H20: - | I20: - | J20: - | K20: -
A21: Miami Smelter & Rod | B21: 0 | C21: 1790.38 | D21: 1790.38 | E21: 262.79 | F21: 1402.55 | G21: 1665.34 | H21: 262.79 | I21: 3192.93 | J21: 3455.72 | K21: 0.0760449342
A22: Rotterdam | B22: 0 | C22: 184.73 | D22: 184.73 | E22: 47.07 | F22: 0 | G22: 47.07 | H22: 47.07 | I22: 184.73 | J22: 231.8 | K22: 0.2030629853
A23: Stowmarket | B23: 0 | C23: 1.56 | D23: 1.56 | E23: 1.51 | F23: 3.83 | G23: 5.34 | H23: 1.51 | I23: 5.39 | J23: 6.9 | K23: 0.2188405797
A24: El Paso Refinery & Rod | B24: 0 | C24: 1981.39 | D24: 1981.39 | E24: 6.49 | F24: 233.91 | G24: 240.4 | H24: 6.49 | I24: 2215.3 | J24: 2221.79 | K24: 0.002921068148
A25: Total Downstream Processing | B25: =SUM(B18:B24) -> 0 | C25: =SUM(C18:C24) -> 5085.72 | D25: 5085.72 | E25: 592.78 | F25: 2491.77 | G25: 3084.55 | H25: 592.78 | I25: 7577.49 | J25: 8170.27 | K25: 0.07255329383
A27: Total PT-FI (Grasberg) | B27: 108.25 | C27: 26313.98 | D27: =B27+C27 -> 26422.23 | E27: 0 | F27: 0 | G27: =E27+F27 -> 0 | H27: =B27+E27 -> 108.25 | I27: =C27+F27 -> 26313.98 | J27: =H27+I27 -> 26422.23 | K27: 0.004096928987
A29: Total - FCX Global | B29: =B27+B25+B15 -> 861.7765 | C29: 56314.9935 | D29: 57176.77 | E29: 12798.04 | F29: 21236.88 | G29: 34034.92 | H29: 13659.8165 | I29: 77551.8735 | J29: =J27+J25+J15 -> 91211.69 | K29: 0.1497594935
A31: Note: In September 2021, FCX completed the sale of its remaining cobalt business based in Kokkola, Finland, and therefore its data have not been included in this table.

Sheet 2021 Indirect Energy - Source
A1: FCX - ESG PERFORMANCE TREND DATA
A2: 2021 INDIRECT ENERGY CONSUMED BY SOURCE
A3: (percentage of total) | B3: Geothermal | C3: Solar | D3: Wind | E3: Nuclear | F3: Hydro | G3: Biomass | H3: Other Fossil | I3: Gas | J3: Oil | K3: Coal / Coke | L3: Other
A4: FMC Mining
A5: Bagdad | B5: 0.034 | C5: 0.049 | D5: 0.024 | E5: 0.178 | F5: 0.032 | G5: 0.071 | H5: 0 | I5: 0.463 | J5: 0 | K5: 0.149 | L5: 0
A6: Cerro Verde | B6: 0 | C6: 0.0149 | D6: 0 | E6: 0 | F6: 0.75 | G6: 0 | H6: 0 | I6: 0.24 | J6: 0 | K6: 0 | L6: 0
A7: Chino / Cobre | B7: 0.012 | C7: 0.017 | D7: 0.009 | E7: 0.063 | F7: 0.011 | G7: 0.001 | H7: 0 | I7: 0.835 | J7: 0 | K7: 0.052 | L7: 0
A8: Climax | B8: 0 | C8: 0.05 | D8: 0.31 | E8: 0.01 | F8: 0 | G8: 0 | H8: 0 | I8: 0.37 | J8: 0 | K8: 0.26 | L8: 0
A9: El Abra | B9: 0.004 | C9: 0.131 | D9: 0.09 | E9: 0 | F9: 0.202 | G9: 0 | H9: 0 | I9: 0.18 | J9: 0.02 | K9: 0.34 | L9: 0.033
A10: Henderson | B10: 0 | C10: 0.05 | D10: 0.31 | E10: 0.01 | F10: 0 | G10: 0 | H10: 0 | I10: 0.37 | J10: 0 | K10: 0.26 | L10: 0
A11: Morenci | B11: 0.02 | C11: 0.03 | D11: 0.02 | E11: 0.12 | F11: 0.02 | G11: 0 | H11: 0 | I11: 0.69 | J11: 0 | K11: 0.1 | L11: 0
A12: Safford / Lone Star | B12: 0.02 | C12: 0.03 | D12: 0.02 | E12: 0.12 | F12: 0.02 | G12: 0 | H12: 0 | I12: 0.69 | J12: 0 | K12: 0.1 | L12: 0
A13: Sierrita | B13: 0 | C13: 0.043 | D13: 0.0127 | E13: 0 | F13: 0 | G13: 0 | H13: 0 | I13: 0.485 | J13: 0 | K13: 0.3723 | L13: 0.087
A14: Tyrone | B14: 0.011 | C14: 0.016 | D14: 0.008 | E14: 0.06 | F14: 0.011 | G14: 0.002 | H14: 0 | I14: 0.842 | J14: 0 | K14: 0.05 | L14: 0
A17: Downstream Processing
A18: Atlantic Copper Smelter & Refinery1 | B18: 0 | C18: 0.06 | D18: 0.09 | E18: 0.332 | F18: 0.056 | G18: 0 | H18: 0.132 | I18: 0.262 | J18: 0.024 | K18: 0.03 | L18: 0.014
A19: Fort Madison Moly Special Products | B19: 0 | C19: 0 | D19: 0.573 | E19: 0.049 | F19: 0.017 | G19: 0.003 | H19: 0 | I19: 0.118 | J19: 0.002 | K19: 0.237 | L19: 0.001
A20: Kokkola Cobalt Refinery | B20: - | C20: - | D20: - | E20: - | F20: - | G20: - | H20: - | I20: - | J20: - | K20: - | L20: -
A21: Miami Smelter & Rod | B21: 0.0311 | C21: 0.0923 | D21: 0.0068 | E21: 0.1647 | F21: 0.0243 | G21: 0.0033 | H21: 0 | I21: 0.4231 | J21: 0 | K21: 0.2167 | L21: 0.0377
A22: Rotterdam1 | B22: 0 | C22: 0 | D22: 0 | E22: 0 | F22: 0 | G22: 1 | H22: 0 | I22: 0 | J22: 0 | K22: 0 | L22: 0
A23: Stowmarket | B23: 0 | C23: 0 | D23: 0.1119 | E23: 0.206 | F23: 0.0085 | G23: 0.1619 | H23: 0.0411 | I23: 0.3996 | J23: 0.0085 | K23: 0.0315 | L23: 0.031
A24: El Paso Refinery & Rod | B24: 0 | C24: 0.027 | D24: 0 | E24: 0.437 | F24: 0 | G24: 0 | H24: 0 | I24: 0.423 | J24: 0 | K24: 0 | L24: 0.113
A27: PT-FI (Grasberg)2 | B27: - | C27: - | D27: - | E27: - | F27: - | G27: - | H27: - | I27: - | J27: - | K27: - | L27: -
A29: 1. At our Rotterdam processing facility, we purchase RECs for all electricity. Since 2020, at our Atlantic Copper Smelter & Refinery, we have purchased RECs for a portion of our electricity.
A30: 2. PT-FI generates its own electricity; as a result, there are no indirect energy entries in this table.
A31: Note: In September 2021, FCX completed the sale of its remaining cobalt business based in Kokkola, Finland, and therefore its data have not been included in this table. PT-FI generates its own electricity.

Sheet 2021 Direct Energy - Source
A1: FCX - ESG PERFORMANCE TREND DATA
A2: 2021 DIRECT ENERGY CONSUMED BY SOURCE
A3: (terajoules) | B3: Coal / Coke | C3: Diesel | D3: B5 Biodiesel | E3: B20 Biodiesel | F3: B30 Biodiesel | G3: Gasoline | H3: Natural Gas | I3: Propane / LPG | J3: Aviation Fuel | K3: Used Oil | L3: Other
A4: FMC Mining
A5: Bagdad | B5: 0 | C5: 1900.2 | D5: 0 | E5: 0 | F5: 0 | G5: 31.83 | H5: 91.43 | I5: 0.94 | J5: 0 | K5: 0 | L5: 0
A6: Cerro Verde | B6: 0 | C6: 0 | D6: 7950.3 | E6: 0 | F6: 0 | G6: 30.36 | H6: 0 | I6: 0 | J6: 0 | K6: 0 | L6: 0
A7: Chino / Cobre | B7: 0 | C7: 791.19 | D7: 0 | E7: 0 | F7: 0 | G7: 21.99 | H7: 657.27 | I7: 3.24 | J7: 0 | K7: 0 | L7: 0
A8: Climax | B8: 0 | C8: 253.75 | D8: 0 | E8: 0 | F8: 0 | G8: 8.12 | H8: 161.67 | I8: 0.96 | J8: 0 | K8: 0 | L8: 0
A9: El Abra1 | B9: 0 | C9: 748.35 | D9: 0 | E9: 0 | F9: 0 | G9: 4.24 | H9: 0 | I9: 4.29 | J9: 0 | K9: 0 | L9: 30.58
A10: Henderson | B10: 0 | C10: 9.66 | D10: 0 | E10: 0 | F10: 36.06 | G10: 3.73 | H10: 277.24 | I10: 1.67 | J10: 0 | K10: 4.52 | L10: 0
A11: Morenci | B11: 0 | C11: 261.84 | D11: 6903.83 | E11: 0 | F11: 0 | G11: 203.44 | H11: 604.95 | I11: 1.19 | J11: 0 | K11: 0 | L11: 0
A12: Safford / Lone Star | B12: 0 | C12: 2159.07 | D12: 0 | E12: 0 | F12: 0 | G12: 54 | H12: 0 | I12: 30.96 | J12: 0 | K12: 0 | L12: 0
A13: Sierrita | B13: 0 | C13: 1764.17 | D13: 0 | E13: 0 | F13: 0 | G13: 36.13 | H13: 149.06 | I13: 5.52 | J13: 0 | K13: 0 | L13: 0
A14: Tyrone | B14: 0 | C14: 461.48 | D14: 0 | E14: 0 | F14: 0 | G14: 15.75 | H14: 22.52 | I14: 1.9 | J14: 0 | K14: 0 | L14: 0
A15: Total FMC Mining | B15: =SUM(B5:B14) -> 0 | C15: =SUM(C5:C14) -> 8349.71 | D15: 14854.13 | E15: 0 | F15: 36.06 | G15: 409.59 | H15: 1964.14 | I15: 50.67 | J15: 0 | K15: 4.52 | L15: 30.58
A17: Downstream Processing
A18: Atlantic Copper Smelter & Refinery | B18: 57.85 | C18: 185.68 | D18: 0 | E18: 0 | F18: 0 | G18: 0 | H18: 556.66 | I18: 0 | J18: 0 | K18: 0 | L18: 0
A19: Fort Madison Moly Special Products | B19: 0 | C19: 0.42 | D19: 0 | E19: 0 | F19: 0 | G19: 0.12 | H19: 325.16 | I19: 1.78 | J19: 0 | K19: 0 | L19: 0
A20: Kokkola Cobalt Refinery | B20: - | C20: - | D20: - | E20: - | F20: - | G20: - | H20: - | I20: - | J20: - | K20: - | L20: -
A21: Miami Smelter & Rod | B21: 0 | C21: 48.53 | D21: 0 | E21: 0 | F21: 0 | G21: 12.39 | H21: 1726.6 | I21: 2.85 | J21: 0 | K21: 0 | L21: 0
A22: Rotterdam | B22: 0 | C22: 0.3 | D22: 0 | E22: 0 | F22: 0 | G22: 0 | H22: 184.44 | I22: 0 | J22: 0 | K22: 0 | L22: 0
A23: Stowmarket | B23: 0 | C23: 0.9 | D23: 0 | E23: 0 | F23: 0 | G23: 0 | H23: 0.66 | I23: 0 | J23: 0 | K23: 0 | L23: 0
A24: El Paso Refinery & Rod | B24: 0 | C24: 4.55 | D24: 0 | E24: 0 | F24: 0 | G24: 0.31 | H24: 1967.7 | I24: 8.82 | J24: 0 | K24: 0 | L24: 0
A25: Total Downstream Processing | B25: =SUM(B18:B24) -> 57.85 | C25: =SUM(C18:C24) -> 240.38 | D25: 0 | E25: 0 | F25: 0 | G25: 12.82 | H25: 4761.22 | I25: 13.45 | J25: 0 | K25: 0 | L25: 0
A27: Total PT-FI (Grasberg) | B27: 15232.54 | C27: 10479.38 | D27: 0 | E27: 0 | F27: 360.83 | G27: 28.96 | H27: 0 | I27: 0 | J27: 177.69 | K27: 142.83 | L27: 0
A29: Total - FCX Global | B29: =B27+B25+B15 -> 15290.39 | C29: =C27+C25+C15 -> 19069.47 | D29: 14854.13 | E29: 0 | F29: 396.89 | G29: 451.37 | H29: 6725.36 | I29: 64.12 | J29: 177.69 | K29: 147.35 | L29: 30.58
A31: 1. El Abra has a regenerative downhill conveyor system that is 20km in length that generates electricity for use on site as it transports material for processing.
A32: Note: In September 2021, FCX completed the sale of its remaining cobalt business based in Kokkola, Finland, and therefore its data have not been included in this table.

Sheet Water
A1: FCX - ESG PERFORMANCE TREND DATA
A2: ENVIRONMENT
B3: 2017 | C3: 2018 | D3: 2019 | E3: 2020 | F3: 2021
A4: Water Utilization (thousand cubic meters)
A5: Groundwater | B5: 94316.051 | C5: 111722.6159 | D5: 99323.44165 | E5: 96749.452 | F5: 113192.6385
A6: Surface water | B6: 110042.645 | C6: 68177.04389 | D6: 60475.318 | E6: 49787.893 | F6: 56351.75052
A7: Sea water | B7: 0 | C7: 46843.61539 | D7: 48578.18 | E7: 49217.925 | F7: 43020.047
A8: Stormwater | B8: 43863.977 | C8: 52750.21512 | D8: 57153.05102 | E8: 41982.818 | F8: 53023.41169
A9: Third-party Sources | B9: 26814.467 | C9: 31126.65666 | D9: 37033.731 | E9: 23560.609 | F9: 31581.96539
A10: Total New Water Withdrawn1 | B10: 275037.14 | C10: 310620.1469 | D10: 302563.7217 | E10: 261298.697 | F10: 297169.8131
A11: Total Water Recycled / Reused | B11: 1285205.687 | C11: 1377971.277 | D11: 1408513.265 | E11: 1231053.229 | F11: 1325183.961
A12: Total Utilized Water (Withdrawn + Recycled / Reused) | B12: 1560242.827 | C12: 1688591.424 | D12: 1711076.987 | E12: 1492351.926 | F12: 1622353.774
A13: Water Recycle / Reuse Rate2 | B13: 0.8237215802 | C13: 0.8160477766 | D13: 0.8231735194 | E13: 0.8249081249 | F13: 0.8168
A14: Total Water Discharged3 | B14: N/A | C14: 106182.5232 | D14: 95884.564 | E14: 101962.798 | F14: 106126.9395
A15: Water Use Efficiency4 (%) | B15: N/A | C15: 0.8708060707 | D15: 0.8720405354 | E15: 0.8854019384 | F15: 0.874
A17: 1. New water withdrawal includes new water that is received or extracted by operation and used for the first time. New water withdrawals include high quality freshwater and lower quality water and are categorized by type: groundwater, surface water, stormwater, sea water or third-party water. Water withdrawals exclude water diverted away from operational areas without use.
A18: 2. Water recycle/reuse rate = (total water recycled + reused) / total water utilized.
A19: 3. Water discharged is water removed from an operation and returned to the environment or a third party after meeting all required treatment and discharge standards. In 2018, we began calculating water discharged and water use efficiency rate.
A20: 4. Water use efficiency rate = total water recycled + reused / (total water utilization – discharged water).
A22: 2021 Water Quality (thousand cubic meters) | B22: High Quality1 | C22: Low Quality1 | D22: Total
A23: Water Withdrawals
A24: Groundwater | B24: 99391.40227 | C24: 13801.23625 | D24: 113192.6385
A25: Surface Water | B25: 56351.75052 | C25: 0 | D25: 56351.75052
A26: Sea Water | B26: 0 | C26: 43020.047 | D26: 43020.047
A27: Stormwater | B27: 49942.37674 | C27: 3081.03495 | D27: 53023.41169
A28: Third-party Sources | B28: 31266.29586 | C28: 315.66952 | D28: 31581.96538
A29: Total New Water Withdrawn2 | B29: =SUM(B24:B28) -> 236951.8254 | C29: =SUM(C24:C28) -> 60217.98772 | D29: =SUM(D24:D28) -> 297169.8131
A31: Water Discharged Off-site3
A32: To Surface | B32: 11604.5246 | C32: 19.85195 | D32: 11624.37655
A33: To Sea, Ocean, or Estuary | B33: 22348.2834 | C33: 72,144 4 | D33: 94492.6292
A34: To Third-party | B34: 0 | C34: 9.9337 | D34: 9.9337
A35: Total Water Discharged Off-site | B35: 33952.808 | C35: 72174.13145 | D35: 106126.9394
A37: Change in Water Storage Volume | D37: 6329.09344
A38: Total Water Consumption5 | B38: 112287.6233 | C38: 72426.16002 | D38: 184713.7833
A40: Total Water Recycled / Reused | D40: 1325183.961
A41: Total Utilized Water (Withdrawan + Recycled / Reused) | D41: 1622353.774
A42: Water Recycle / Reuse Rate6 | D42: =D40/D41 -> 0.816827983
A43: Water Use Efficiency Rate7 | D43: 0.874
A46: 1. Per ICMM guidance, we differentiate the quality of water withdrawn and discharged into high quality and low quality. ICMM high quality is equivalent to freshwater as defined by the SASB Standards. See table below for more information.
A47: 2. New water withdrawal includes new water that is received or extracted by operation and used for the first time. This includes high quality freshwater and lower quality water and are categorized by type: groundwater, surface water, stormwater, sea water or third-party water. Water withdrawals exclude water diverted away from operational areas without use.
A48: 3. Approximately 41% of water quantities discharged were associated with our Atlantic Copper Smelter where estuarine water is used for cooling and then returned to its source, 48% associated with PT-FI’s controlled riverine tailings management system, and the remaining 10% is associated with our Climax and Henderson mines in Colorado.
A49: 4. Per ICMM guidelines, this quantity of discharged water is categorized as low quality due primarily to (a) the estuarine source water used at Atlantic Copper, which is already low quality due to salinity, and (b) the discharged water associated with the function of PT-FI’s controlled riverine Tailings system, which contains alkaline pH.
A50: 5. Water consumption = Total water withdrawn - discharged water - change in water storage volume.
A51: 6. Water recycle / reuse rate = total water reused + recycled / total water utilized.
A52: 7. Water use efficiency rate = total water reused + recycled / (total water utilization – discharged water).
A54: ICMM WATER QUALITY CATEGORIES | B54: MCA WATER ACCOUNTING FRAMEWORK (WAF) QUALITY CATEGORIES
A55: High Quality (Freshwater1) | B55: Category 1 High-quality water that may require minimal and inexpensive treatment to raise quality to appropriate drinking water standard (e.g., near potable water quality).
B56: Category 2 Medium-quality water that would require a moderate level of treatment to meet appropriate drinking water standard (e.g., agricultural use).
A57: Low Quality | B57: Category 3 Low-quality water that would require significant treatment to raise quality to appropriate drinking water standards (e.g., industrial and wastewater).
A58: 1. High quality water, as defined by ICMM, is equivalent to Fresh Water as defined by VRF's SASB Standards.
A62: WATER SUPPLY RISKS
A63: OPERATION | B63: CLIMATE CONDITIONS1 | C63: WATER SOURCES2 | D63: WATER SUPPLY RISKS
D64: WATER STRESS3 | E64: EXCESS WATER4 | F64: ACCESS CHALLENGES5
A65: Bagdad | B65: Arid; Semi-desert | C65: Groundwater | D65: Low-Med
A66: Arizona | C66: Surface water
C67: Stormwater
C68: Third Party6
A69: Cerro Verde | B69: Arid; Desert | C69: Groundwater | D69: High | F69: X
A70: Arequipa, Peru | C70: Surface water
C71: Stormwater
C72: Third Party6
A73: Chino | B73: Arid; Semi-desert | C73: Groundwater | D73: Low-Med
A74: New Mexico | C74: Stormwater
C75: Third Party6
A77: Climax | B77: Snow; Fully humid | C77: Groundwater | D77: Low-Med
A78: Colorado | C78: Surface water
C79: Stormwater
A81: El Abra | B81: Arid; Desert | C81: Groundwater | D81: Extremely High | F81: X
A82: Calama, Chile | C82: Stormwater
A85: Henderson | B85: Snow; Fully humid | C85: Groundwater | D85: Med-High | E85: X
A86: Colorado | C86: Surface water
C87: Stormwater
A89: Miami | B89: Arid; Semi-desert | C89: Groundwater | D89: Med-High | E89: X | F89: X
A90: Arizona | C90: Surface water
C91: Stormwater
C92: Third Party6
A93: Morenci | B93: Arid; Semi-desert | C93: Groundwater | D93: Med-High | F93: X
A94: Arizona | C94: Surface water
C95: Stormwater
C96: Third Party6
A97: PT-FI | B97: Tropical; Fully humid | C97: Groundwater | D97: Low | E97: X
A98: Papua, Indonesia | C98: Surface water
C99: Stormwater
A101: Safford | B101: Arid; Semi-desert | C101: Groundwater | D101: Med-High | F101: X
A102: Arizona | C102: Stormwater
A105: Sierrita | B105: Arid; Semi-desert | C105: Groundwater | D105: Med-High | F105: X
A106: Arizona | C106: Stormwater
A109: Tyrone | B109: Arid; Semi-desert | C109: Groundwater | D109: Low-Med
A110: New Mexico | C110: Stormwater
C111: Stormwater
A114: 1. Climate conditions based on the Köppen-Geiger climate classification terminology.
A115: 2. Water sources can include groundwater, surface water, stormwater, sea water, or third-party sources (including effluent).
A116: 3. Baseline water stress ratings are defined by a combination of the World Resources Institute’s (WRI) Aqueduct tool and its associated descriptors for baseline water stress, as well as our own qualitative assessments and local knowledge of the site-specific circumstances of withdrawal at each operation. The WRI Aqueduct tool measures baseline water stress as the ratio of total water withdrawals (including domestic, industrial, irrigation, and livestock consumptive and non-consumptive uses) to available renewable surface (including the impact of upstream consumptive water users and large dams on downstream water availability) and groundwater supplies. WRI classifications are as follows: low (<10%); low to medium (10–20%); medium to high (20–40%); high (40–80%); extremely high (>80%); arid and low water use; and no data.
A117: 4. Large-scale water treatment plants have abated excess water risk at sites which would otherwise be considered at-risk.
A118: 5. Access challenges can include legal challenges or potential changes in law or regulations that could impact our access to certain water supplies.
A119: 6. Third-party water sources are primarily sourced from wastewater effluent.

Sheet Mining.Mineral Processing Waste
A1: FCX - ESG PERFORMANCE TREND DATA
A2: ENVIRONMENT
B3: 2017 | C3: 2018 | D3: 2019 | E3: 2020 | F3: 2021
A4: Mining & Mineral Processing Waste (million metric tons)
A5: Tailings | B5: 298 | C5: 324 | D5: 309 | E5: 259 | F5: 294.9278033
A6: Overburden and Waste Rock | B6: 154 | C6: 371 | D6: 445 | E6: 349 | F6: 364.6975407
A7: Slags | B7: 0.5057 | C7: 0.5873 | D7: 0.532 | E7: 0.6295 | F7: 0.5822626

Sheet Non-Mining Waste.Recycled
A1: FCX - ESG PERFORMANCE TREND DATA
A2: ENVIRONMENT
B3: 2017 | C3: 2018 | D3: 2019 | E3: 2020 | F3: 2021
A4: Non-Mining Waste & Recyclable Material (thousand metric tons)
A5: Non-Hazardous
A6: Recycled | B6: 64.2441184 | C6: 74.58588 | D6: 92.08583924 | E6: 61.307735 | F6: 118.29687
A7: Disposed - Landfill | B7: 55.9 | C7: 58.9 | D7: 77.7 | E7: 52.7 | F7: 59.80718
A8: Disposed - Other | B8: 2.8 | C8: 4.3 | D8: 4 | E8: 16.1 | F8: 23.06158
A9: Disposed On-site | B9: 44.6 | C9: 41.9 | D9: 61.4 | E9: 25 | F9: 30.9213
A10: Total Non-Hazardous Waste and Recyclable Material | B10: =B6+B7+B8+B9 -> 167.5441184 | C10: =C6+C7+C8+C9 -> 179.68588 | D10: =D6+D7+D8+D9 -> 235.1858392 | E10: =E6+E7+E8+E9 -> 155.107735 | F10: =F6+F7+F8+F9 -> 232.08693
A11: Hazardous
A12: Recycled | B12: 27.809763 | C12: 48.083181 | D12: 51.412274 | E12: 52.6756848 | F12: 7.06241
A13: Disposed - Landfill | B13: 28.9 | C13: 27.3 | D13: 26.6 | E13: 4 | F13: 4.4901
A14: Stored On-site | B14: 0.2 | C14: 0 | D14: 0 | E14: 0 | F14: 0
A15: Treated | B15: 20.2 | C15: 22.6 | D15: 25.7 | E15: 17.5 | F15: 17.86592
A16: Total Hazardous Waste and Recyclable Material | B16: =B12+B13+B14+B15 -> 77.109763 | C16: =C12+C13+C14+C15 -> 97.983181 | D16: =D12+D13+D14+D15 -> 103.712274 | E16: =E12+E13+E14+E15 -> 74.1756848 | F16: =F12+F13+F14+F15 -> 29.41843
A18: Total Non-Mining Waste Generated | B18: =B16+B10 -> 244.6538814 | C18: =C16+C10 -> 277.669061 | D18: =D16+D10 -> 338.8981132 | E18: =E16+E10 -> 229.2834198 | F18: =F16+F10 -> 261.50536
A19: % Recycled | B19: =(B6+B12)/B18 -> 0.3762616839 | C19: =(C6+C12)/C18 -> 0.4417815242 | D19: =(D6+D12)/D18 -> 0.4234255301 | E19: =(E6+E12)/E18 -> 0.4971289241 | F19: =(F6+F12)/F18 -> 0.4793755661

Sheet Land
A1: FCX - ESG PERFORMANCE TREND DATA
A2: ENVIRONMENT
B3: 2017 | C3: 2018 | D3: 2019 | E3: 2020 | F3: 2021
A4: Land (in hectares)
A5: New land disturbed during the year | B5: 761.02 | C5: 971.36 | D5: 1465.14 | E5: 586.56 | F5: 577.7
A6: Land rehabilitated during the year1 | B6: 70.6 | C6: 80.2 | D6: 40.5 | E6: 35 | F6: 92.8
A7: Total land disturbed to be rehabilitated1 | B7: 60072.45 | C7: 60963.66 | D7: 62388.3 | E7: 62912.79 | F7: 63394.62
A9: 1. Amounts have been adjusted based on updated land survey data.

Sheet Tailings Impoundments
A1: FCX - ESG PERFORMANCE TREND DATA
A2: ENVIRONMENT
B3: 2017 | C3: 2018 | D3: 2019 | E3: 2020 | F3: 2021
A4: Number of Tailings Impoundments1
A5: Active | B5: 19 | C5: 19 | D5: 18 | E5: 17 | F5: 16
A6: Inactive or Closed | B6: 56 | C6: 55 | D6: 58 | E6: 56 | F6: 52
A7: Safely Closed2 | B7: 0 | C7: 0 | D7: 0 | E7: 0 | F7: 5
A8: Total Tailings Impoundments | B8: =B5+B6+B7 -> 75 | C8: 74 | D8: 76 | E8: 73 | F8: =F5+F6+F7 -> 73
A10: 1. Tailings impoundment counts include non-operating sites and are reviewed at least annually and updated according to construction of new facilities, changes in operating conditions, closure, business transactions, and legal reviews. FCX provides a full disclosure of tailings facilities, location, status, construction type and hazard categorization available at fcx.com/sites/fcx/files/documents/sustainability/supporting_data.pdf.
A11: 2. Safely Closed is defined by the Tailings Standard and requires confirmation by an external independent reviewer and an Accountable Executive. While many of our inactive/closed facilities have not yet gone through the specific review process to confirm the Safely Closed designation, we consistently apply our tailings management system to all facilities to support their safe management. We will update our disclosures annually as we work through the process of comparing the specifications of our TSFs against this criteria.

Sheet Environmental Compliance
A1: FCX - ESG PERFORMANCE TREND DATA
A2: ENVIRONMENT
B3: 2017 | C3: 2018 | D3: 2019 | E3: 2020 | F3: 2021
A4: Environmental Compliance Indicators
A5: Reportable spills or releases of hazardous or toxic chemicals1,2 | B5: 25 | C5: 17 | D5: 33 | E5: 19 | F5: 20
A6: NOVs related to permit exceedances, spills, releases or other compliance matters3 | B6: 5 | C6: 10 | D6: 5 | E6: 6 | F6: 9
A7: # of Significant Environmental Events (as defined on the risk matrix) | B7: 0 | C7: 1 | D7: 0 | E7: 0 | F7: 0
A8: Cumulative environmental penalties4 | B8: 317000 | C8: 0 | D8: 124682 | E8: 67100 | F8: 18951
A10: 1. Reportable spills excludes spills at PT-FI associated with pipeline sabotage. Due to increased security efforts, the number of sabotage-related spills reported at PT-FI decreased from 68 in 2018, to 16 in 2019, to 8 in 2020, to 5 in 2021.
A11: 2. In 2019, there were multiple small (75 kg or less) but reportable events associated with a malfunctioning catalytic oxidizer at our Rotterdam molybdenum processing facility.
A12: 3. NOV is Notice of Violation. When NOVs are rescinded based on the legal appeals process, prior year data are updated.
A13: 4. 2017 penalties paid were from NOVs at Cerro Verde in 2006 and 2008. 2019 penalties paid were from NOVs at Sierrita for dust events in 2018 ($30,000) and a NOV at Cerro Verde in 2007 ($94,682). In addition, we agreed to fund a $200,000 Supplemental Environmental Project associated with the Sierrita dust events. The Cerro Verde fine was paid in 2019 from a regulatory inspection conducted in 2007 due to an extended legal appeal process. 2020 penalties paid were principally from a Sierrita dust event ($55,000) and the failure to obtain a CO2 permit at Rotterdam ($12,000). 2021 penalties paid were associated with delays in commissioning an online, real-time groundwater monitoring system at El Abra.

Sheet SASB
A1: 2021 SASB STANDARDS
A3: The Value Reporting Foundation (VRF) is an independent, nonprofit organization that sets standards to guide the disclosure of financially material, industry-specific sustainability information by companies to their investors. We disclose in alignment with VRF’s SASB Standards for the Metals & Mining industry (EM-MM; version 2021-12) with information as of the year ended December 31, 2021. For further information on the topics covered, please see our 2021 Annual Report on Sustainability, FCX's 2021 Form 10-K and the documents and pages on our website referenced in the table.
A4: Note: Reported amounts are approximate.
A5: TOPIC | B5: ACCOUNTING METRIC | C5: CATEGORY | D5: UNIT OF MEASURE | E5: CODE | F5: FCX RESPONSE | G5: REFERENCES
A6: Greenhouse Gas Emissions | B6: (1) Gross global Scope 1 emissions (2) Percentage covered under emissions-limiting regulations | C6: Quantitative | D6: Metric tons (t) CO2-e, Percentage (%) | E6: EM-MM-110a.1 | F6: (1) 4,575,559 metric tons of carbon dioxide equivalent (2) 1.36% | G6: (1) ESG Performance Trend Data: Climate
B7: Discussion of long-term and short-term strategy or plan to manage Scope 1 emissions, emissions reduction targets, and an analysis of performance against those targets | C7: Discussion and Analysis | D7: N/A | E7: EM-MM-110a.2 | F7: We are dedicated to supplying the world with responsibly produced copper, which includes operating in a way that manages and mitigates our greenhouse gas (GHG) emissions and other climate-related risks. We aspire to participate in and positively contribute to a 2050 net zero economy. We have set GHG emissions (Scope 1 and 2) intensity reduction targets covering 94% our portfolio in order to help manage relevant, climate-related risks and support the decarbonization of our business. We will continue aligning our disclosures with the recommendations of the Taskforce on Climate-related Financial Disclosures (TCFD) and we have committed to validating our interim 2030 GHG emissions reduction targets with the Science Based Target initiative (SBTi). By 2030, we aim to reduce our GHG emissions intensity by 15% in the Americas and 30% at PT-FI (as compared to our 2018 baseline) to reach 3.17 metric tons of CO₂e per metric ton of copper cathode produced in the Americas and 3.34 metrics tons of CO₂e per metric of payable copper produced at PT-FI. For more information on our commitments and progress, please see our reference documents. | G7: (1) 2021 Annual Report on Sustainability: Climate (2) 2020 Climate Report
A8: Air Quality | B8: Air emissions of the following pollutants: (1) CO, (2) NOx (excluding N2O), (3) SOx, (4) particulate matter (PM10), (5) mercury (Hg), (6) lead (Pb), and (7) volatile organic compounds (VOCs) | C8: Quantitative | D8: Metric tons (t) | E8: EM-MM-120a.1 | F8: (1) 96.1 thousand metric tons (2) 47.5 thousand metric tons (3) 7.0 thousand metric tons (4) 13.0 thousand metric tons (5) Less than one metric ton (6) 11.6 metric tons (7) 8.5 thousand metric tons | G8: (1) ESG Performance Trend Data: Air Emissions
A9: Energy Management | B9: (1) Total energy consumed, (2) percentage grid electricity, (3) percentage renewable | C9: Quantitative | D9: Gigajoules (GJ), Percentage (%) | E9: EM-MM-130a.1 | F9: (1) Total energy consumed: 91,212 TJ (2) Percentage grid electricity: 37% (3) Percentage renewable: 3.7%* *These data include renewable energy sources such as wind, solar and geothermal contracts for energy consumption, and a percentage associated with biofuels used onsite. Our Americas operations also receive power from hydro and biomass sources, which are not included in the SASB EM-MM standard definition of renewable energy but are considered low-emission sources. | G9: (1) ESG Performance Trend Data: Climate
A10: Water Management | B10: (1) Total freshwater withdrawn (2) Total freshwater consumed, + percentage of each in regions with High or Extremely High Baseline Water Stress | C10: Quantitative | D10: Thousand cubic meters (m³), Percentage (%) | E10: EM-MM-140a.1 | F10: (1) Total freshwater withdrawn: 236,952 thousand cubic meters; 24% with High or Extremely High Baseline Water Stress (2) Total freshwater consumed: 112,288 thousand cubic meters; 46% with High or Extremely High Baseline Water Stress Freshwater totals above are defined by SASB and equivalent to high quality freshwater as defined by ICMM. For more comprehensive information on our water performance and the water stress classifications, please see reference documents. | G10: (1) ESG Performance Trend Data: Water
B11: Number of incidents of non-compliance associated with water quality permits, standards, and regulations | C11: Quantitative | D11: Number | E11: EM-MM-140a.2 | F11: No incidents of non-compliance associated with water quality permits, standards, and regulations occurred in 2021.
A12: Waste & Hazardous Materials Management | B12: Total weight of non-mineral waste generated | C12: Quantitative | D12: Metric tons (t) | E12: EM-MM-150a.4 | F12: 261.5 thousand metric tons | G12: (1) 2021 Form 10-K, Item 1A: Risk Factors: Operational Risks (2) ESG Performance Trend Data: Mining.Mineral Processing Waste (3) 2021 Annual Report on Sustainability: Tailings Management
B13: Total weight of tailings produced | C13: Quantitative | D13: Metric tons (t) | E13: EM-MM-150a.5 | F13: 295 million metric tons
B14: Total weight of waste rock generated | C14: Quantitative | D14: Metric tons (t) | E14: EM-MM-150a.6 | F14: 365 million metric tons
B15: Total weight of hazardous waste generated | C15: Quantitative | D15: Metric tons (t) | E15: EM-MM-150a.7 | F15: 29.4 thousand metric tons
B16: Total weight of hazardous waste recycled | C16: Quantitative | D16: Metric tons (t) | E16: EM-MM-150a.8 | F16: 7.1 thousand metric tons
B17: Number of significant incidents associated with hazardous materials and waste management | C17: Quantitative | D17: Metric tons (t) | E17: EM-MM-150a.9 | F17: No Significant (as defined by our risk matrix) incidents associated with hazardous materials and waste management occurred in 2021.
B18: Description of waste and hazardous materials management policies and procedures for active and inactive operations | C18: Discussion and Analysis | D18: n/a | E18: EM-MM-150a.10 | F18: We are committed to reducing our environmental impact, which includes the effective management of our mining and non-mining wastes alike. Mining and mineral processing wastes are typically managed in designated, engineered stockpiles or impoundments. In addition to responsibly managing our mining and mineral processing waste, we continuously evaluate opportunities to reduce the quantity of non-mining waste generated. We seek to apply the standard protocol of reduce, reuse, recycle wherever possible and implement robust practices to identify, categorize, store and manage non-mining wastes. Through our asset recovery programs, we divert certain materials from the landfill, and we strive to increase recycling and reuse of those materials in our operations whenever possible. We also evaluate our hazardous waste streams and, when possible, substitute materials with lower toxicity into our processes.
A19: Biodiversity Impacts | B19: Description of environmental management policies and practices for active sites | C19: Discussion and Analysis | D19: N/A | E19: EM-MM-160a.1 | F19: We are committed to sound environmental practices at all of our operations. Our Environmental Policy serves as the framework for the protection of natural resources in the regions where we live and work. In addition to maintaining compliance with laws and regulations, we utilize risk management strategies based on valid data and sound science throughout the mining life cycle, and we plan and conduct our operations in a manner that optimizes the economic use of resources while minimizing the adverse environmental effects. All our mining and mineral processing operations and technology centers maintain Environmental Management Systems (EMS) certified to ISO 14001:2015. Our practices and policies apply to all active sites across the portfolio and address critical environmental aspects including biodiversity, water stewardship, waste and hazardous chemicals, air emissions, and natural resource conservation and recycling. The environmental management programs implemented at our sites are based upon corporate policies, regulatory compliance, and voluntary commitments to good international industrial practices and standards and are verified through independent third-party assurance reviews. These programs are enabled through implementation of our risk register and project development sustainability review processes as well as project specific environmental and social impact assessments (ESIA). | G19: (1) 2021 Annual Report on Sustainability: Thriving Environments (2) Sustainability > Environment page on fcx.com
B20: Percentage of mine sites where acid rock drainage is: (1) predicted to occur, (2) actively mitigated, and (3) under treatment or remediation | C20: Quantitative | D20: Percentage (%) | E20: EM-MM-160a.2 | F20: We implement robust programs to identify, mitigate and manage acid rock drainage (ARD) from waste rock and tailings. ARD is a geochemical process that releases sulfate, acid and / or metals into the environment when certain rock materials are exposed to water and oxygen. ARD forms either naturally or following human caused activities when metal sulfide minerals present in host rock are exposed to air and natural precipitation. The resulting acid that forms can dissolve metals from the surrounding rock and be a source of pollution to surface water or groundwater resources if not properly managed. The formation of ARD can be exacerbated by large earth moving activities, like mining or construction, particularly when these activities expose sulfide bearing minerals to additional air and water, which can accelerate the oxidation process. However, through implementation of targeted management practices, environmental impacts from ARD can be prevented or minimized. Our environmental policy requires that we review and account for environmental effects of each activity, throughout the mine life cycle. Based on material classifications and geochemical characterizations of our ore bodies, ARD is predicted to occur to some degree at nearly all of our operations and is actively mitigated in those locations throughout the mine life cycle utilizing best available control technologies. When potentially acid generating materials are identified in the planning phase, we implement strategies for prevention of ARD formation or management of ARD if it occurs. These strategies include, but are not limited to, designing storage facilities to prevent or minimize ARD formation, blending acid generating materials with materials with sufficient buffering capacity to eliminate the net acid generating potential during operations, installing engineering controls to manage stormwater that infiltrates or runs-off from these facilities, and monitoring controls systems over the mine life cycle including the closure and post-closure phases. Additionally, we consider site specific factors such as rock type, climate, and other geographic considerations in order to minimize operations risk and reduce post mining closure and reclamation liability. Finally, if the formation of ARD cannot be eliminated, we implement mitigation measures such as water management, water treatment or reclamation and, at our PT-FI operations, studies that include risk assessments to determine additional monitoring and mitigation efforts that may be effective. The objective of these controls is to limit or eliminate the exposure of sulfide minerals to the atmosphere, minimize the amount of water contacting mine materials, including waste rock or tailings, and ensure effective monitoring and maintenance systems are in place to minimize the potential ARD generation. Mitigation strategies at our mining operations are also subject to regulatory review, approval and oversight to ensure the effectiveness of the selected control measures.
B21: Percentage of (1) proved and (2) probable reserves in or near sites with protected conservation status or endangered species habitat | C21: Quantitative | D21: Percentage (%) | E21: EM-MM-160a.3 | F21: Protected Areas 0% of total 2P reserves are in protected areas 10.5% of total 2P reserves are near (within 5 kilometers of) protected areas (100% PT-FI and 100% Henderson) Our proven and probable (2P) reserves near protected areas are associated with our Henderson mine in Colorado and PT-FI operations in Indonesia. Both are underground operations and therefore have limited potential to adversely affect the integrity and essential values for which the protected areas were designated. | G21: (1) 2021 Form 10-K, Items 1 and 2. Business and Properties: MINERAL RESERVES (2) 2021 Annual Report on Sustainability: Biodiversity (3) Sustainability > Environment page on fcx.com
F22: Endangered Species Habitat 0.1% of total 2P reserves are in endangered species habitat (<1% Sierrita; <1% Cerro Verde) 69.0% of total 2P reserves are near (within 5 kilometers of) endangered species habitat (100% of PT-FI, Cerro Verde, Climax and Sierrita; 79% Morenci; 15% Chino) Our proven and probable (2P) reserves that are located near endangered species habitats do not affect those habitats. The endangered species habitats near Morenci, Chino, and Climax reserves are located on federal lands managed by the U.S. Forest Service; we do not conduct activities within the habitat. Cerro Verde’s reserves qualify due to an endangered bat species that is known to occur and forage in the general region of the operations and we actively seek to protect the species. PT-FI’s reserves qualify due to the district’s proximity to Lorentz National Park, however, we have not and will not conduct any mining or exploration activities in Lorentz National Park, which is a UNESCO World Heritage Site. As part of our ICMM commitment, we will not explore nor mine at any UNESCO World Heritage Sites. Furthermore, PT-FI mining operations have fully transitioned underground. Percentages reported above are based on total ore metric tons. Refer to page 34 of FCX's 2021 Form 10-K for average ore grades.
A23: Security, Human Rights & Rights of Indigenous Peoples | B23: Percentage of (1) proved and (2) probable reserves in or near areas of conflict | C23: Quantitative | D23: Percentage (%) | E23: EM-MM-210a.1 | F23: At the time of this report publication, we did not have operations located in ‘active areas of conflict’ as defined by the latest available data from the 2020 Uppsala Conflict Data Program. At our PT-FI operations in Papua, Indonesia, there have been attacks on civilians by separatists and highly publicized conflicts between separatists and the Indonesia military and police, some of which have occurred in or near our project area. FCX is a founding member, guided by, and implements The Voluntary Principles on Security and Human Rights for our security and human rights programs, including interactions with host government police, military personnel and private security contractors. For more information on our approach to human rights and security, please see the relevant sections of our 2021 Annual Report on Sustainability and the human rights section of our website. | G23: (1) Voluntary Principles on Security and Human Rights, Annual Reports to the Plenary (2) 2021 Annual Report on Sustainability: Communities & Indigenous Peoples (3) 2021 Annual Report on Sustainability: Responsible Value Chains (4) 2021 Form 10-K, Items 1 and 2. Business and Properties: MINERAL RESERVES
B24: Percentage of (1) proved and (2) probable reserves in or near indigenous land | C24: Quantitative | D24: Percentage(%) | E24: EM-MM-210a.2 | F24: 10.1% of total proven and probable reserves are in or near (within 5 kilometers of) Indigenous lands, representing PT-FI in Indonesia, which is located where Indigenous Peoples of Papua hold customary land rights. Indigenous lands for purposes of this calculation are defined by Article 33 of the United Nations Declaration on the Rights of Indigenous Peoples and the International Labor Organization Convention No. 169. While they do not meet the SASB threshold for inclusion, Indigenous Peoples in Chile and Native Americans in the United States either currently or have historically occupied lands in proximity to our operations or have ancestral connections to these lands. We are committed to constructively engaging with all Indigenous Peoples to support shared value for all stakeholders. Percentages reported above are based on total ore metric tons. Refer to page 34 of FCX's 2021 Form 10-K for average ore grades. | G24: (1) 2021 Form 10-K, Items 1 and 2. Business and Properties: MINERAL RESERVES (2) 2021 Annual Report on Sustainability: Communities & Indigenous Peoples (3) Sustainability > People > Communities & Indigenous Peoples > Land Use & Customary Rights page on fcx.com (4) Sustainability > People > Communities & Indigenous Peoples page on fcx.com
B25: Discussion of engagement processes and due diligence practices with respect to human rights, indigenous rights, and operation in areas of conflict | C25: Discussion and Analysis | D25: N/A | E25: EM-MM-210a.3 | F25: For information on our engagement processes and due diligence practices with respect to human rights and Indigenous rights, please refer to the Communities, Indigenous Peoples, Land Use & Customary Rights and Human Rights sections of our 2021 Annual Report on Sustainability and information on fcx.com. PT-FI has engaged with Papua’s Indigenous populations – the Amungme and Kamoro as well as the five neighboring ethnic groups – Dani, Damal, Nduga, Mee and Moni (collectively known as the “seven suku”) – for decades through multiple formal agreements that promote capacity building through workforce skills training as well as health, education, economic development, public infrastructure development, and participatory monitoring and evaluation of PT-FI funded projects. In addition, we are continuously investing in our local communities in Papua by implementing programs to support capacity building through the development of their skills and employability. For information on the above-mentioned engagement processes and how PT-FI operates in this context, please see reference documents. | G25: (1) Voluntary Principles on Security and Human Rights, Annual Reports to the Plenary (2) 2021 Annual Report on Sustainability: Communities & Indigenous Peoples (3) 2021 Annual Report on Sustainability: Responsible Value Chains (4) 2020 OECD Step 5 Due Diligence Report
A26: Community Relations | B26: Discussion of process to manage risks and opportunities associated with community rights and interests | C26: Discussion and Analysis | D26: N/A | E26: EM-MM-210b.1 | F26: We are committed to responsibly manage our relationships with host communities and Indigenous neighbors. Constructive dialogue is at the foundation of our relationships with host communities and stakeholders. Our engagements help to inform understanding of our actual, potential and perceived impacts. It also helps us build a localized understanding of what contributes to community welfare and long-term sustainability, and mutually identify relevant social investment and development priorities to support any gaps. Engagements also enable us to share information about our own operational activities, facilitate dialogue and ultimately build trust. While our community programs are tailored to the site-specific dynamics of the operation and host community, our overarching objectives in partnership with our local stakeholders are to: (1) build enduring trust, (2) minimize or mitigate any negative impacts from our operations, (3) maximize the positive benefits, (4) support our communities in building resiliency and well-being over the life of the mine, and (5) develop the skills and capacity to thrive beyond the mine. For more information on our approach to management of risks and opportunities associated with community rights and interests, please see reference documents. | G26: (1) 2021 Annual Report on Sustainability: Communities & Indigenous Peoples (2) Sustainability > People > Communities & Indigenous Peoples > Assessing & Managing Impacts page on fcx.com (3) Sustainability > People > Communities & Indigenous Peoples > Land Use and Customary Rights page on fcx.com (4) Sustainability > People > Communities & Indigenous Peoples > Public Health page on fcx.com
B27: Number and duration of non-technical delays | C27: Quantitative | D27: Number, Days | E27: EM-MM-210b.2 | F27: There were no non-technical delays at any of our operations in 2021. | G27: (1) 2021 Form 10-K, Items 1 and 2. Business and Properties: GENERAL: Mining Operations
A28: Labor Relations | B28: Percentage of active workforce covered under collective bargaining agreements, broken down by U.S. and foreign employees | C28: Quantitative | D28: Percentage (%) | E28: EM-MM-310a.1 | F28: Approximately 31% of our global full-time employee population was covered by collective labor agreements on December 31, 2021, broken down as follows: 0% North America 49% Indonesia 66% South America 62% Europe / Other While our North American workforce is not represented by unions, our hourly employees elect to work directly with company management rather than through union representation using our Guiding Principles agreement, which outlines how we work together within the values of the company to achieve our collective goals. Please see references for more information on our approach to labor relations. | G28: (1) 2021 Form 10-K, Items 1 and 2. Business and Properties: Human Capital: Workforce (2) 2021 Form 10-K, Note 16: Business Segment Information: Labor Matters (3) ESG Performance Trend Data: Workforce (4) 2021 Annual Report on Sustainability: Workforce
B29: Number and duration of strikes and lockouts | C29: Quantitative | D29: Number, Days | E29: EM-MM-310a.2 | F29: There were no strikes or lockouts at any of our operations in 2021. | G29: (1) 2021 Form 10-K, Items 1 and 2. Business and Properties: HUMAN CAPITAL: Workforce (2) 2021 Annual Report on Sustainability: Workforce
A30: Workforce Health & Safety | B30: (1) MSHA all-incidence rate, (2) fatality rate, (3) near miss frequency rate (NMFR) and (4) average hours of health, safety, and emergency response training for (a) full-time employees and (b) contract employees | C30: Quantitative | D30: Rate | E30: EM-MM-320a.1 | F30: For full year 2021: (1)(a) MSHA all-incidence rate for full-time employees: 0.75 (1)(b) MSHA all-incidence rate contract employees: 0.62 (2)(a) fatality rate for full-time employees: 0.000 (2)(b) fatality rate for contract employees: 0.007 (3)(a) near miss frequency rate (NMFR) for full-time employees: 1.61 (3)(b) near miss frequency rate (NMFR) for contract employees: 1.21 (4) We do not currently disclose this information. | G30: (1) 2021 Form 10-K, Item 4: Mine Safety Disclosures (2) ESG Performance Trend Data: Health & Safety
A31: Business Ethics & Transparency | B31: Description of the management system for prevention of corruption and bribery throughout the value chain | C31: Discussion and Analysis | D31: N/A | E31: EM-MM-510a.1 | F31: We use a combination of tools to help gather critical data on suppliers with regard to compliance, ESG and other related risks. In recognition of the potential legal and reputational liability that could result from actions of our business partners and contractors under the Foreign Corrupt Practices Act (FCPA) and other laws, the company implemented an online due diligence platform, the Freeport Compliance eXchange (FCeX). This survey-based software platform is designed to assess risk in areas of anti-corruption, international trade and human rights. FCeX has enhanced our ability to identify, assess and mitigate compliance risks. In 2020, we added a Responsible Sourcing section to the survey to gather information from each supplier on their ESG programs, including sustainability-related management systems and certifications, human rights, health and safety, and environmental commitments, among others. In 2020, we also initiated implementing a software system, called Ariba Supplier Risk Management, that will be integrated into our central purchasing system. The new software enhances our supplier risk assessment using data from external sources – including operations, regulatory (anti-corruption and human rights), environmental and financial – and will provide more in-depth risk-based assessments through targeted questionnaires and audits. We will track these assessments and resulting actions, engagement and approvals for ongoing supplier life cycle management. Annually, we perform company-wide program and risk assessments with assistance from our internal audit firm, Deloitte, to assess risk and plan for the following year’s audit strategy. Business controls resulting from periodic fraud risk assessments are tested and reviewed annually at our corporate offices as well as at PT-FI, Cerro Verde, El Abra and Atlantic Copper. | G31: (1) 2021 Annual Report on Sustainability: Responsible Value Chains
B32: Production in countries that have the 20 lowest rankings in Transparency International’s Corruption Perception Index | C32: Quantitative | D32: Metric tons (t) saleable | E32: EM-MM-510a.2 | F32: We have no production in the countries that have the 20 lowest rankings in Transparency International's Corruption Perception Index. | G32: (1) 2021 Form 10-K, Items 1 and 2. Business and Properties: GENERAL
A33: Tailings Storage Facilities Management | B33: Tailings storage facility inventory table: (1) facility name, (2) location, (3) ownership status, (4) operational status, (5) construction method, (6) maximum permitted storage capacity, (7) current amount of tailings stored, (8) consequence classification, (9) date of most recent independent technical review, (10) material findings, (11) mitigation measures, (12) site-specific EPRP | C33: Quantitative; Discussion and Analysis | D33: Various | E33: EM-MM-540a.1 | F33: For detailed information on our tailings storage facilities, please see reference document. | G33: (1) Site-Specific Tailings Management and Information on fcx.com
B34: Summary of tailings management systems and governance structure used to monitor and maintain the stability of tailings storage facilities | C34: Discussion and Analysis | D34: N/A | E34: EM-MM-540a.2 | F34: For more information on our multi-tiered oversight and tailings governance, please see the Tailings Management section of this report. | G34: (1) 2021 Annual Report on Sustainability: Tailings Management
B35: Approach to development of Emergency Preparedness and Response Plans (EPRPs) for tailings storage facilities | C35: Discussion and Analysis | D35: N/A | E35: EM-MM-540a.3 | F35: For information on our EPRPs for tailings storage facilities, please see reference document. | G35: (1) Site-Specific Tailings Management and Information on fcx.com
A36: Activity Metric | B36: Production of (1) metal ores and (2) finished metal products | C36: Quantitative | D36: Metric tons (t) saleable | E36: EM-MM-000.A | F36: (1) Full year 2021 consolidated production from our mines: 3,843 million recoverable pounds or 1,743,155 metric tons of copper; 1,381 thousand recoverable ounces or 626 metric tons of gold; and 85 million recoverable pounds or 38,555 metric tons of molybdenum | G36: (1) 2021 Form 10-K, Items 1 and 2. Business and Properties: MINING PRODUCTION AND SALES DATA
B37: Total number of employees, percentage contractors | C37: Quantitative | D37: Number, Percentage (%) | E37: EM-MM-000.B | F37: Total workforce (employees and contractors) at year-end 2021 approximated 66,700, and 63% were contractors. | G37: (1) 2021 Form 10-K, Items 1 and 2. Business and Properties: HUMAN CAPITAL: Workforce

Sheet GRI Index; SDGs
A1: GRI CONTENT INDEX
A3: For more information on our GRI reporting, please see below table.
A4: SERIES | B4: MATERIAL TOPIC | C4: DISCLOSURE | D4: DISCLOSURE DESCRIPTION | E4: FCX RESPONSE | F4: UN SDGs
A5: GRI 102 GENERAL DISCLOSURES | B5: Universal: Organizational Profile | C5: 102-1 | D5: Name of the organization | E5: Freeport-McMoRan Inc.
A6: GRI 102 GENERAL DISCLOSURES | B6: Universal: Organizational Profile | C6: 102-2 | D6: Activities, brands, products, and services | E6: Freeport-McMoRan Inc. (Freeport-McMoRan, Freeport, FCX or the company) is a leading international mining company with headquarters in Phoenix, Arizona. FCX operates large, long-lived, geographically diverse assets with significant proven and probable reserves of copper, gold and molybdenum. FCX’s portfolio of assets includes the Grasberg minerals district in Indonesia (PT Freeport Indonesia or PT-FI), one of the world’s largest copper and gold deposits; and significant mining operations in North America and South America (Freeport Minerals Corporation or FMC), including the large-scale Morenci minerals district in Arizona and the Cerro Verde operation in Peru. About Us on fcx.com Form 10-K: Part I General
A7: GRI 102 GENERAL DISCLOSURES | B7: Universal: Organizational Profile | C7: 102-3 | D7: Location of headquarters | E7: Phoenix, Arizona, USA About Us on fcx.com
A8: GRI 102 GENERAL DISCLOSURES | B8: Universal: Organizational Profile | C8: 102-4 | D8: Location of operations. Number of countries where the organization operates, and names of countries where either the organization has significant operations or that are specifically relevant to the sustainability topics covered in the report | E8: Our operating mines are located in Chile, Indonesia, Peru and the United States. For further information on our operations, please see: About Us on fcx.com Form 10-K: Part I, General Form 10-K: Part I, Mining Operations
A9: GRI 102 GENERAL DISCLOSURES | B9: Universal: Organizational Profile | C9: 102-5 | D9: Ownership and legal form | E9: Form 10-K: Part I, General
A10: GRI 102 GENERAL DISCLOSURES | B10: Universal: Organizational Profile | C10: 102-6 | D10: Markets served | E10: Form 10-K: Part I, Products and Sales | F10: SDG 8: Decent Work and Economic Growth
A11: GRI 102 GENERAL DISCLOSURES | B11: Universal: Organizational Profile | C11: 102-7 | D11: Scale of the organization | E11: Annual Report on Sustainability: Workforce Form 10-K: Part I, Items 1. and 2. Business and Properities; Mining Production and Sales Data Form 10-K: Part II, Revenues
A12: GRI 102 GENERAL DISCLOSURES | B12: Universal: Organizational Profile | C12: 102-8 | D12: Information on employees and other workers a. Total number of employees by employment contract, by gender b. Total number of employees by employment contract, by region c. Total number of employees by employment type, by gender d. Whether a significant portion of the organization's activities are performed by workers who are not employees. If applicable, a description of the nature and scale of work performed by workers who are not employees. e. Any significant variations in the numbers reported in Disclosures 102-8-a, 102-8-b, and 102-8-c. f. An explanation of how the data have been compiled, including any assumptions made | E12: Form 10-K: Items 1 and 2. Business and Properties: Human Capital: Workforce Annual Report on Sustainability: Workforce | F12: SDG 8: Decent Work and Economic Growth SDG 10: Reduced Inequalities
A13: GRI 102 GENERAL DISCLOSURES | B13: Universal: Organizational Profile | C13: 102-9 | D13: Supply chain | E13: Form 10-K: Part I, Sources and Availability of Energy, Natural Resources and Raw Materials Annual Report on Sustainability: Responsible Value Chains; Economic Contributions; Performance Data Global Supply Chain webpage on fcx.com Commodity Management webpage on fcx.com
A14: GRI 102 GENERAL DISCLOSURES | B14: Universal: Organizational Profile | C14: 102-10 | D14: Significant changes to the organization and its supply chain | E14: Form 10-K: Part II, Management's Discussion and Analysis of Financial Condition and Results of Operations and Quantitative and Qualitative Disclosures About Market Risk Annual Report on Sustainability: Our Strategy in Action: Responsible Production; Responsible Value Chains
A15: GRI 102 GENERAL DISCLOSURES | B15: Universal: Organizational Profile | C15: 102-11 | D15: Precautionary Principle or approach | E15: Freeport-McMoRan is a leading responsible copper producer. Our commitment to responsible copper production is visible in everything we do, driven by our core values of Safety, Respect, Integrity, Excellence and Commitment. Our values direct the decisions we make as a company and as individual employees. These values represent who we are and how we work – everyone, everywhere, every day. Our focus on responsible production is critical to establish and maintain acceptance from our local stakeholders through shared value creation and to meet society's responsible sourcing objectives necessary to supply the world with copper. Annual Report on Sustainability: Our Strategy; Business Conduct & Policies; Empowered People & Resilient Communities; Thriving Environments
A16: GRI 102 GENERAL DISCLOSURES | B16: Universal: Organizational Profile | C16: 102-12 | D16: External initiatives | E16: Annual Report on Sustainability: Stakeholder Engagement & Materiality; Ambitions & Performance Targets; Thriving Environments; Performance Data | F16: SDG 17: Partnerships for the Goals
A17: GRI 102 GENERAL DISCLOSURES | B17: Universal: Organizational Profile | C17: 102-13 | D17: Membership of associations | E17: Annual Report on Sustainability: Stakeholder Engagement & Materiality | F17: SDG 17: Partnerships for the Goals
A18: GRI 102 GENERAL DISCLOSURES | B18: Universal: Strategy | C18: 102-14 | D18: Statement from the most senior decision-maker of the organization | E18: Annual Report on Sustainability: Letter to Stakeholders; Views from Our Corporate Responsibility Committee Chair
A19: GRI 102 GENERAL DISCLOSURES | B19: Universal: Strategy | C19: 102-15 | D19: Key impacts, risks, and opportunities | E19: Annual Report on Sustainability: Stakeholder Engagement & Materiality; Our Strategy in Action: Responsible Production Form 10-K: Part I, Risk Factors Climate Report Water Report
A20: GRI 102 GENERAL DISCLOSURES | B20: Universal: Ethics and Integrity | C20: 102-16 | D20: Values, principles, standards, and norms of behavior | E20: Annual Report on Sustainability: Our Strategy; Business Conduct & Policies; Stakeholder Engagement & Materiality | F20: SDG 16: Peace, Justice and Strong Institutions
A21: GRI 102 GENERAL DISCLOSURES | B21: Universal: Ethics and Integrity | C21: 102-17 | D21: Mechanisms for advice and concerns about ethics | E21: Annual Report on Sustainability: Our Strategy in Action: Responsible Production; Stakeholder Engagement & Materiality; Human Rights; Workforce; Business Conduct & Policies; Communities & Indigenous Peoples | F21: SDG 16: Peace, Justice and Strong Institutions
A22: GRI 102 GENERAL DISCLOSURES | B22: Universal: Governance | C22: 102-18 | D22: Governance structure | E22: Annual Report on Sustainability: Robust Governance Corporate Governance Guidelines Proxy Statement: Corporate Governance
A23: GRI 102 GENERAL DISCLOSURES | B23: Universal: Governance | C23: 102-19 | D23: Delegating authority | E23: Annual Report on Sustainability: Robust Governance Proxy Statement: ESG / Sustainability
A24: GRI 102 GENERAL DISCLOSURES | B24: Universal: Governance | C24: 102-20 | D24: Executive-level responsibility for economic, environmental, and social topics | E24: Annual Report on Sustainability: Robust Governance Proxy Statement: ESG / Sustainability
A25: GRI 102 GENERAL DISCLOSURES | B25: Universal: Governance | C25: 102-21 | D25: Consulting stakeholders on economic, environmental, and social topics | E25: Annual Report on Sustainability: Stakeholder Engagement & Materiality Proxy Statement: Stakeholder Engagement | F25: SDG 16: Peace, Justice and Strong Institutions SDG 17: Partnerships for the Goals
A26: GRI 102 GENERAL DISCLOSURES | B26: Universal: Governance | C26: 102-22 | D26: Composition of the highest governance body and its committees | E26: Annual Report on Sustainability: Robust Governance Proxy Statement: Board Composition Overview | F26: SDG 5: Gender Equality SDG 16: Peace, Justice and Strong Institutions
A27: GRI 102 GENERAL DISCLOSURES | B27: Universal: Governance | C27: 102-23 | D27: Chair of the highest governance body | E27: Richard C. Adkerson is the Chairman of the Board and CEO of Freeport-McMoRan Inc. | F27: SDG 16: Peace, Justice and Strong Institutions
A28: GRI 102 GENERAL DISCLOSURES | B28: Universal: Governance | C28: 102-24 | D28: Nominating and selecting the highest governance body | E28: Proxy Statement: Board and Corporate Governance Matters Corporate Governance Guidelines | F28: SDG 5: Gender Equality SDG 16: Peace, Justice and Strong Institutions
A29: GRI 102 GENERAL DISCLOSURES | B29: Universal: Governance | C29: 102-25 | D29: Conflicts of interest | E29: Freeport-McMoRan maintains Conflicts of Interest Guidelines that are designed to provide guidance to directors, officers and employees so that conflicts of interest may be avoided. The guidelines establish procedures for disclosure of actual or potential conflicts of interest so that concerns may be addressed and any necessary corrective action may be taken. Annual Report on Sustainability: Robust Governance Corporate Governance Guidelines Proxy Statement: Certain Transactions | F29: SDG 16: Peace, Justice and Strong Institutions
A30: GRI 102 GENERAL DISCLOSURES | B30: Universal: Governance | C30: 102-26 | D30: Role of highest governance body in setting purpose, values, and strategy | E30: Annual Report on Sustainability: Robust Governance; Business Conduct & Policies Proxy Statement: Corporate Governance
A31: GRI 102 GENERAL DISCLOSURES | B31: Universal: Governance | C31: 102-27 | D31: Collective knowledge of highest governance body | E31: Annual Report on Sustainability: Robust Governance Proxy Statement: Information About Director Nominees | F31: SDG 4: Quality Education
A32: GRI 102 GENERAL DISCLOSURES | B32: Universal: Governance | C32: 102-28 | D32: Evaluating the highest governance body’s performance | E32: Corporate Governance Guidelines Proxy Statement: Board and Committee Evaluation Proces Proxy Statement: Executive Compensation Philosophy
A33: GRI 102 GENERAL DISCLOSURES | B33: Universal: Governance | C33: 102-29 | D33: Identifying and managing economic, environmental, and social impacts | E33: Annual Report on Sustainability: Our Approach Proxy Statement: Board’s Role in Oversight of Strategy and Risk Management Corporate Governance Guidelines Corporate Responsibility Committee Charter | F33: SDG 16: Peace, Justice and Strong Institutions
A34: GRI 102 GENERAL DISCLOSURES | B34: Universal: Governance | C34: 102-30 | D34: Effectiveness of risk management processes | E34: Annual Report on Sustainability: Our Approach Proxy Statement: Board’s Role in Oversight of Strategy and Risk Management
A35: GRI 102 GENERAL DISCLOSURES | B35: Universal: Governance | C35: 102-31 | D35: Review of economic, environmental, and social topics | E35: Annual Report on Sustainability: Our Approach Proxy Statement: ESG / Sustainability Corporate Governance Guidelines Corporate Responsibility Committee Charter
A36: GRI 102 GENERAL DISCLOSURES | B36: Universal: Governance | C36: 102-32 | D36: Highest governance body’s role in sustainability reporting | E36: Our Chairman and CEO has responsibility for the company’s sustainability performance, withactive oversight from the Board. Our cross-functional Sustainability Leadership Team (SLT) includes members of the management team tasked with defining the sustainability strategy and implementing our sustainability policies, systems, and programs across the organization to achieve integrated decision-making for responsible production and performance. The SLT is sponsored by our Senior Vice President and Chief Administrative Officer and is led by our Vice President and Chief Sustainability Officer, with active participation from other members of the SLT, including our four operational business unit Presidents. SLT membership also includes Vice Presidents or senior representatives from functional groups, including operations, health and safety, security, supply chain, human resources, sales, legal, compliance, sustainability and finance. Executive officers are held accountable for the company’s sustainability performance through the company’s performance-based annual incentive program (AIP). In 2021, ESG metrics collectively accounted for 25% of the AIP (15% safety and 10% sustainability). Annual Report on Sustainability: Letter to Stakeholders; Views from Our Corporate Responsibility Committee Chair; Robust Governance GRI Content Index (this index)
A37: GRI 102 GENERAL DISCLOSURES | B37: Universal: Governance | C37: 102-33 | D37: Communicating critical concerns | E37: Annual Report on Sustainability: Robust Governance Proxy Statement: Stockholder and Stakeholder Engagement Proxy Statement: Communications with the Board
A38: GRI 102 GENERAL DISCLOSURES | B38: Universal: Governance | C38: 102-34 | D38: Nature and total number of critical concerns | E38: Proxy Statement: Key Topics Discussed in 2021 • Board refreshment and board leadership structure • Climate strategy, including GHG emissions reduction targets for our Americas copper business and PT-FI operations • ESG initiatives, including enhanced disclosures and ESG metrics in executive compensation • Tailings management, risks and disclosure • Water management and risks • Biodiversity program • Human rights, including progress on our human rights impact assessments Annual Report on Sustainability: Stakeholder Engagement & Materiality; Robust Governance; Human Rights; Communities & Indigenous Peoples FCX.com: Human Rights; Communities & Indigenous Peoples
A39: GRI 102 GENERAL DISCLOSURES | B39: Universal: Governance | C39: 102-35 | D39: Remuneration policies | E39: Proxy Statement: Process of Setting Director Compensation Annual Report on Sustainability: Workforce | F39: SDG 8: Decent Work and Economic Growth
A40: GRI 102 GENERAL DISCLOSURES | B40: Universal: Governance | C40: 102-36 | D40: Process for determining remuneration | E40: We are committed to respecting the rights of our workforce, including paying fair and equal wages. Our approach to compensation and benefits is market-based, competitive and informed by annual benchmarking and analysis. This includes equal pay for equal work and compensation levels that support the acquisition of the goods and services necessary for an average-size family to meet their basic needs in the geographic locations where we operate – often referred to as a living wage. We are committed to providing equal pay for equal work regardless of gender, race, ethnicity or any area protected by law. We periodically conduct internal compensation reviews to identify possible pay gaps which cannot be explained through performance, distribution of jobs, experience, time in role and other legitimate business-related factors. Proxy Statement: Process of Setting Director Compensation Annual Report on Sustainability: Workforce | F40: SDG 8: Decent Work and Economic Growth
A41: GRI 102 GENERAL DISCLOSURES | B41: Universal: Governance | C41: 102-37 | D41: Stakeholders’ involvement in remuneration | E41: Proxy Statement: Stockholder and Stakeholder Engagement | F41: SDG 8: Decent Work and Economic Growth SDG 16: Peace, Justice and Strong Institutions
A42: GRI 102 GENERAL DISCLOSURES | B42: Universal: Governance | C42: 102-40 | D42: List of stakeholder groups | E42: Annual Report on Sustainability: Our Approach; Stakeholder Engagement & Materiality; Workforce Proxy Statement: Stakeholder Engagement; Stock Ownership of Certain Beneficial Owners | F42: SDG 17: Partnerships for the Goals
A43: GRI 102 GENERAL DISCLOSURES | B43: Universal: Governance | C43: 102-41 | D43: Collective bargaining agreements | E43: Annual Report on Sustaina bility: Workforce Form 10-K: Part I, Human Capital | F43: SDG 8: Decent Work and Economic Growth
A44: GRI 102 GENERAL DISCLOSURES | B44: Universal: Governance | D44: Identifying and selecting stakeholders | E44: Freeport’s sustainability strategy relies upon, and is consistently informed by, engagement with our stakeholders. Our approach is characterized by transparency, collaboration, and meaningful dialogue with the primary goal of fostering mutual understanding, trust and cooperation with stakeholder groups. Proxy Statement: Stakeholder Engagement Annual Report on Sustainability: Stakeholder Engagement & Materiality; Communities & Indigenous Peoples; Human Rights
A45: GRI 102 GENERAL DISCLOSURES | B45: Universal: Governance | C45: 102-43 | D45: Approach to stakeholder engagement | E45: Freeport’s sustainability strategy relies upon, and is consistently informed by, engagement with our stakeholders. Our approach is characterized by transparency, collaboration, and meaningful dialogue with the primary goal of fostering mutual understanding, trust and cooperation with stakeholder groups. Proxy Statement: Stakeholder Engagement Annual Report on Sustainability: Letter to Stakeholders; Views from our Corporate Responsibility Committee Chair; Stakeholder Engagement & Materiality; Communities & Indigenous Peoples; Human Rights | F45: SDG 11: Sustainable Cities and Communities
A46: GRI 102 GENERAL DISCLOSURES | B46: Universal: Governance | C46: 102-44 | D46: Key topics and concerns raised | E46: Annual Report on Sustainability: Letter to Stakeholders; Views from our Corporate Responsibility Committee Chair; Stakeholder Engagement & Materiality; Communities & Indigenous Peoples; Human Rights | F46: SDG 11: Sustainable Cities and Communities
A47: GRI 102 GENERAL DISCLOSURES | B47: Universal: Reporting Practice | C47: 102-45 | D47: Entities included in the consolidated financial statements | E47: Form 10-K: Part I, General
A48: GRI 102 GENERAL DISCLOSURES | B48: Universal: Reporting Practice | C48: 102-46 | D48: Defining report content and topic Boundaries | E48: Freeport-McMoRan is committed to communicating regularly and transparently with our stakeholders about how we do business. Annually, we publish a report on sustainability. Our Annual Report on Sustainability provides information on how we address the environmental, social and governance matters we and our stakeholders view as most important to our business. This report is intended to be a companion to our 2021 Annual Report and 2022 Proxy Statement as well as the Sustainability section of our website. The 2021 report focuses primarily on the operations of Freeport-McMoRan’s subsidiaries: Freeport Minerals Corporation (FMC) in the Americas and PT Freeport Indonesia (PT-FI) in Indonesia for the period January 1, 2021, to December 31, 2021, unless otherwise indicated. All data is effective as of December 31, 2021, unless otherwise noted. For additional information on all topics that are important to Freeport-McMoRan, please visit our website. Annual Report on Sustainability: About this Report; Our Approach GRI Content Index (this index)
A49: GRI 102 GENERAL DISCLOSURES | B49: Universal: Reporting Practice | C49: 102-47 | D49: List of material topics | E49: Following the results of our materiality assessment and sustainability strategy process, we have identified our core strategic focus areas to include the following (in alphabetical order): Biodiversity & Land Use, Climate, Communities & Indigenous Peoples, Biodiversity & Land Use, Health & Safety, Human Capital Management, Human Rights, Responsible Supply Chains, Tailings Management and Water Stewardship. Additionally, we have identified the following focus areas as cross-cutting themes that underpin all other areas of our sustainability work: (1) Governance, Compliance and Ethics; (2) Resilience and Adaptation, and (3) Risk Management. Annual Report on Sustainability: Stakeholder Engagement & Materiality > Materiality Matters GRI Content Index (this index)
A50: GRI 102 GENERAL DISCLOSURES | B50: Universal: Reporting Practice | C50: 102-48 | D50: Restatements of information | E50: As a result of methodology changes or corrections, prior year data may be updated. Data presentation and comparisons may not meet the direct needs of all stakeholders, and we encourage users of this information to contact our Sustainability Department with inquiries, sustainability@fmi.com.
A51: GRI 102 GENERAL DISCLOSURES | B51: Universal: Reporting Practice | C51: 102-49 | D51: Changes in reporting | E51: Annual Report on Sustainability: About this Report
A52: GRI 102 GENERAL DISCLOSURES | B52: Universal: Reporting Practice | C52: 102-50 | D52: Reporting period | E52: Fiscal year ended December 31, 2021
A53: GRI 102 GENERAL DISCLOSURES | B53: Universal: Reporting Practice | C53: 102-51 | D53: Date of most recent report | E53: 2021 Annual Report on Sustainability
A54: GRI 102 GENERAL DISCLOSURES | B54: Universal: Reporting Practice | C54: 102-52 | D54: Reporting cycle | E54: Annual
A55: GRI 102 GENERAL DISCLOSURES | B55: Universal: Reporting Practice | C55: 102-53 | D55: Contact point for questions regarding the report | E55: sustainability@fmi.com
A56: GRI 102 GENERAL DISCLOSURES | B56: Universal: Reporting Practice | C56: 102-54 | D56: Claims of reporting in accordance with the GRI Standards | E56: GRI Content Index (this index) External Assurance on fcx.com Annual Report on Sustainability: About this Report
A57: GRI 102 GENERAL DISCLOSURES | B57: Universal: Reporting Practice | C57: 102-55 | D57: GRI content index | E57: GRI Content Index (this index)
A58: GRI 102 GENERAL DISCLOSURES | B58: Universal: Reporting Practice | C58: 102-56 | D58: External assurance | E58: Our Annual Reports on Sustainability have been independently verified since 2005. External assurance of our 2021 reporting was conducted by Corporate Integrity Ltd. in accordance with the ICMM Mining Principles Assurance and Validation Procedure and the Copper Mark Assurance Process. Since 2009, site-level external assurance has been completed multiple times at all active mining and metals processing operations. We conduct site-level external assurance at each of our operations at least once every three years and annually at PT-FI and Cerro Verde Annual Report on Sustainability: Assurance Statement External Assurance on fcx.com
A59: GRI 103 MANAGEMENT APPROACH | B59: Universal: Management Approach | C59: 103-1 | D59: Explanation of the material topic and its Boundary | E59: Our management approach is described in each relevant section. Annual Report on Sustainability: About this Report; Our Approach Form 10-K: Part I, General GRI Content Index (this index)
A60: GRI 103 MANAGEMENT APPROACH | B60: Universal: Management Approach | C60: 103-2 | D60: The management approach and its components | E60: Our management approach is described in each relevant section and focus area. Annual Report on Sustainability: About this Report; Our Approach; Business Conduct & Policies: Letter to Stakeholders; Views from Our Corporate Responsibility Committee Chair Form 10-K: Part I, General GRI Content Index (this index) | F60: SDG 1: No Poverty SDG 5: Gender Equality SDG 8: Decent Work and Economic Growth SDG 12: Responsible Consumption and Production SDG 13: Climate Action SDG 15: Life on Land SDG 16: Peace, Justice and Strong Institutions
A61: GRI 103 MANAGEMENT APPROACH | B61: Universal: Management Approach | C61: 103-3 | D61: Evaluation of the management approach | E61: Our management approach is described in each relevant section. Annual Report on Sustainability: About this Report; Our Approach GRI Content Index (this index)
A62: GRI 200 ECONOMIC | B62: 201 Economic Performance | C62: 103-1 | D62: Explanation of the material topic and its Boundary | E62: Form 10-K: Part II, Consolidated Results Annual Report on Sustainability: Our Approach; Economic Contributions Economic Impact on fcx.com
A63: GRI 200 ECONOMIC | B63: 201 Economic Performance | C63: 103-2 | D63: The management approach and its components | E63: Form 10-K: Part II, Consolidated Results Annual Report on Sustainability: About this Report; Our Approach; Business Conduct & Policies; Community Grievance Mechanism; Letter to Stakeholders; Message from our Corporate Responsibility Committee Chair GRI Content Index (this index)
A64: GRI 200 ECONOMIC | B64: 201 Economic Performance | C64: 103-3 | D64: Evaluation of the management approach | E64: Form 10-K Annual Report on Sustainability: Our Approach
A65: GRI 200 ECONOMIC | B65: 201 Economic Performance | C65: 201-1 | D65: Direct economic value generated and distributed | E65: Form 10-K: Part II, Consolidated Results Annual Report on Sustainability: Community Resilience; Economic Contributions; Performance Data Economic Impact on fcx.com | F65: SDG 1: No Poverty SDG 2: Zero Hunger SDG 5: Gender Equality SDG 7: Affordable and Clean Energy SDG 8: Decent Work and Economic Growth SDG 9: Industry, Innovation and Infrastructure
A66: GRI 200 ECONOMIC | B66: 201 Economic Performance | C66: 201-2 | D66: Financial implications and other risks and opportunities due to climate change | E66: Form 10-K: Environmental Risks Annual Report on Sustainability: Climate; Water Stewardship Climate Report Water Report | F66: SDG 13: Climate Action
A67: GRI 200 ECONOMIC | B67: 203 Indirect Economic Impacts | C67: 103-1 | D67: Explanation of the material topic and its Boundary | E67: Annual Report on Sustainability: Our Approach; Community Resilience; Economic Contributions; Performance Data Form 10-K: Part II, Consolidated Results Economic Impact on fcx.com
A68: GRI 200 ECONOMIC | B68: 203 Indirect Economic Impacts | C68: 103-2 | D68: The management approach and its components | E68: Annual Report on Sustainability: Stakeholder Engagement & Materiality; Communities & Indigenous Peoples; Business Conduct & Policies; Letter to Stakeholders; Views from Our Corporate Responsibility Committee Chair; Economic Contributions Form 10-K: Part II, Consolidated Results Economic Impact; Assessing & Managing Impacts on fcx.com
A69: GRI 200 ECONOMIC | B69: 203 Indirect Economic Impacts | C69: 103-3 | D69: Evaluation of the management approach | E69: Annual Report on Sustainability: Our Approach Form 10-K: Part II, Consolidated Results
A70: GRI 200 ECONOMIC | B70: 203 Indirect Economic Impacts | C70: 203-1 | D70: Infrastructure investments and services supported | E70: Annual Report on Sustainability: Stakeholder Engagement & Materiality; Communities & Indigenous Peoples; Economic Contributions; Environment; Performance Data Economic Impact on fcx.com | F70: SDG 2: Zero Hunger SDG 5: Gender Equality SDG 7: Affordable and Clean Energy SDG 9: Industry Innovation and Infrastructure SDG 11: Sustainable Cities and Communities
A71: GRI 200 ECONOMIC | B71: 203 Indirect Economic Impacts | C71: 203-2 | D71: Significant indirect economic impacts | E71: Annual Report on Sustainability: Stakeholder Engagement & Materiality; Communities & Indigenous Peoples; Economic Contributions; Performance Data Economic Impact on fcx.com | F71: SDG 1: No Poverty SDG 2: Zero Hunger SDG 3: Good Health and Well-Being SDG 8: Decent Work and Economic Growth SDG 10: Reduced Inequalities SDG 17: Partnerships for the Goals
A72: GRI 200 ECONOMIC | B72: 204 Procurement Practices | C72: 103-1 | D72: Explanation of the material topic and its Boundary | E72: Annual Report on Sustainability: Our Approach; Stakeholder Engagement & Materiality; Responsible Value Chains; Community & Indigenous Peoples; Economic Contributions Economic Impact on fcx.com Form 10-K: Part I, Sources and Availability of Energy, Natural Resources and Raw Materials
A73: GRI 200 ECONOMIC | B73: 204 Procurement Practices | C73: 103-2 | D73: The management approach and its components | E73: Annual Report on Sustainability: Our Approach; Business Conduct & Policies; Letter to Stakeholders; Views from Our Corporate Responsibility Committee Chair; Responsible Value Chains; Economic Contributions; Communities & Indigenous Peoples Economic Impact, Assessing & Managing Impacts on fcx.com Form 10-K: Part I, Sources and Availability of Energy, Natural Resources and Raw Materials
A74: GRI 200 ECONOMIC | B74: 204 Procurement Practices | C74: 103-3 | D74: Evaluation of the management approach | E74: Annual Report on Sustainability: Our Approach Form 10-K: Part I, Sources and Availability of Energy, Natural Resources and Raw Materials
A75: GRI 200 ECONOMIC | B75: 204 Procurement Practices | C75: 204-1 | D75: Proportion of spending on local suppliers | E75: 2021 Procurement Spend Distribution: Local = 28% National = 46% Outside Home Country = 25% Annual Report on Sustainability: Responsible Value Chains > Local Procurement; Economic Contributions; Performance Data Economic Impact > Local Procurement on fcx.com | F75: SDG 12: Responsible Consumption and Production
A76: GRI 200 ECONOMIC | B76: 205 Anti-Corruption | C76: 103-1 | D76: Explanation of the material topic and its Boundary | E76: Annual Report on Sustainability: Our Approach; Business Conduct & Policies; Economic Contributions Economic Impact on fcx.com Form 10-K: Part I, Risk Factors
A77: GRI 200 ECONOMIC | B77: 205 Anti-Corruption | C77: 103-2 | D77: The management approach and its components | E77: Annual Report on Sustainability: Our Approach; Business Conduct & Policies; Letter to Stakeholders; Views from Our Corporate Responsibility Committee Chair; Responsible Value Chains Form 10-K: Part I, Risk Factors
A78: GRI 200 ECONOMIC | B78: 205 Anti-Corruption | C78: 103-3 | D78: Evaluation of the management approach | E78: Annual Report on Sustainability: Our Approach; Business Conduct & Policies Form 10-K: Part I, Risk Factors
A79: GRI 200 ECONOMIC | B79: 205 Anti-Corruption | C79: 205-1 | D79: Operations assessed for risks related to corruption | E79: Every year, our internal audit firm performs a company-wide, global business risk assessment to assist in planning the next year’s audit projects. This overall risk assessment includes corruption as a risk factor. Annual Report on Sustainability: Our Approach; Business Conduct & Policies; Our Strategy in Action: Responsoble Production | F79: SDG 16: Peace, Justice and Strong Institutions
A80: GRI 200 ECONOMIC | B80: 205 Anti-Corruption | C80: 205-2 | D80: Communication and training about anti-corruption policies and procedures | E80: Annual Report on Sustainability: Our Approach; Business Conduct & Policies | F80: SDG 16: Peace, Justice and Strong Institutions
A81: GRI 200 ECONOMIC | B81: 302 Energy | C81: 103-1 | D81: Explanation of the material topic and its Boundary | E81: Annual Report on Sustainability: Our Approach; Thriving Environments > Climate; Performance Data Climate Report Form 10-K: Part I, General
A82: GRI 200 ECONOMIC | B82: 302 Energy | C82: 103-2 | D82: The management approach and its components | E82: Annual Report on Sustainability: Letter to Stakeholders; Views from Our Corporate Responsibility Committee Chair; Climate Form 10-K: Part I, General Climate Report
A83: GRI 200 ECONOMIC | B83: 302 Energy | C83: 103-3 | D83: Evaluation of the management approach | E83: Annual Report on Sustainability: Our Approach Form 10-K
A84: GRI 200 ECONOMIC | B84: 302 Energy | C84: 302-1 | D84: Energy consumption within the organization The reporting organization shall report the following information: a. Total fuel consumption within the organization from non-renewable sources, in joules or multiples, and including fuel types used. b. Total fuel consumption within the organization from renewable sources, in joules or multiples, and including fuel types used. c. In joules, watt-hours or multiples, the total: i. electricity consumption ii. heating consumption iii. cooling consumption iv. steam consumption d. In joules, watt-hours or multiples, the total: i. electricity sold ii. heating sold iii. cooling sold iv. steam sold e. Total energy consumption within the organization, in joules or multiples. f. Standards, methodologies, assumptions, and/or calculation tools used. g. Source of the conversion factors used. | E84: Annual Report on Sustainability: Climate; Performance Data Climate Report Form 10-K: Part I, General | F84: SDG 7: Affordable and Clean Energy SDG 8: Decent Work and Economic Growth SDG 12: Responsible Consumption and Production SDG 13: Climate Action
A85: GRI 200 ECONOMIC | B85: 302 Energy | C85: 302-3 | D85: Energy Intensity | E85: Annual Report on Sustainability: Climate; Performance Data Climate Report | F85: SDG 7: Affordable and Clean Energy SDG 8: Decent Work and Economic Growth SDG 13: Climate Action
A86: GRI 200 ECONOMIC | B86: 302 Energy | C86: 302-4 | D86: Reduction of energy consumption | E86: Annual Report on Sustainability: Climate Climate Report | F86: SDG 7: Affordable and Clean Energy SDG 8: Decent Work and Economic Growth SDG 12: Responsible Consumption and Production SDG 13: Climate Action
A87: GRI 200 ECONOMIC | B87: 303 Water and Effluents | C87: 103-1 | D87: Explanation of the material topic and its Boundary | E87: Annual Report on Sustainability: Our Approach; Water Stewardship; Performance Data Water Report Form 10-K: Part I, General
A88: GRI 200 ECONOMIC | B88: 303 Water and Effluents | C88: 103-2 | D88: The management approach and its components | E88: Annual Report on Sustainability: Letter to Stakeholders; Views from Our Corporate Responsibility Committee Chair; Climate; Water Stewardship; Our Approach; Environment; Business Conduct & Policies; Responsible Value Chains
A89: GRI 200 ECONOMIC | B89: 303 Water and Effluents | C89: 103-3 | D89: Evaluation of the management approach | E89: Annual Report on Sustainability: Our Approach Form 10-K: Part I, General
A90: GRI 200 ECONOMIC | B90: 303 Water and Effluents | C90: 303-1 | D90: Water withdrawal by source | E90: Annual Report on Sustainability: Water Stewardship; Performance Data Water Report | F90: SDG 6: Clean Water and Sanitation
A91: GRI 200 ECONOMIC | B91: 303 Water and Effluents | C91: 303-3 | D91: Water recycled and reused | E91: Annual Report on Sustainability: Water Stewardship; Performance Data Water Report | F91: SDG 6: Clean Water and Sanitation SDG 8: Decent Work and Economic Growth SDG 12: Responsible Consumption and Production
A92: GRI 200 ECONOMIC | B92: 303 Water and Effluents | C92: 303-5 | D92: Water consumption | E92: Annual Report on Sustainability: Water Stewardship; Performance Data Water Report | F92: SDG 6: Clean Water and Sanitation SDG 12: Responsible Consumption and Production
A93: GRI 200 ECONOMIC | B93: 304 Biodiversity | C93: 103-1 | D93: Explanation of the material topic and its Boundary | E93: Annual Report on Sustainability: Our Approach; Thriving Environments Form 10-K: Part I, Risk Factors
A94: GRI 200 ECONOMIC | B94: 304 Biodiversity | C94: 103-2 | D94: The management approach and its components | E94: Annual Report on Sustainability: Letter to Stakeholders; Views from Our Corporate Responsibility Committee Chair; Our Approach; Business Conduct & Policies; Communities & Indigenous Peoples; Thriving Environments Form 10-K
A95: GRI 200 ECONOMIC | B95: 304 Biodiversity | C95: 103-3 | D95: Evaluation of the management approach | E95: Annual Report on Sustainability: Our Approach Form 10-K: Part I, Risk Factors
A96: GRI 200 ECONOMIC | B96: 304 Biodiversity | C96: 304-2 | D96: Significant impacts of activities, products, and services | E96: Annual Report on Sustainability: Biodiversity; Tailings Management Tailings Management on fcx.com | F96: SDG 6: Clean Water and Sanitation SDG 13: Climate Action SDG 14: Life Below Water SDG 15: Life on Land
A97: GRI 200 ECONOMIC | B97: 304 Biodiversity | C97: 304-3 | D97: Habitats protected or restored | E97: Annual Report on Sustainability: Thriving Environments; Mine Closure & Reclamation; Performance Data | F97: SDG 6: Clean Water and Sanitation SDG 13: Climate Action SDG 14: Life Below Water SDG 15: Life on Land
A98: GRI 200 ECONOMIC | B98: 304 Biodiversity | C98: MM1 | D98: Amount of land (owned or leased, and managed for production activities or extractive use) disturbed or rehabilitated | E98: Annual Report on Sustainability: Biodiversity; Mine Closure & Reclamation; Performance Data | F98: SDG 3: Good Health and Well-Being SDG 6: Clean Water and Sanitation SDG 12: Responsible Consumption and Production SDG 13: Climate Action SDG 14: Life Below Water SDG 15: Life on Land
A99: GRI 200 ECONOMIC | B99: 304 Biodiversity | C99: MM2 | D99: The number and percentage of total sites identified as requiring biodiversity management plans according to stated criteria, and the number (percentage) of those sites with plans in place | E99: Annual Report on Sustainability: Biodiversity | F99: SDG 6: Clean Water and Sanitation SDG 13: Climate Action SDG 14: Life Below Water SDG 15: Life on Land
A100: GRI 200 ECONOMIC | B100: 305 Emissions | C100: 103-1 | D100: Explanation of the material topic and its Boundary | E100: Annual Report on Sustainability: Our Approach; Climate Climate Report Form 10-K: Part I, Risk Factors
A101: GRI 200 ECONOMIC | B101: 305 Emissions | C101: 103-2 | D101: The management approach and its components | E101: Annual Report on Sustainability: Letter to Stakeholders; Views from Our Corporate Responsibility Committee Chair; Our Approach; Business Conduct & Policies; Thriving Environments; Climate Form 10-K: Part I, Risk Factors Climate Report
A102: GRI 200 ECONOMIC | B102: 305 Emissions | C102: 103-3 | D102: Evaluation of the management approach | E102: Annual Report on Sustainability: Our Approach Form 10-K: Part I, Risk Factors
A103: GRI 200 ECONOMIC | B103: 305 Emissions | C103: 305-1 | D103: 1 Direct (Scope I) GHG emissions | E103: Annual Report on Sustainability: Climate; Performance Data Climate Report | F103: SDG 3: Good Health and Well-Being SDG 12: Responsible Consumption and Production SDG 13: Climate Action SDG 14: Life Below Water SDG 15: Life on Land
A104: GRI 200 ECONOMIC | B104: 305 Emissions | C104: 305-2 | D104: Energy Indirect (Scope II) GHG emissions | E104: Annual Report on Sustainability: Climate; Performance Data Climate Report | F104: SDG 3: Good Health and Well-Being SDG 12: Responsible Consumption and Production SDG 13: Climate Action SDG 14: Life Below Water SDG 15: Life on Land
A105: GRI 200 ECONOMIC | B105: 305 Emissions | C105: 305-3 | D105: Other indirect (Scope III) GHG emissions | E105: Annual Report on Sustainability: Climate; Performance Data Climate Report | F105: SDG 3: Good Health and Well-Being SDG 12: Responsible Consumption and Production SDG 13: Climate Action SDG 14: Life Below Water SDG 15: Life on Land
A106: GRI 200 ECONOMIC | B106: 305 Emissions | C106: 305-4 | D106: GHG emissions intensity | E106: Annual Report on Sustainability: Climate; Performance Data Climate Report | F106: SDG 12: Responsible Consumption and Production SDG 13: Climate Action SDG 14: Life Below Water SDG 15: Life on Land
A107: GRI 200 ECONOMIC | B107: 305 Emissions | C107: 305-5 | D107: Reduction of GHG emissions | E107: Annual Report on Sustainability: Climate; Performance Data | F107: SDG 12: Responsible Consumption and Production SDG 13: Climate Action SDG 14: Life Below Water SDG 15: Life on Land
A108: GRI 200 ECONOMIC | B108: 305 Emissions | C108: 305-6 | D108: Emissions of ozone-depleting substances (ODS) | E108: Annual Report on Sustainability: Performance Data | F108: SDG 3: Good Health and Well-Being SDG 12: Responsible Consumption and Production SDG 13: Climate Action
A109: GRI 200 ECONOMIC | B109: 305 Emissions | C109: 305-7 | D109: Nitrogen oxides (NOX), sulfur oxides (SOX), and other significant air emissions | E109: Annual Report on Sustainability: Performance Data | F109: SDG 3: Good Health and Well-Being SDG 12: Responsible Consumption and Production SDG 13: Climate Action SDG 14: Life Below Water SDG 15: Life on Land
A110: GRI 200 ECONOMIC | B110: 306 Effluents and Waste | C110: 103-1 | D110: Explanation of the material topic and its Boundary | E110: Annual Report on Sustainability: Our Approach; Waste Management; Tailings Management; Water Stewardship Form 10-K: Part I, Risk Factors
A111: GRI 200 ECONOMIC | B111: 306 Effluents and Waste | C111: 103-2 | D111: The management approach and its components | E111: Annual Report on Sustainability: Letter to Stakeholders; Views from Our Corporate Responsibility Committee Chair; Our Approach; Thriving Environments; Business Conduct & Policies; Waste Management; Tailings Management; Water Stewardship; Community Grievance Mechanism Form 10-K: Part I, Risk Factors Tailings Management Documents; Assessing & Managing Impacts on fcx.com
A112: GRI 200 ECONOMIC | B112: 306 Effluents and Waste | C112: 103-3 | D112: Evaluation of the management approach | E112: Annual Report on Sustainability: Our Approach Form 10-K: Part I, Risk Factors
A113: GRI 200 ECONOMIC | B113: 306 Effluents and Waste | C113: 306-1 | D113: Water discharged by quality and destination | E113: Annual Report on Sustainability: Water Stewardship, Performane Data Tailings Management Documents on fcx.com | F113: SDG 3: Good Health and Well-Being SDG 6: Clean Water and Sanitation SDG 12: Responsible Consumption and Production SDG 13: Climate Action SDG 14: Life Below Water
A114: GRI 200 ECONOMIC | B114: 306 Effluents and Waste | C114: 306-2 | D114: Waste by type and disposal method | E114: Annual Report on Sustainability: Waste Management; Performance Data | F114: SDG 3: Good Health and Well-Being SDG 6: Clean Water and Sanitation SDG 12: Responsible Consumption and Production SDG 13: Climate Action
A115: GRI 200 ECONOMIC | B115: 306 Effluents and Waste | C115: 306-3 | D115: Significant spills | E115: Annual Report on Sustainability: Performance Targets; Environmental Compliance; Performance Data | F115: SDG 3: Good Health and Well-Being SDG 6: Clean Water and Sanitation SDG 12: Responsible Consumption and Production SDG 13: Climate Action SDG 14: Life Below Water SDG 15: Life on Land
A116: GRI 200 ECONOMIC | B116: 306 Effluents and Waste | C116: 306-5 | D116: Water bodies affected by water discharges and/or runoff | E116: Annual Report on Sustainability: Biodiversity; Tailings Management Tailings Management Documents on fcx.com | F116: SDG 6: Clean Water and Sanitation SDG 12: Responsible Consumption and Production SDG 13: Climate Action SDG 14: Life Below Water SDG 15: Life on Land
A117: GRI 200 ECONOMIC | B117: 306 Effluents and Waste | C117: MM3 | D117: Total amounts of overburden, rock, tailings and sludges, and, their associated risks | E117: Annual Report on Sustainability: Tailings Management; Waste Management Tailings Management Documents on fcx.com Form 10-K: Part I, Operational Risks | F117: SDG 3: Good Health and Well-Being SDG 6: Clean Water and Sanitation SDG 11: Sustainable Cities and Communities SDG 12: Responsible Consumption and Production
A118: GRI 300 ENVIRONMENTAL | B118: 307 Environmental Compliance | C118: 103-1 | D118: Explanation of the material topic and its Boundary | E118: Annual Report on Sustainability: Our Approach; Thriving Environments Form 10-K
A119: GRI 300 ENVIRONMENTAL | B119: 307 Environmental Compliance | C119: 103-2 | D119: The management approach and its components | E119: Annual Report on Sustainability: Letter to Stakeholders; Views from Our Corporate Responsibility Committee Chair; Our Approach; Thriving Environments; Business Conduct & Policies Form 10-K: Part I, Operational Risks Assessing & Managing Impacts > Community Grievance Mechanisms on fcx.com
A120: GRI 300 ENVIRONMENTAL | B120: 307 Environmental Compliance | C120: 103-3 | D120: Evaluation of the management approach | E120: Annual Report on Sustainability: Our Approach Form 10-K: Part I, Operational Risks
A121: GRI 300 ENVIRONMENTAL | B121: 307 Environmental Compliance | C121: 307-1 | D121: Non-compliance with environmental laws and regulations | E121: Annual Report on Sustainability: Thriving Environments; Environmental Compliance | F121: SDG 6: Clean Water and Sanitation SDG 12: Responsible Consumption and Production SDG 13: Climate Action SDG 14: Life Below Water SDG 15: Life on Land SDG 16: Peace, Justice and Strong Institutions
A122: GRI 300 ENVIRONMENTAL | B122: 308 Supplier Environmental Assessment | C122: 103-1 | D122: Explanation of the material topic and its Boundary | E122: Annual Report on Sustainability: Our Approach; Thriving Environments Environmental Policy
A123: GRI 300 ENVIRONMENTAL | B123: 308 Supplier Environmental Assessment | C123: 103-2 | D123: The management approach and its components | E123: Annual Report on Sustainability: Our Approach; Thriving Environments; Business Conduct & Policies; Responsible Value Chains
A124: GRI 300 ENVIRONMENTAL | B124: 308 Supplier Environmental Assessment | C124: 103-3 | D124: Evaluation of the management approach | E124: Annual Report on Sustainability: Our Approach
A125: GRI 300 ENVIRONMENTAL | B125: 308 Supplier Environmental Assessment | C125: 308-1 | D125: New suppliers that were screened using environmental criteria | E125: Annual Report on Sustainability: Business Conduct & Policies; Responsible Value Chains | F125: SDG 12: Responsible Consumption and Production
A126: GRI 400 SOCIAL | B126: 401 Employment | C126: 103-1 | D126: Explanation of the material topic and its Boundary | E126: Annual Report on Sustainability: Our Approach; Workforce
A127: GRI 400 SOCIAL | B127: 401 Employment | C127: 103-2 | D127: The management approach and its components | E127: Annual Report on Sustainability: Our Approach
A128: GRI 400 SOCIAL | B128: 401 Employment | C128: 103-3 | D128: Evaluation of the management approach | E128: Annual Report on Sustainability: Our Approach
A129: GRI 400 SOCIAL | B129: 401 Employment | C129: 401-1 | D129: New employee hires and employee turnover | E129: Annual Report on Sustainability: Workforce | F129: SDG 5: Gender Equality SDG 8: Decent Work and Economic Growth SDG 10: Reduced Inequalities
A130: GRI 400 SOCIAL | B130: 402 Labor/Management Relations | C130: 103-1 | D130: Explanation of the material topic and its Boundary | E130: Annual Report on Sustainability: Our Approach; Workforce
A131: GRI 400 SOCIAL | B131: 402 Labor/Management Relations | C131: 103-2 | D131: The management approach and its components | E131: Annual Report on Sustainability: Our Approach; Workforce
A132: GRI 400 SOCIAL | B132: 402 Labor/Management Relations | C132: 103-3 | D132: Evaluation of the management approach | E132: Annual Report on Sustainability: Our Approach
A133: GRI 400 SOCIAL | B133: 402 Labor/Management Relations | C133: 402-1 | D133: Minimum notice periods regarding operational changes | E133: Annual Report on Sustainability: Workforce; Labor Relations | F133: SDG 8: Decent Work and Economic Growth
A134: GRI 400 SOCIAL | B134: 402 Labor/Management Relations | C134: MM4 | D134: Number of strikes and lock-outs exceeding one week's duration, by country | E134: In 2021, there were no strikes or lock-outs at any of our operations. | F134: SDG 3: Good Health and Well-Being SDG 8: Decent Work and Economic Growth SDG 10: Reduced Inequalities
A135: GRI 400 SOCIAL | B135: 403 Occupational Health and Safety | C135: 103-1 | D135: Explanation of the material topic and its Boundary | E135: Annual Report on Sustainability: Our Approach; Health & Safety
A136: GRI 400 SOCIAL | B136: 403 Occupational Health and Safety | C136: 103-2 | D136: The management approach and its components | E136: Annual Report on Sustainability: Letter to Stakeholders; Views from Our Corporate Responsibility Committee Chair; Our Approach
A137: GRI 400 SOCIAL | B137: 403 Occupational Health and Safety | C137: 103-3 | D137: Evaluation of the management approach | E137: Annual Report on Sustainability: Our Approach
A138: GRI 400 SOCIAL | B138: 403 Occupational Health and Safety | C138: 403-1 | D138: Occupational health and safety management system | E138: Annual Report on Sustainability: Health & Safety | F138: SDG 3: Good Health and Well-Being SDG 8: Decent Work and Economic Growth
A139: GRI 400 SOCIAL | B139: 403 Occupational Health and Safety | C139: 403-2 | D139: Hazard identification, risk assessment, and incident investigation | E139: Annual Report on Sustainability: Health & Safety; Our Strategy in Action: Responsible Production | F139: SDG 3: Good Health and Well-Being SDG 8: Decent Work and Economic Growth
A140: GRI 400 SOCIAL | B140: 403 Occupational Health and Safety | C140: 403-3 | D140: Occupational health services | E140: Annual Report on Sustainability: Health & Safety; Our Strategy in Action: Responsible Production | F140: SDG 3: Good Health and Well-Being SDG 8: Decent Work and Economic Growth
A141: GRI 400 SOCIAL | B141: 403 Occupational Health and Safety | C141: 403-4 | D141: Worker participation, consultation, and communication on occupational health and safety | E141: Annual Report on Sustainability: Health & Safety | F141: SDG 3: Good Health and Well-Being SDG 8: Decent Work and Economic Growth
A142: GRI 400 SOCIAL | B142: 403 Occupational Health and Safety | C142: 403-5 | D142: Worker training on occupational health and safety | E142: Annual Report on Sustainability: Health & Safety | F142: SDG 3: Good Health and Well-Being SDG 8: Decent Work and Economic Growth
A143: GRI 400 SOCIAL | B143: 403 Occupational Health and Safety | C143: 403-6 | D143: Promotion of worker health | E143: Annual Report on Sustainability: Health & Safety | F143: SDG 3: Good Health and Well-Being SDG 8: Decent Work and Economic Growth
A144: GRI 400 SOCIAL | B144: 403 Occupational Health and Safety | C144: 403-7 | D144: Prevention and mitigation of occupational health and safety impacts directly linked by business relationships | E144: Annual Report on Sustainability: Health & Safety | F144: SDG 3: Good Health and Well-Being SDG 8: Decent Work and Economic Growth
A145: GRI 400 SOCIAL | B145: 404 Training and Education | C145: 103-1 | D145: Explanation of the material topic and its Boundary | E145: Annual Report on Sustainability: Our Approach; Workforce; Communities & Indegenious Peoples Communities & Indegenious Peoples on fcx.com
A146: GRI 400 SOCIAL | B146: 404 Training and Education | C146: 103-2 | D146: The management approach and its components | E146: Annual Report on Sustainability: Our Approach; Workforce; Communities & Indegenious Peoples Communities & Indegenious Peoples on fcx.com
A147: GRI 400 SOCIAL | B147: 404 Training and Education | C147: 103-3 | D147: Evaluation of the management approach | E147: Annual Report on Sustainability: Our Approach; Workforce; Communities & Indegenious Peoples Communities & Indegenious Peoples on fcx.com
A148: GRI 400 SOCIAL | B148: 404 Training and Education | C148: 404-2 | D148: Programs for upgrading employee skills and transition assistance programs | E148: Annual Report on Sustainability: Workforce FMJobs.com | F148: SDG 4: Quality Education SDG 8: Decent Work and Economic Growth
A149: GRI 400 SOCIAL | B149: 405 Diversity and Equal Opportunity | C149: 103-1 | D149: Explanation of the material topic and its Boundary | E149: Annual Report on Sustainability: Our Approach; Workforce
A150: GRI 400 SOCIAL | B150: 405 Diversity and Equal Opportunity | C150: 103-2 | D150: The management approach and its components | E150: Annual Report on Sustainability: Our Approach
A151: GRI 400 SOCIAL | B151: 405 Diversity and Equal Opportunity | C151: 103-3 | D151: Evaluation of the management approach | E151: Annual Report on Sustainability: Our Approach
A152: GRI 400 SOCIAL | B152: 405 Diversity and Equal Opportunity | C152: 405-1 | D152: Diversity of governance bodies and employees | E152: Annual Report on Sustainability: Our Approach; Robust Governance; Workforce Proxy Statement: Information About Director Nominees | F152: SDG 5: Gender Equality SDG 8: Decent Work and Economic Growth
A153: GRI 400 SOCIAL | B153: 405 Diversity and Equal Opportunity | C153: 405-2 | D153: Ratio of basic salary and remuneration of women to men | E153: We are committed to providing equal pay for equal work regardless of gender, race, ethnicity or any area protected by law. We periodically conduct internal compensation reviews to identify possible pay gaps which cannot be explained through performance, distribution of jobs, experience, time in role and other legitimate business-related factors. To further our commitment to provide equal pay for equal work and to support our global inclusion and diversity efforts, in 2021, we engaged a third-party compensation consultant, Mercer, to evaluate our gender pay equity practices across our global operations. The review included a robust statistical analysis and detailed compensation reviews of more than 24,000 employees globally. The initial results of this comprehensive gender pay evaluation showed that, worldwide, female employees were paid more than 99 cents on the dollar in the aggregate when compared to male employees. | F153: SDG 5: Gender Equality SDG 8: Decent Work and Economic Growth SDG 10: Reduced Inequalities
A154: GRI 400 SOCIAL | B154: 406 Non-discrimination | C154: 103-1 | D154: Explanation of the material topic and its Boundary | E154: Annual Report on Sustainability: Our Approach; Workforce Human Rights Policy
A155: GRI 400 SOCIAL | B155: 406 Non-discrimination | C155: 103-2 | D155: The management approach and its components | E155: Annual Report on Sustainability: Our Approach; Business Conduct & Policies
A156: GRI 400 SOCIAL | B156: 406 Non-discrimination | C156: 103-3 | D156: Evaluation of the management approach | E156: Annual Report on Sustainability: Our Approach
A157: GRI 400 SOCIAL | B157: 406 Non-discrimination | C157: 406-1 | D157: Incidents of discrimination and corrective actions taken | E157: Annual Report on Sustainability: Robust Governance; Workforce | F157: SDG 5: Gender Equality SDG 8: Decent Work and Economic Growth SDG 16: Peace, Justice and Strong Institutions
A158: GRI 400 SOCIAL | B158: 407 Freedom of Association and Collective Bargaining | C158: 103-1 | D158: Explanation of the material topic and its Boundary | E158: Annual Report on Sustainability: Robust Governance; Workforce Human Rights Policy
A159: GRI 400 SOCIAL | B159: 407 Freedom of Association and Collective Bargaining | C159: 103-2 | D159: The management approach and its components | E159: Annual Report on Sustainability: Our Approach; Workforce Form 10-K
A160: GRI 400 SOCIAL | B160: 407 Freedom of Association and Collective Bargaining | C160: 103-3 | D160: Evaluation of the management approach | E160: Annual Report on Sustainability: Our Approach
A161: GRI 400 SOCIAL | B161: 407 Freedom of Association and Collective Bargaining | C161: 407-1 | D161: Operations and suppliers in which the right to freedom of association and collective bargaining may be at risk | E161: We do not believe that the right to exercise freedom of association and collective bargaining is at significant risk at any of our operations. Annual Report on Sustainability: Workforce; Performance Data | F161: SDG 8: Decent Work and Economic Growth
A162: GRI 400 SOCIAL | B162: 408 Child Labor | C162: 103-1 | D162: Explanation of the material topic and its Boundary | E162: Annual Report on Sustainability: Our Approach; Responsible Value Chains; Human Rights Human Rights Policy Responsible Sourcing of Minerals Policy Human Rights on fcx.com
A163: GRI 400 SOCIAL | B163: 408 Child Labor | C163: 103-2 | D163: The management approach and its components | E163: Annual Report on Sustainability: Our Approach; Responsible Value Chains; Human Rights Human Rights Policy Responsible Sourcing of Minerals Policy Human Rights on fcx.com
A164: GRI 400 SOCIAL | B164: 408 Child Labor | C164: 103-3 | D164: Evaluation of the management approach | E164: Annual Report on Sustainability: Our Approach; Responsible Value Chains; Human Rights Human Rights on fcx.com
A165: GRI 400 SOCIAL | B165: 408 Child Labor | C165: 408-1 | D165: Operations and suppliers at significant risk for incidents of child labor | E165: We prohibit forced, compulsory and child labor and human trafficking. We do not believe that any of our operations are at significant risk for incidents of child, forced or compulsory labor. Annual Report on Sustainability: Business Conduct & Policies; Human Rights; Responsible Value Chains; Workforce Human Rights Policy Business Partner Code of Conduct Responsible Souring of Minerals Policy Human Rights on fcx.com UK MSA Statement | F165: SDG 8: Decent Work and Economic Growth SDG 16: Peace, Justice and Strong Institutions
A166: GRI 400 SOCIAL | B166: 409 Forced or Compulsory Labor | C166: 103-1 | D166: Explanation of the material topic and its Boundary | E166: Annual Report on Sustainability: Our Approach; Human Rights; Responsible Value Chains Human Rights Policy Responsible Sourcing of Minerals Policy Human Rights on fcx.com
A167: GRI 400 SOCIAL | B167: 409 Forced or Compulsory Labor | C167: 103-2 | D167: The management approach and its components | E167: Annual Report on Sustainability: Our Approach; Human Rights; Responsible Value Chains Human Rights Policy Responsible Sourcing of Minerals Policy Human Rights on fcx.com
A168: GRI 400 SOCIAL | B168: 409 Forced or Compulsory Labor | C168: 103-3 | D168: Evaluation of the management approach | E168: Annual Report on Sustainability: Our Approach; Human Rights; Responsible Value Chains Human Rights on fcx.com
A169: GRI 400 SOCIAL | B169: 409 Forced or Compulsory Labor | C169: 409-1 | D169: Operations and suppliers at significant risk for incidents of forced or compulsory labor | E169: We prohibit forced, compulsory and child labor and human trafficking. We do not believe that any of our operations are at significant risk for incidents of child, forced or compulsory labor. Annual Report on Sustainability: Business Conduct & Policies; Human Rights; Responsible Value Chains; Workforce Human Rights Policy Business Partner Code of Conduct Responsible Souring of Minerals Policy Human Rights on fcx.com UK MSA Statement | F169: SDG 8: Decent Work and Economic Growth
A170: GRI 400 SOCIAL | B170: 410 Security Practices | C170: 103-1 | D170: Explanation of the material topic and its Boundary | E170: Annual Report on Sustainability: Our Approach Human Rights Policy
A171: GRI 400 SOCIAL | B171: 410 Security Practices | C171: 103-2 | D171: The management approach and its components | E171: Annual Report on Sustainability: Our Approach
A172: GRI 400 SOCIAL | B172: 410 Security Practices | C172: 103-3 | D172: Evaluation of the management approach | E172: Annual Report on Sustainability: Our Approach
A173: GRI 400 SOCIAL | B173: 410 Security Practices | C173: 410-1 | D173: Security personnel trained in human rights policies or procedures | E173: Voluntary Principles Report | F173: SDG 16: Peace, Justice and Strong Institutions
A174: GRI 400 SOCIAL | B174: 411 Rights of Indigenous Peoples | C174: 103-1 | D174: Explanation of the material topic and its Boundary | E174: Annual Report on Sustainability: Our Approach; Human Rights; Communities & Indigenous Peoples Social Performance Policy Human Rights Policy Human Rights and Land Use and Customary Rights at PT-FI on fcx.com
A175: GRI 400 SOCIAL | B175: 411 Rights of Indigenous Peoples | C175: 103-2 | D175: The management approach and its components | E175: Annual Report on Sustainability: Our Approach; Communities & Indigenous Peoples Human Rights and Land Use and Customary Rights at PT-FI on fcx.com
A176: GRI 400 SOCIAL | B176: 411 Rights of Indigenous Peoples | C176: 103-3 | D176: Evaluation of the management approach | E176: Annual Report on Sustainability: Our Approach; Human Rights; Communities & Indigenous Peoples Land Use and Customary Rights at PT-FI on fcx.com
A177: GRI 400 SOCIAL | B177: 411 Rights of Indigenous Peoples | C177: 411-1 | D177: Incidents of violations involving rights of indigenous peoples | E177: Annual Report on Sustainability: Communities & Indigenous Peoples; Human Rights Human Rights, Assessing and Managing Impacts, Communities & Indigenous Peoples, Land Use and Customary Rights at PT-FI on fcx.com | F177: SDG 2: Zero Hunger SDG 10: Reduced Inequalities
A178: GRI 400 SOCIAL | B178: 411 Rights of Indigenous Peoples | C178: MM5 | D178: Total number of operations taking place in or adjacent to Indigenous Peoples' territories, and number and percentage of operations or sites where there are formal agreements with Indigenous Peoples' communities | E178: Annual Report on Sustainability: Communities & Indigenous Peoples Land Use and Customary Rights at PT-FI on fcx.com Voluntary Principles Report | F178: SDG 1: No Poverty SDG 2: Zero Hunger SDG 3: Good Health and Well-Being SDG 10: Reduced Inequalities
A179: GRI 400 SOCIAL | B179: 412 Human Rights Assessment | C179: 103-1 | D179: Explanation of the material topic and its Boundary | E179: Annual Report on Sustainability: Our Approach; Human Rights Human Rights on fcx.com
A180: GRI 400 SOCIAL | B180: 412 Human Rights Assessment | C180: 103-2 | D180: The management approach and its components | E180: Annual Report on Sustainability: Our Approach; Human Rights
A181: GRI 400 SOCIAL | B181: 412 Human Rights Assessment | C181: 103-3 | D181: Evaluation of the management approach | E181: Annual Report on Sustainability: Our Approach; Human Rights
A182: GRI 400 SOCIAL | B182: 412 Human Rights Assessment | C182: 412-1 | D182: Operations that have been subject to human rights reviews or impact assessments | E182: Annual Report on Sustainability: Human Rights Human Rights on fcx.com | F182: SDG 5: Gender Equality SDG 10: Reduced Inequalities SDG 16: Peace, Justice and Strong Institutions
A183: GRI 400 SOCIAL | B183: 412 Human Rights Assessment | C183: 412-2 | D183: Employee training on human rights policies or procedures | E183: Annual Report on Sustainability: Business Conduct & Policies; Human Rights Training Voluntary Principles Report Human Rights on fcx.com
A184: GRI 400 SOCIAL | B184: 413 Local Communities | C184: 103-1 | D184: Explanation of the material topic and its Boundary | E184: Annual Report on Sustainability: Our Approach Social Performance Policy
A185: GRI 400 SOCIAL | B185: 413 Local Communities | C185: 103-2 | D185: The management approach and its components | E185: Annual Report on Sustainability: Our Approach; Communities & Indigenous Peoples
A186: GRI 400 SOCIAL | B186: 413 Local Communities | C186: 103-3 | D186: Evaluation of the management approach | E186: Annual Report on Sustainability: Our Approach; Communities & Indigenous Peoples
A187: GRI 400 SOCIAL | B187: 413 Local Communities | C187: 413-1 | D187: Operations with local community engagement, impact assessments, and development programs | E187: Annual Report on Sustainability: Our Approach; Communities & Indigenous Peoples; Stakeholder Engagement Assessing and Managing Impacts on fcx.com | F187: SDG 4: Quality Education SDG 8: Decent Work and Economic Growth SDG 10: Reduced Inequalities SDG 11: Sustainable Cities and Communities
A188: GRI 400 SOCIAL | B188: 413 Local Communities | C188: MM6 | D188: Number and description of significant disputes relating to land use, customary rights of local communities and Indigenous Peoples | E188: Communities & Indigenous Peoples, Land Use and Customary Rights and Community Grievance Mechanisms on fcx.com | F188: SDG 1: No Poverty SDG 2: Zero Hunger SDG 8: Decent Work and Economic Growth SDG 10: Reduced Inequalities SDG 11: Sustainable Cities and Communities
A189: GRI 400 SOCIAL | B189: 413 Local Communities | C189: MM7 | D189: The extent to which grievance mechanisms were used to resolve disputes relating to land use, customary rights of local communities and Indigenous Peoples, and the outcomes | E189: Communities & Indigenous Peoples, Land Use and Customary Rights and Community Grievance Mechanisms on fcx.com | F189: SDG 1: No Poverty SDG 2: Zero Hunger SDG 4: Quality Education SDG 8: Decent Work and Economic Growth SDG 10: Reduced Inequalities SDG 11: Sustainable Cities and Communities
A190: GRI 400 SOCIAL | B190: 414 Supplier Social Assessment | C190: 103-1 | D190: Explanation of the material topic and its Boundary | E190: Annual Report on Sustainability: Our Approach; Business Conduct & Policies Business Partner Code of Conduct
A191: GRI 400 SOCIAL | B191: 414 Supplier Social Assessment | C191: 103-2 | D191: The management approach and its components | E191: Annual Report on Sustainability: Our Approach; Business Conduct & Policies; Responsible Value Chains; Economic Contributions; Local Procurement Economic Impact on fcx.com
A192: GRI 400 SOCIAL | B192: 414 Supplier Social Assessment | C192: 103-3 | D192: Evaluation of the management approach | E192: Annual Report on Sustainability: Our Approach
A193: GRI 400 SOCIAL | B193: 414 Supplier Social Assessment | C193: 414-1 | D193: 414-1 New suppliers that were screened using social criteria | E193: Our online due diligence system, the Freeport Compliance eXchange (FCeX), is designed to assess risk in the areas of anti-corruption, international trade, human rights and responsible sourcing. In 2020, Freeport added a number of sustainability-related questions to the FCeX survey to gain a better picture of the risks a supplier may present across ESG issues. In 2021, Freeport completed its global roll out of FCeX and the survey is now being utilized for all new vendors as our first line of due diligence in our responsible sourcing program. All suppliers receive and are expected to perform in accordance with: Business Partner Code of Conduct Annual Report on Sustainability: Business Conduct & Policies; Responsible Value Chains; Human Rights UK MSA Statement Suppliers > Toolier for Existing Suppliers > Freeport Compliance eXchange on fcx.com | F193: SDG 5: Gender Equality SDG 8: Decent Work and Economic Growth SDG 12: Responsible Consumption and Production SDG 16: Peace, Justice and Strong Institutions
A194: GRI 400 SOCIAL | B194: 419 Socioeconomic Compliance | C194: 103-1 | D194: Explanation of the material topic and its Boundary | E194: Annual Report on Sustainability: Our Approach; Business Conduct & Policies
A195: GRI 400 SOCIAL | B195: 419 Socioeconomic Compliance | C195: 103-2 | D195: The management approach and its components | E195: Annual Report on Sustainability: Our Approach
A196: GRI 400 SOCIAL | B196: 419 Socioeconomic Compliance | C196: 103-3 | D196: Evaluation of the management approach | E196: Annual Report on Sustainability: Our Approach
A197: GRI 400 SOCIAL | B197: 419 Socioeconomic Compliance | C197: 419-1 | D197: Non-compliance with laws and regulations in the social and economic area | E197: As a global company in a regulated industry, we are subject to thousands of legislative, judicial and administrative regulations at all levels of government in all jurisdictions. Please refer to our annual report on Form 10-K and quarterly reports on Form 10-Q. Annual Report on Sustainability: Environmental Compliance | F197: SDG 16: Peace, Justice and Strong Institutions SDG 12: Responsible Consumption and Production
A198: GRI 400 SOCIAL | B198: Other: Emergency Preparedness | C198: 103-1 | D198: Explanation of the material topic and its Boundary | E198: Annual Report on Sustainability: Health & Safety > Emergency Response Planning
A199: GRI 400 SOCIAL | B199: Other: Emergency Preparedness | C199: 103-2 | D199: The management approach and its components | E199: Annual Report on Sustainability: Health & Safety > Emergency Response Planning | F199: SDG 3: Good Health and Well-being SDG 12: Responsible Consumption and Production
A200: GRI 400 SOCIAL | B200: Other: Emergency Preparedness | C200: 103-3 | D200: Evaluation of the management approach | E200: Annual Report on Sustainability: Health & Safety > Emergency Response Planning
A201: GRI 400 SOCIAL | B201: Other: Materials Stewardship | C201: 103-1 | D201: Explanation of the material topic and its Boundary | E201: Annual Report on Sustainability: Our Approach; Responsible Value Chains
... 7 more rows

Sheet ICMM
A1: INTERNATIONAL COUNCIL OF MINING AND METALS (ICMM) PRINCIPLES
A3: We disclose in alignment with the Performance Expectations at the corporate level. For our asset-level reports, please see our website at fcx.com.
A5: PRINCIPLE | B5: PRINCIPLE DESCRIPTION | C5: PERFORMANCE EXPECTATION | D5: DESCRIPTION | E5: FCX RESPONSE
A6: PRINCIPLE 1: ETHICAL BUSINESS | B6: Apply ethical business practices and sound systems of corporate governance and transparency to support sustainable development. | C6: 1.1 | D6: Establish systems to maintain compliance with applicable law. | E6: Freeport is committed to the highest level of ethical and legal conduct in all of our business activities. Acting ethically involves more than simply complying with laws and regulations; it involves recognition that our decisions affect others. By keeping this in mind, we aspire to earn the respect, trust and confidence of our stakeholders. • Form 10-K • Information can be found in our 2021 Annual Report on Sustainability: Robust Governance > Business Conduct & Policies
A7: PRINCIPLE 1: ETHICAL BUSINESS | B7: Apply ethical business practices and sound systems of corporate governance and transparency to support sustainable development. | C7: 1.2 | D7: Implement policies and practices to prevent bribery, corruption and to publicly disclose facilitation payments. | E7: Freeport-McMoRan maintains zero tolerance for corruption of any kind, and we expect the same from our employees, contractors and suppliers. Freeport-McMoRan does not obtain a business advantage through bribery, improper payments, kickbacks or any other illegal means. No employee or contractor may offer, pay, solicit or accept bribes in any form. • Principles of Business Conduct (PBC) • Anti-Corruption Policy • Information can be found in our 2021 Annual Report on Sustainability: Robust Governance > Business Conduct & Policies, Responsible Value Chains
A8: PRINCIPLE 1: ETHICAL BUSINESS | B8: Apply ethical business practices and sound systems of corporate governance and transparency to support sustainable development. | C8: 1.3 | D8: Implement policies and standards consistent with the ICMM policy framework. | E8: To facilitate implementation of our policy commitments and objectives, we utilize a combination of audit and assessment programs along with an annual program for site-level third-party assurance of our sustainability framework – including the implementation of our commitments under the ICMM Mining with Principles Framework. We report and track our progress in our Annual Report on Sustainability as well as other external disclosures including the Voluntary Principles Report to the Plenary (VPs), the UK Modern Slavery Act Statement and the OECD Step 5 Report. • Voluntary Principles Report to the Plenary • UK Modern Slavery Act Statement • OECD Step 5 Report • Information can be found in our 2021 Annual Report on Sustainability: Robust Governance
A9: PRINCIPLE 1: ETHICAL BUSINESS | B9: Apply ethical business practices and sound systems of corporate governance and transparency to support sustainable development. | C9: 1.4 | D9: Assign accountability for sustainability performance at the Board and/or Executive Committee level. | E9: The CRC, on behalf of the Board, is responsible for oversight of the company’s environmental and social policies and implementation programs and related matters. The CRC reviews the effectiveness of the company's strategies, programs, and policy implementation with respect to safety and health, responsible production frameworks, climate tailings management and stewardship, water stewardship, biodiversity and land management, waste management, human rights, stakeholder relations, social performance and Indigenous Peoples, responsible sourcing and political activity and spending practices. During 2021, the CRC had three regularly scheduled meetings and one special meeting. Starting in 2022, the Board added a fourth regularly scheduled CRC meeting to continue to support the Board’s increased oversight on ESG-related topics. Our Chairman and CEO has responsibility for the company’s sustainability performance. The company’s cross-functional Sustainability Leadership Team (SLT) includes members of the management team tasked with defining the sustainability strategy and implementing our sustainability policies, systems and programs across the organization. In 2021, the SLT met monthly and members of the SLT regularly reported to executive leadership, including our Chairman and CEO and our President. In addition, members of the SLT regularly report to the Board’s CRC on key ESG matters and periodically report to the full Board. In addition, members of the SLT report to the CRC on key ESG matters at regularly scheduled meetings. The SLT is sponsored by our Senior Vice President and Chief Administrative Officer and is led by our Chief Sustainability Officer, with active participation from other members of the SLT, including our four operational business unit Presidents. SLT membership also includes senior leadership from functional groups, including health and safety, security, supply chain, human resources, sales, legal, compliance, sustainability and finance. Executive officers are held accountable for the company’s sustainability performance through the company’s performance-based annual incentive program (AIP). In 2021, ESG metrics collectively accounted for 25% of the AIP (15% safety and 10% sustainability), with the sustainability metric including environment, human rights, communities, climate, tailings management and workforce inclusion and diversity priorities. • Proxy Statement: ESG & Sustainability - Governance • CRC Charter • Information can be found in our 2021 Annual Report on Sustainability: Our Approach; Letter to Stakeholders; Message from our CRC Chair and Governance
A10: PRINCIPLE 1: ETHICAL BUSINESS | B10: Apply ethical business practices and sound systems of corporate governance and transparency to support sustainable development. | C10: 1.5 | D10: Disclose the value and beneficiaries of financial and in-kind political contributions whether directly or through an intermediary. | E10: Freeport-McMoRan Inc. recognizes that public policy decisions can significantly affect our operations, future business opportunities, employees, shareholders and the communities in which FCX operates. For this reason, we exercise our right and responsibility to participate in public policy matters by following public matters that are important to us and interacting, where appropriate, with elected and appointed government officials, regulators and their staff. FCX is committed to the highest level of ethical and legal conduct regarding its political activity and spending practices and to rigorous compliance with applicable laws and regulations. • Information can be found on our website at FCX.com in our CRC Charter, Anti-Corruption Policy and Political Activity and Spending Practices
A11: PRINCIPLE 2: DECISION MAKING | B11: Integrate sustainable development in corporate strategy and decision-making processes. | C11: 2.1 | D11: Integrate sustainable development principles into corporate strategy and decisionmaking processes relating to investments and in the design, operation and closure of facilities. | E11: Our cross-functional SLT includes members of the management team tasked with defining the sustainability strategy and implementing our sustainability policies, systems, and programs across the organization to achieve integrated decision-making for responsible production and performance. The SLT evolved our sustainability strategy, formalized its integration throughout the company and clarified our ambition: Accelerate the Future, Responsibly. We integrate our voluntary commitments, policies and practices into our risk register process, which drives our actions. Regular measurement and reporting support our understanding of our current performance, including any gaps, and the actions we need to take to improve. We seek to plan and operate our mines in a manner that considers post-mining land use well in advance of mine closure. Likewise, when designing new projects, or expanding existing ones, we plan for how the land can be reclaimed once the mine closes. Our philosophy of responsible production continues when we close our mining and processing sites through to reclamation. We strive to partner collaboratively with our host communities and Indigenous Peoples to define and deliver shared value, throughout the mine life cycle. We not only seek to avoid, minimize and mitigate negative impacts from our operations but also aim to provide long-lasting benefits to our neighbors – beyond closure. We aim to work in partnership with our host communities – which in many cases includes Indigenous Peoples – to help build resiliency and well-being at the individual- and institutional-level to help people thrive over the life of our mines and beyond. • Information can be found in our 2021 Annual Report on Sustainability: Our Approach and Environment > Mine Closure and Reclamation
A12: PRINCIPLE 2: DECISION MAKING | B12: Integrate sustainable development in corporate strategy and decision-making processes. | C12: 2.2 | D12: Support the adoption of responsible health and safety, environmental, human rights and labour policies and practices by joint venture partners, suppliers and Contractors, based on risk. | E12: At each of our operations, we aim to be a preferred employer, neighbor, business partner and supplier. We are committed to responsibly managing our social impacts on people, which includes focusing on the health, safety and security of our workforce and host communities and respecting the rights of people who may be impacted by our business. We recognize mining impacts the natural environment. We are committed to conducting our mining and processing operations in a manner that minimizes adverse impacts on the environment and supports protection of the natural environment and ecosystems through responsible environmental stewardship, strong management systems and continuous improvement. Effective environmental protection and stewardship are key to ensuring the long-term viability of our business, including maintaining the necessary support from our host communities and governments. Our Business Partner Code of Conduct and compliance screening processes represent the foundation of our responsible sourcing program for all suppliers globally. Based on our PBC, our Business Partner Code of Conduct sets forth expectations for suppliers and contractors in areas such as safety, human rights, anti-corruption, community and environment. We mandate human rights standards through our supplier contracts. • Information can be found in our 2021 Annual Report on Sustainability: Robust Governance > Business Conduct & Policies; Our Approach; Empowered People & Resilient Communities; Thriving Environments
A13: PRINCIPLE 3: HUMAN RIGHTS | B13: Respect human rights and the interests, cultures, customs and values of employees and communities affected by our activities. | C13: 3.1 | D13: Support the UN Guiding Principles on Business and Human Rights by developing a policy commitment to respect human rights, undertaking human rights due diligence and providing for or cooperating in processes to enable the remediation of adverse human rights impacts that members have caused or contributed to. | E13: Freeport is dedicated to the recognition, respect and promotion of human rights wherever we do business. Respect is a core value that guides how we do business at Freeport. We are committed to respecting the rights of all people, including our employees, contractors and suppliers, community members and others who potentially may be impacted by our business activities. We take this obligation seriously in all aspects of our business, and we expect the same of our business partners. We also recognize that human rights are overarching and that they connect to every aspect of our business. As such, we aim to promote human rights through proactive engagement with host governments and communities and by training our employees and contractors. As we seek to further embed respect for human rights across our organizational activities, we use our risk register process to identify risks to people at each operation and address potential and actual impacts on rights-holders. This process is developed by ongoing stakeholder engagement, grievance management and the results of human rights impact assessments (HRIAs). Freeport respects internationally recognized human rights, including the rights under the International Bill of Human Rights, and is committed to implementing the United Nations Guiding Principles on Business and Human Rights (UNGPs). We work toward continuous improvement in establishing greater institutional awareness and deeper understanding of what human rights are and how they impact every role within the company. We also are committed to comply with the UK Modern Slavery Act, aimed at minimizing the risk of slavery and human trafficking throughout our business and supply chain. Our most recent UK Modern Slavery Act Statement is available on ‘fcx.com’. • Voluntary Principles Report • UK Modern Slavery Act Statement • 2020 OECD Step 5 Due Diligence Report • Information can be found in our 2021 Annual Report on Sustainability: Robust Governance, Empowered People & Resilient Communities, and on our website at FCX.com – Human Rights > Due Diligence
A14: PRINCIPLE 3: HUMAN RIGHTS | B14: Respect human rights and the interests, cultures, customs and values of employees and communities affected by our activities. | C14: 3.2 | D14: Avoid the involuntary physical or economic displacement of families and communities. Where this is not possible apply the mitigation hierarchy and implement actions or remedies that address residual adverse effects to restore or improve livelihoods and standards of living of displaced people. | E14: We are committed to respecting the human rights of community members and, when unavoidable, conducting community resettlement activities in alignment with international best practice. This commitment is reflected in our Social Performance Policy, Human Rights Policy and Responsible Sourcing of Minerals Policy. We did not have any community resettlement activities in 2021.
A15: PRINCIPLE 3: HUMAN RIGHTS | B15: Respect human rights and the interests, cultures, customs and values of employees and communities affected by our activities. | C15: 3.3 | D15: Implement, based on risk, a human rights and security approach consistent with the Voluntary Principles on Security and Human Rights. | E15: We are committed to respecting internationally recognized human rights as set out in the VPs. The VPs serve as guidelines for our security and human rights programs, including interaction with host-government police and military personnel as well as private security contractors. The VPs serve as a key component of our broader human rights program, which includes implementation of the UNGPs. Not all human rights issues are security issues, and not all security issues are human rights issues – it is at the nexus of human rights and security where our implementation of the VPs resides. We have remained an active participant in the VPs Initiative since it was first established in 2000. • Voluntary Principles Report to the Plenary • Information can be found in our 2021 Annual Report on Sustainability: Robust Governance > Responsible Value Chains, and on our website at FCX.com – Human Rights > Voluntary Principles
A16: PRINCIPLE 3: HUMAN RIGHTS | B16: Respect human rights and the interests, cultures, customs and values of employees and communities affected by our activities. | C16: 3.4 | D16: Respect the rights of workers by: not employing child or forced labour; avoiding human trafficking; not assigning hazardous/dangerous work to those under 18; eliminating harassment and discrimination; respecting freedom of association and collective bargaining and; providing a mechanism to address workers grievances. | E16: Our Business Partner Code of Conduct and compliance screening processes are the foundation of our responsible sourcing program for goods and services. We are committed to operating in a manner consistent with the UNGC Ten Principles, including Labour Principles 3, 4, 5 and 6. • PBC • Inclusion & Diversity Policy • Social Performance Policy • Human Rights Policy • Responsible Sourcing of Minerals Policy • Business Partner Code of Conduct • UK Modern Slavery Act Statement • Information can be found in our 2021 Annual Report on Sustainability: Our Approach: Responsible Value Chains; Robust Governance > Human Rights; Empowered People & Resilient Communities > Workforce
A17: PRINCIPLE 3: HUMAN RIGHTS | B17: Respect human rights and the interests, cultures, customs and values of employees and communities affected by our activities. | C17: 3.5 | D17: Remunerate employees with wages that equal or exceed legal requirements or represent a competitive wage within that job market (whichever is higher) and assign regular and overtime working hours within legally required limits. | E17: We focus on attracting and retaining talented people by offering quality employment with competitive compensation and opportunities for professional development. Our approach to compensation and benefits is market-based and competitive and informed by annual benchmarking and analysis. We are committed to respecting the rights of our workforce, including paying fair wages. This includes equal pay for equal work, and compensation levels that support the acquisition of the goods and services necessary for an average size family to meet their basic needs in the geographic locations where we operate. We also develop schedules that keep regular and overtime hours within legally required limits. In 2021, we partnered with BSR, a global sustainability non-profit, to conduct a living wage assessment for both full-time and part-time employees. The first phase of work included our largest 14 operating sites in the U.S., Chile, Peru and Indonesia. In late 2021, we completed phase two of the assessment, adding 23 additional sites, which include office locations, remediation and discontinued operations and smaller processing locations to complete our global assessment. BSR’s living wage benchmark exceeds the minimum wage in all of Freeport’s 37 locations assessed. The assessment found that of the more than 24,700 employees included in the assessment, all employees met BSR’s living wage benchmark for their respective locations. • PBC • Information can be found in our 2021 Annual Report on Sustainability: Empowered People & Resilient Communities > Workforce
A18: PRINCIPLE 3: HUMAN RIGHTS | B18: Respect human rights and the interests, cultures, customs and values of employees and communities affected by our activities. | C18: 3.6 | D18: Respect the rights, interests, aspirations, culture and natural resource-based livelihoods of Indigenous Peoples in project design, development and operation; apply the mitigation hierarchy to address adverse impacts and; deliver sustainable benefits for Indigenous Peoples. | E18: Our approach aims to respect the social, economic and cultural rights of Indigenous Peoples, including supporting their effective representation and participation in engagements with our company. This approach includes adherence to the ICMM Position Statement on Indigenous Peoples and Mining and working towards obtaining free prior and informed consent for new projects and material expansions of existing projects. Through ongoing engagement, cultural promotion and preservation projects, as well as training and development programs, Freeport-McMoRan seeks to address needs while being sensitive to cultures and customs of Indigenous Peoples. • Social Performance Policy & Human Rights Policies • Information can be found in our 2021 Annual Report on Sustainability: Empowered People & Resilient Communities > Communities & Indigenous Peoples
A19: PRINCIPLE 3: HUMAN RIGHTS | B19: Respect human rights and the interests, cultures, customs and values of employees and communities affected by our activities. | C19: 3.7 | D19: Work to obtain the free, prior and informed consent of Indigenous Peoples where significant adverse impacts are likely to occur, as a result of relocation, disturbance of lands and territories or of critical cultural heritage, and capture the outcomes of engagement and consent processes in agreements. | E19: Our approach aims to respect the social, economic and cultural rights of Indigenous Peoples, including supporting their effective representation and participation in engagements with our company. This approach includes adherence to the ICMM Position Statement on Indigenous Peoples and Mining and working towards obtaining free prior and informed consent for new projects and material expansions of existing projects. Through ongoing engagement, cultural promotion and preservation projects, as well as training and development programs, Freeport-McMoRan seeks to address needs while being sensitive to cultures and customs of Indigenous Peoples. • Social Performance Policy • Information can be found in our 2021 Annual Report on Sustainability: Empowered People & Resilient Communities > Communities & Indigenous Peoples
A20: PRINCIPLE 3: HUMAN RIGHTS | B20: Respect human rights and the interests, cultures, customs and values of employees and communities affected by our activities. | C20: 3.8 | D20: Implement policies and practices to respect the rights and interests of women and support diversity in the workplace. | E20: Gender diversity continues to be an important focus for the company. We believe that progressing an inclusive workplace culture that extends beyond our operational boundaries and into our communities, is a critical driver to attracting, promoting and retaining top female talent. • Information can be found in our 2021 Annual Report on Sustainability: Empowered People & Resilient Communities > Inclusion & Diversity; Robust Governance > Human Rights
A21: PRINCIPLE 4: RISK MANAGEMENT | B21: Implement effective risk-management strategies and systems based on sound science and which account for stakeholder perceptions of risks. | C21: 4.1 | D21: Assess environmental and social risks and opportunities of new projects and of significant changes to existing operations in consultation with interested and affected stakeholders, and publicly disclose assessment results. | E21: Our project development sustainability review process integrates sustainability into project planning by helping teams identify risks and opportunities associated with expansions or development projects. The process enables us to identify, prioritize and proactively manage potential risks before a project has begun and continuously throughout its development. It also incorporates identification and prioritization opportunities – for example to partner with communities to create shared value by protecting cultural heritage from the earliest stages. The process is applied during the early stages of mine expansion and project development, particularly during scoping, pre-feasibility and feasibility stages so that risks may be adequately addressed early and continuously throughout. The process also supports preparation for future closure of operations. Since its inception in 2011, we have undertaken reviews and implemented actions for 32 projects. Key focus areas identified at different project stages have included: access to water, energy and materials, potential impacts to hydrology, air quality, biodiversity, human rights, community receptivity, economic impacts, and land acquisition and resettlement. • Information can be found in our 2021 Annual Report on Sustainability: Our Approach > Our Strategy in Action: Responsible Production; People, and on our website at FCX.com – Assessing and Managing Impacts
A22: PRINCIPLE 4: RISK MANAGEMENT | B22: Implement effective risk-management strategies and systems based on sound science and which account for stakeholder perceptions of risks. | C22: 4.2 | D22: Undertake risk-based due diligence on conflict and human rights that aligns with the OECD Due Diligence Guidance on Conflict-Affected and High-Risk Areas, when operating in, or sourcing from, a conflict-affected or high-risk area. | E22: Sourcing of goods and services can have significant impact across all areas of ESG risk. In recent years, human rights, workforce, health and safety, cultural heritage, economic, and, environmental risks in supply chains have become a focus in the mining industry. In addition, automotive and electronics original equipment manufacturers have received significant pressure from shareholders and other stakeholders to improve due diligence in their supply chains, which is putting increasing pressure on minerals producers globally. Freeport-McMoRan is committed to sourcing responsibly across our supply chains wherever we do business. Freeport is committed to the OECD Due Diligence Guidance for Responsible Supply Chains of Minerals in Conflict-Affected and High-Risk Areas, which requires annual Step 5 Reporting detailing risks identified and managed in our mineral supply chains. • Responsible Sourcing of Minerals Policy • 2020 OECD Step 5 Due Diligence Report • Information can be found in our 2021 Annual Report on Sustainability: Our Approach > Responsible Value Chains and Responsible Sourcing of Minerals and Metals
A23: PRINCIPLE 4: RISK MANAGEMENT | B23: Implement effective risk-management strategies and systems based on sound science and which account for stakeholder perceptions of risks. | C23: 4.3 | D23: Implement risk-based controls to avoid/prevent, minimise, mitigate and/or remedy health, safety and environmental impacts to workers, local communities, cultural heritage and the natural environment, based upon a recognised international standard or management system. | E23: We drive responsible production practices throughout our operations by identifying the commitments that will move the industry forward and meaningfully advance our operations and our supply chains, including our strategic focus areas and related ambitions and performance targets, as well as commitments such as the UNGPs, the VPs and Task Force on Climate-related Financial Disclosures (TCFD). Being a responsible producer also means purposefully working toward achieving the SDGs within our communities and value chain. We work globally to translate these commitments to our business through the development of common industry frameworks. • Information can be found in our 2021 Annual Report on Sustainability: Our Approach; Empowered People & Resilient Communities; Thriving Environments
A24: PRINCIPLE 4: RISK MANAGEMENT | B24: Implement effective risk-management strategies and systems based on sound science and which account for stakeholder perceptions of risks. | C24: 4.4 | D24: Develop, maintain and test emergency response plans. Where risks to external stakeholders are significant, this should be in collaboration with potentially affected stakeholders and consistent with established industry good practice. | E24: Emergency preparedness and response is a fundamental component of all Freeport-McMoRan activities. Through our Crisis Management Program (CMP) and Sustainable Development risk register our operations maintain plans with procedures for preventing and responding to incidents that could cause severe or catastrophic harm to human health and the environment. All operations are required to follow our CMP process that includes risk analysis by applying our Sustainable Development risk matrix to risk event scenarios with the intent to eliminate or mitigate the exposure. It also requires identifying the Incident Command Structure and coordinating activities with authorities, such as fire and police departments or federal officials. The plan includes evacuation procedures, employee safety procedures, environmental containment, communications plans and workplace assessments. Disaster recovery and business continuity considerations are core to the planning as well. Operations are required to conduct annual mock or live drills on plan scenarios. All of our operations are required to conduct annual mock or live drills on plan scenarios which include, where appropriate, involvement and participation with stakeholders responsible for responding to site related emergencies • Information can be found in our 2021 Annual Report on Sustainability: Empowered People & Resilient Communities > Health & Safety
A25: PRINCIPLE 5: HEALTH AND SAFETY | B25: Pursue continual improvement in health and safety performance with the ultimate goal of zero harm. | C25: 5.1 | D25: Implement practices aimed at continually improving workplace health and safety, and monitor performance for the elimination of workplace fatalities, serious injuries and prevention of occupational diseases, based upon a recognised international standard or management system. | E25: At the foundation of our sustainability approach – and one of our core values – is safety. Our objective is to achieve zero workplace fatalities, injuries and occupational illnesses through our behavior-based safety culture. We are committed to creating a safe and healthy workplace and providing the training, tools and resources needed so our workforce can identify risks and consistently apply effective controls. We share information and key learnings about potentially fatal events, near misses and best practices throughout the company and engage with industry peers to continuously improve our health and safety performance. Our framework for managing risks and compliance obligations is certified in accordance to ISO 45001 Health and Safety Management System. • Safety & Health Policy • ESG Performance Data - Social • Information can be found in our 2021 Annual Report on Sustainability: Empowered People & Resilient Communities > Health & Safety
A26: PRINCIPLE 5: HEALTH AND SAFETY | B26: Pursue continual improvement in health and safety performance with the ultimate goal of zero harm. | C26: 5.2 | D26: Provide workers with training in accordance with their responsibilities for health and safety, and implement health surveillance and risk-based monitoring programmes based on occupational exposures. | E26: Safety is a core company value and is foundational to our sustainability approach. Our highest priority is the health, safety and well-being of our employees, contractors, suppliers and the communities where we operate. We believe that health and safety considerations are integral to, and fundamental for, all other functions in our organization and we understand that the health and safety of our workforce is critical to our operational success and efficiency and ultimately to our ability to deliver long-term value to our stakeholders. We strive to achieve zero workplace fatalities, high-risk incidents, injuries and occupational illnesses by creating a safe and healthy workplace. This includes providing the training, tools and resources needed so our workforce can identify risks and consistently apply effective controls. We share information and key learnings about potentially fatal events, near misses and best practices throughout the company, and we engage with industry peers outside the organization to learn and continuously improve our health and safety performance. In 2021, we continued to integrate our Safe Production Matters strategy into our operations globally. This strategy is focused on fatality prevention and continuous improvement by using robust management systems, empowering safe work behaviors and strengthening our safety culture. Our principal focus is on the prevention of fatalities and high-risk incidents, which we seek to manage by leveraging technology to support the efficiency of safe work practices in the field and data driven decision making in combination with behavioral science principles. • Safety & Health Policy • ESG Performance Data - Social • Information can be found in our 2021 Annual Report on Sustainability: Empowered People & Resilient Communities > Health & Safety
A27: PRINCIPLE 6: ENVIRONMENTAL PERFORMANCE | B27: Pursue continual improvement in environmenal performance issues, such as water stewardship, energy use and climate change. | C27: 6.1 | D27: Plan and design for closure in consultation with relevant authorities and stakeholders, implement measures to address closure-related environmental and social aspects, and make financial provision to enable agreed closure and postclosure commitments to be realised. | E27: Our reclamation and mine closure planning processes are integral to our site planning and ongoing operations. We engage local communities, governments and other interested stakeholders early and often on these issues, and we seek to minimize land disturbances whenever possible. At each of our operations, we have mine closure and reclamation plans with site-specific environmental measures designed to minimize long-term impacts, promote ecosystem re-establishment, and protect the watersheds where we operate. To support future anticipated closure and reclamation costs, each operating mine site has asset retirement obligations aligned with approved closure plans and that are estimated and accounted for in accordance with GA AP and are audited by an independent accounting firm. • Environmental Policy • Social Performance Policy • Information can be found in our 2021 Annual Report on Sustainability: Thriving Environments > Mine Closure & Reclamation
A28: PRINCIPLE 6: ENVIRONMENTAL PERFORMANCE | B28: Pursue continual improvement in environmenal performance issues, such as water stewardship, energy use and climate change. | C28: 6.2 | D28: Implement water stewardship practices that provide for strong and transparent water governance, effective and efficient management of water at operations, and collaboration with stakeholders at a catchment level to achieve responsible and sustainable water use. | E28: Freeport-McMoRan believes effective water stewardship means maximizing our water use efficiency and minimizing our use of new freshwater. This includes shifting our water supplies to more sustainable sources, minimizing negative impacts from our operations on water quality and availability in a local catchment, and supporting the development of access to previously unknown, unavailable or undeveloped water resources. • 2019 Water Report • Environmental Policy • Information can be found in our 2021 Annual Report on Sustainability: Thriving Environments > Water Stewardship
A29: PRINCIPLE 6: ENVIRONMENTAL PERFORMANCE | B29: Pursue continual improvement in environmenal performance issues, such as water stewardship, energy use and climate change. | C29: 6.3 | D29: Design, construct, operate, monitor and decommission tailings disposal/storage facilities using comprehensive, risk-based management and governance practices in line with internationally recognised good practice, to minimise the risk of catastrophic failure. | E29: Freeport has comprehensive measures in place to ensure our facilities are designed, built, operated and monitored to minimize risk to employees, neighboring host communities and the environment. We have a strong commitment from our Board and executive management to provide the necessary financial and technical resources to maintain the safety of our facilities and the integrity of tailings management systems, with a focus on continuous improvement. In 2021, we established a formal standalone Tailings Management Policy which was approved by the CRC and outlines our continued commitment to managing our tailings responsibly and effectively. The policy also includes our commitment to implement the Global Industry Standard on Tailings Management (the Tailings Standard) at our tailings storage facilities. • Environmental Policy • Information can be found in our 2021 Annual Report on Sustainability: Thriving Environments > Tailings Management and site-specific documentation on our website at FCX.com under Tailings Management
A30: PRINCIPLE 6: ENVIRONMENTAL PERFORMANCE | B30: Pursue continual improvement in environmenal performance issues, such as water stewardship, energy use and climate change. | C30: 6.4 | D30: Apply the mitigation hierarchy to prevent pollution, manage releases and waste, and address potential impacts on human health and the environment. | E30: Our Environmental Policy serves as the framework for the protection of natural resources in the regions where we live and work. In addition to maintaining compliance with laws and regulations, our policy objectives are to minimize environmental impacts using risk management strategies based on valid data and sound science. Our Policy also requires that we review and account for the environmental effects of our activities throughout the mining life cycle, and we plan and conduct our operations in a manner that optimizes the economic use of resources while minimizing adverse environmental effects. All of our mining and mineral processing operations and technology centers maintain Environmental Management Systems (EMS) certified to the ISO14001:2015 standard. As part of our EMS, our workforce is trained on site specific subject areas, receives annual environmental refresher training and is supported in the field by environmental professionals through our Boots in the Field program. In 2021, we continued our efforts to implement the mitigation hierarchy globally – a framework that emphasizes best practices for managing biodiversity and ecosystems through the avoidance, minimization, restoration and offsetting of impacts. Through consistent and rigorous application of the mitigation hierarchy, we aim to manage risks and potential impacts with the long-term ambition of No Net Loss for new mines and major expansion projects at existing mines. • Environmental Policy • Information can be found in our 2021 Annual Report on Sustainability: Thriving Environments
A31: PRINCIPLE 6: ENVIRONMENTAL PERFORMANCE | B31: Pursue continual improvement in environmenal performance issues, such as water stewardship, energy use and climate change. | C31: 6.5 | D31: Implement measures to improve energy efficiency and contribute to a low-carbon future, and report the outcomes based on internationally recognised protocols for measuring CO2 equivalent (GHG) emissions. | E31: We believe we have the opportunity to supply the world with responsibly produced copper, which is necessary to support global decarbonization. This includes operating in a way that manages and mitigates our GHG emissions and other climate-related risks. Freeport is committed to implementing the requirements outlined in the ICMM Climate Change Position Statement and Performance Expectations for energy and climate change. In addition, our commitment to the Copper Mark requires that we develop and achieve targets over time and report our progress at a site level. Operational-level data is available in our ESG Performance Data tables. In September 2021, we published our updated climate report, which outlines substantial progress in advancing our climate strategy and commitments, including the announcement of our aspiration to net zero by 2050 for our Scope 1 and 2 greenhouse gas emissions. The report also provided an update on progress towards alignment with the recommendations of the Task Force on Climate-related Financial Disclosures (TCFD) and our commitment to the Science Based Target Initiative (SBTi) for our interim 2030 targets. • 2020 Climate Report • ESG Performance Data - Climate • Information can be found in our 2021 Annual Report on Sustainability
A32: PRINCIPLE 7: CONSERVATION OF BIODIVERSITY | B32: Contribute to the conservation of biodiversity and integrated approaches to land-use planning. | C32: 7.1 | D32: Neither explore nor develop new mines in World Heritage sites, respect legally designated protected areas, and design and operate any new operations or changes to existing operations to be compatible with the value for which such areas were designated. | E32: Freeport is committed to operating in a manner that respects legally designated protected areas, including a commitment to no mining and exploring in UNESCO World Heritage sites, which is included in our Environmental Policy. Our proven and probable reserves located near endangered species habitats do not affect habitats. The endangered species habitats near Morenci, Chino, and Climax reserves are located on federal lands managed by the U.S. Forest Service; we do not conduct activities within the habitat. Cerro Verde’s reserves qualify due to an endangered bat species that is known to occur and forage in the general region of the operations and we actively seek to protect the species. PT-FI’s reserves qualify due to the district’s proximity to Lorenz National Park, however we do not conduct any activities in the habitat and maintain significant programs at the operation to protect biodiversity in the area. •Environmental Policy • Information can be found in our 2021 Annual Report on Sustainability: Thriving Environments > Biodiversity
A33: PRINCIPLE 7: CONSERVATION OF BIODIVERSITY | B33: Contribute to the conservation of biodiversity and integrated approaches to land-use planning. | C33: 7.2 | D33: Assess and address risks and impacts to biodiversity and ecosystem services by implementing the mitigation hierarchy, with the ambition of achieving no-net-loss of biodiversity. | E33: Freeport-McMoRan seeks to avoid or minimize the adverse impacts of our operations on biodiversity and ecosystem services while promoting opportunities to contribute to the conservation and enhancement of biodiversity in the areas where we operate. In 2021, we continued our efforts to implement the mitigation hierarchy globally – a framework that emphasizes best practices for managing biodiversity and ecosystems through the avoidance, minimization, restoration and offsetting of impacts. Through consistent and rigorous application of the mitigation hierarchy, we aim to manage risks and potential impacts with the long-term ambition of No Net Loss for new mines and major expansion projects at existing mines. We recognize the mitigation hierarchy is most effective when implemented during the earliest phases of project planning to help maximize opportunities for avoidance and minimization of impacts. We have integrated the hierarchy into our existing project development process and trained our environmental and operational teams to routinely apply it. • Information can be found in our 2021 Annual Report on Sustainability: Thriving Environments > Biodiversity
A34: PRINCIPLE 8: RESPONSIBLE PRODUCTION | B34: Facilitate and support the knowledge-base and systems for responsible design, use, re-use, recycling and disposal of products containing metals and minerals. | C34: 8.1 | D34: In project design, operation and de-commissioning, implement cost-effective measures for the recovery, re-use or recycling of energy, natural resources, and materials. | E34: In addition to mining and mineral processing wastes, such as tailings, waste rock, overburden and slag, our operations generate non-mining waste which requires proper end-of-life management. Responsible management of all these materials is critical to complying with environmental regulations, maintaining community and environmental health, and social acceptance of our operations. We are committed to reducing our environmental impact, which includes the effective management of our mining and non-mining wastes alike. In addition to responsibly managing our mining and mineral processing waste, we continuously evaluate opportunities to reduce the quantity of non-mining waste generated. We implement robust practices to identify, categorize, store and manage non-mining wastes, and we strive to increase recycling and reuse of materials in our operations whenever possible. We evaluate our hazardous waste streams, and when possible, substitute materials with lower toxicity into our processes. • 2020 Climate Report • 2019 Water Report • Information can be found in our 2021 Annual Report on Sustainability: Our Approach > Our Strategy in Action: Responsible Production
A35: PRINCIPLE 8: RESPONSIBLE PRODUCTION | B35: Facilitate and support the knowledge-base and systems for responsible design, use, re-use, recycling and disposal of products containing metals and minerals. | C35: 8.2 | D35: Assess the hazards of the products of mining according to UN Globally Harmonised System of Hazard Classification and Labelling or equivalent relevant regulatory systems and communicate through safety data sheets and labelling as appropriate. | E35: Our framework for managing risks and compliance obligations is certified in accordance with the internationally recognized ISO 45001 Health and Safety Management System. Our safety management system ISO45001 covers handling and use of hazardous materials on site, including maintenance of safety data sheets. • Safety & Health Policy • Information can be found in our 2021 Annual Report on Sustainability: Empowered People & Resilient Communities > Health & Safety
A36: PRINCIPLE 9: SOCIAL PERFORMANCE | B36: Pursue continual improvement in social performance and contribute to the social, economic and institutional development of host countries and communities. | C36: 9.1 | D36: Implement inclusive approaches with local communities to identify their development priorities and support activities that contribute to their lasting social and economic wellbeing, in partnership with government, civil society and development agencies, as appropriate. | E36: Freeport-McMoRan works actively through engagement, investment and partnership activities to support our host communities in maximizing the social and economic benefits of mining. Our work increasingly is focused on supporting our communities to develop the requisite skills to successfully adapt to technological and economic changes in the future to reduce their dependency on mining over the long term. By partnering to increase both individual and institutional capabilities, we help create increasing resiliency, allowing communities to better weather and adapt to commodity market fluctuations or other economic disruptions that may have social impacts. • Social Performance Policy • Information can be found in our 2021 Annual Report on Sustainability: Our Approach > Stakeholder Engagement; Empowered People & Resilient Communities > Communities & Indigenous Peoples and Economic Contributions
A37: PRINCIPLE 9: SOCIAL PERFORMANCE | B37: Pursue continual improvement in social performance and contribute to the social, economic and institutional development of host countries and communities. | C37: 9.2 | D37: Enable access by local enterprises to procurement and contracting opportunities across the project life-cycle, both directly and by encouraging larger contractors and suppliers, and also by supporting initiatives to enhance economic opportunities for local communities. | E37: Purchasing goods and services from local suppliers provides a significant direct and indirect benefit to our local communities. Our investment in local communities helps to support the economic vitality of small and medium size enterprises and local entrepreneurship. When we purchase locally, we provide the stimulus for community development and the potential for capacity building. • ESG Performance Data - Social • Information can be found in our 2021 Annual Report on Sustainability: Robust Governance > Responsible Value Chains; Empowered People & Resilient Communities > Economic Contributions
A38: PRINCIPLE 9: SOCIAL PERFORMANCE | B38: Pursue continual improvement in social performance and contribute to the social, economic and institutional development of host countries and communities. | C38: 9.3 | D38: Conduct stakeholder engagement based upon an analysis of the local context and provide local stakeholders with access to effective mechanisms for seeking resolution of grievances related to the company and its activities. | E38: Freeport-McMoRan believes effective stakeholder engagement is founded on transparency and meaningful dialogue. Our goal is to foster mutual understanding, trust and cooperation with stakeholder groups on a variety of topics. We recognize the vital role of stakeholder engagement and calls for collaboration with communities, including Indigenous and vulnerable populations, to minimize and mitigate adverse impacts and pursue opportunities to maximize benefits. We have a broad range of stakeholders, including shareholders, employees, host communities and Indigenous Peoples, customers and suppliers, regulators and policymakers, host governments, and nongovernmental organizations. We recognize the interests and concerns of our stakeholders can change over time. To learn about these changing needs and expectations, we believe ongoing and proactive engagement is imperative. We maintain an ongoing, constructive and proactive shareholder and non-financial stakeholder engagement program throughout the year. We have established site-level grievance mechanisms for employees, community members and members of our supply chain and others to support constructive engagement and resolution of issues that may arise where questions, concerns and complaints can be shared outside of any other engagement forum. • Social Performance Policy • Human Rights Policy • Information can be found in our 2021 Annual Report on Sustainability: Our Approach > Stakeholder Engagement; Robust Governance > Human Rights; Empowered People & Resilient Communities > Communities & Indigenous Peoples and Economic Contributions and Community Grievance Mechanism
A39: PRINCIPLE 9: SOCIAL PERFORMANCE | B39: Pursue continual improvement in social performance and contribute to the social, economic and institutional development of host countries and communities. | C39: 9.4 | D39: Collaborate with government, where appropriate, to support improvements in environmental and social practices of local Artisanal and Small-scale Mining (ASM). | E39: At our Grasberg operations in Indonesia, illegal artisanal miners seek unrecovered gold from our milling operations by panning in our controlled riverine tailings system. Artisanal mining within PT-FI’s concession area is illegal. However, artisanal miners set up camps at various points along the controlled riverine tailings system. Many do not have expertise operating in hazardous conditions, including remote terrain and varied climatic conditions. PT-FI cannot address illegal artisanal mining on its own. A multi-faceted approach — including government cooperation, security risk management, stakeholder engagement and socioeconomic development for alternative livelihoods — is essential. PT-FI’s community liaison officers and third-party contractors in the field proactively and continuously engage with the artisanal mining communities on operational changes in an effort to manage their expectations, encourage them to seek alternative livelihoods, and to minimize risks to the operations and to the artisanal miners and their families. PT-FI also seeks to inform the artisanal miners in advance of planned levee maintenance work and equipment movements to minimize safety risks. In 2021, as a part of PT-FI’s ongoing engagement with the local communities, we began human rights education, with a focus on the rights of children living in the artisanal mining working camps near our site. This includes human rights awareness training and ongoing monitoring with a focus on preventing child labor. The training is carried out in a partnership between a local NGO and PT-FI's community liaison officers. • Information can be found in our 2021 Annual Report on Sustainability: Empowered People & Resilient Communities > Health & Safety > Artisanal Mining in Papua
A40: PRINCIPLE 10: STAKEHOLDER ENGAGEMENT | B40: Proactively engage key stakeholders on sustainable development challenges and opportunities in an open and transparent manner. Effectively report and independently verify progress and performance. | C40: 10.1 | D40: Identify and engage with key corporate-level external stakeholders on sustainable development issues in an open and transparent manner | E40: We believe effective stakeholder engagement is founded on transparency and meaningful dialogue. Our primary goal is to foster mutual understanding, trust and cooperation with stakeholder groups on a variety of topics. We have a broad range of stakeholders, including shareholders, employees, host communities and Indigenous Peoples, customers and suppliers, regulators and policymakers, host governments, and nongovernmental organizations. We recognize the interests and concerns of our stakeholders can change over time. To learn about these changing needs and expectations, we believe ongoing and proactive engagement is imperative. We maintain an ongoing, constructive and proactive shareholder and non-financial stakeholder engagement program throughout the year. Our company is strengthened by this dialogue, which also helps us learn about our stakeholders’ perspectives on the topics that matter to them. These conversations inform our Board’s decision-making, including on our policies, practices, programs and initiatives. These engagements are also an opportunity to share information about our strategy, practices and performance. • 2022 Proxy Statement - Stockholder and Stakeholder Engagement • Information can be found in our 2021 Annual Report on Sustainability: Our Approach > Stakeholder Engagement
A41: PRINCIPLE 10: STAKEHOLDER ENGAGEMENT | B41: Proactively engage key stakeholders on sustainable development challenges and opportunities in an open and transparent manner. Effectively report and independently verify progress and performance. | C41: 10.2 | D41: Publicly support the implementation of the Extractive Industries Transparency Initiative (EITI) and compile information on all material payments, at the appropriate levels of government, by country and by project. | E41: Freeport-McMoRan has endorsed and committed to support the EITI since 2008. This support includes direct financial contributions from the company as well as contributions through the ICMM of which we are a founding member. Freeport maintains significant mining operations in Indonesia and Peru, both of which are EITI-implementing countries, and we actively support and participate in associated in-country processes. In addition to our country-level EITI commitments and regulatory reporting obligations, our practice is to voluntarily report cash payments to governments in all jurisdictions where we conduct business. • Information can be found in our 2021 Annual Report on Sustainability: Empowered People & Resilient Communities > Economic Contributions
A42: PRINCIPLE 10: STAKEHOLDER ENGAGEMENT | B42: Proactively engage key stakeholders on sustainable development challenges and opportunities in an open and transparent manner. Effectively report and independently verify progress and performance. | C42: 10.3 | D42: Report annually on economic, social and environmental performance at the corporate level using the GRI Sustainability Reporting Standards. | E42: Our 2021 Annual Report on Sustainability and sustainability website disclosures have been prepared in accordance with the GRI Standards Core option and the G4 Mining and Metals Sector Supplement. We have reported under GRI guidelines and standards since 2005. • Information can be found in our 2021 Annual Report on Sustainability and our website at FCX.com - GRI Content Index
A43: PRINCIPLE 10: STAKEHOLDER ENGAGEMENT | B43: Proactively engage key stakeholders on sustainable development challenges and opportunities in an open and transparent manner. Effectively report and independently verify progress and performance. | C43: 10.4 | D43: Each year, conduct independent assurance of sustainability performance following the ICMM guidance on assuring and verifying membership requirements. | E43: Freeport-McMoRan’s sustainability reports have been independently verified since 2005. External assurance of our 2021 reporting was conducted by Corporate Integrity Ltd. in accordance with the ICMM Mining Principles Assurance and Validation Procedure, which can be found at ICMM website. Since 2009, site-level external assurance has been completed multiple times at all active mining and metals processing operations. We conduct site-level external assurance at operations at a minimum of once every three years, with annual assurance engagements at PT-FI and Cerro Verde. • Information can be found in our 2021 Annual Report on Sustainability and our website at FCX.com - External Assurance
